{"text_format":"1","workbook":"xlsx","n_sheets":8,"sheets":["BD","Home","Listes","Accueil","Projet","Calepinage","Dessin","Bon de commande"],"not_rendered":{"charts":0,"images":106,"macros":1,"external_links":0,"defined_names":127,"comments":1,"pivot_tables":0},"unopened":[],"bounds":{"document_bytes":16777216,"sheet_cells":100000,"rows_first":2000,"rows_last":500,"rows_between":2000,"halvings":0,"cell_chars":16384,"cell_head_chars":4096},"cells_cut":0,"cells_raw":0,"read":"whole","date_system":"1900"}

{"sheet":"BD","index":0,"n_rows":197,"n_cols":100,"rows_kept":197,"cut":false,"hidden":true,"merged":[]}
["Variable","Français","English","Nederlands","Deutsch","Magyar","Polski","русский","Česky",null,null,null,null,null,null,null,null,null,"Références","Traduction","version","couleur","francais","anglais","Nederlands","allemand","hungarian","POLISH","russian","czech",null,null,null,null,null,null,null,"Références Nav",null,"Plaque","ref","prix",null,null,null,null,null,"Plaque config XL/2c Aber=1 Aber jonction=1","Plaque non compatible kit specifique",null,null,null,"index","kit","epaisseur","Ab D","AB G","DPO Ab D","DPO Ab G","Raccord","Bande etanchéité",null,null,0,1640,{"$f":"BM1+10","v":1650},{"$f":"BN1+10","v":1660},1670,1680,1690,1700,1710,1720,1730,1740,1750,1760,1770,1780,1790,1800,1810,1820,1830,1840,1850,1860,1870,1880,1890,1900,1910,1920,1930,1940,1950,1960,1970,1980,1990]
["HomeT1","BIENVENUE DANS L'OUTIL DE DIMENSIONNEMENT ET COMMANDE ","WELCOME TO THE SIZING AND CONTROL TOOL ","WELKOM IN HET DIMENSIONERINGS- EN BESTELTOOL","WILLKOMMEN BEIM AUSLEGUNGS- UND BESTELLTOOL ","Üdvözöljük a méretező és gyors tervező programban","ZAPRASZAMY DO SKORZYSTANIA Z NARZĘDZIA DO WYMIAROWANIA I KALKULACJI","ДОБРО ПОЖАЛОВАТЬ В ИНСТРУМЕНТ ПЛАНИРОВАНИЯ И РАСЧЁТА ","VÍTEJTE V KONFIGURÁTORU PLÁNOVÁNÍ A VÝPOČTU",null,null,null,null,null,null,null,null,null,"COINDALUATEC ","AberFaitDATEC","v.TS-1","ALU","Abergement Angle DROIT Gris-v.TS-1","Top RIGHT Angle Flashing Grey-v.TS-1",null,"Winkelverblechung rechts v.TS-1 ALU","Felső JOBB Szögzáró Burkolat Szürke-v.TS-1","Górna PRAWA obróbka kątowa Szary-v.TS-1","Верхняя правая угловая планка v.TS-1 Серая","Pravá horní rohová lišta v.TS-1 Šedá",null,null,null,null,null,null,null,"ART101379",null,"Pa 1559 / 1046","ART100401",50.16,null,null,null,null,null,"Po 1580 / 808","Dpo 1650 / 995",null,null,null,2,"MK06",0,"ART103629","ART103622","ART105498","ART105512","ART101590",null,null,"Po 1640 / 992","3/5","3/5","3/5","3/5","3/6","4/6","4/6","4/6","4/6"]
["HomeT2","DU GSE INTEGRATION IN-ROOF SYSTEM","OF GSE INTEGRATION IN-ROOF SYSTEM","VAN HET GSE INTEGRATION IN-ROOF SYSTEM","FÜR DAS GSE INTEGRATION IN-ROOF SYSTEM","A GSE Tetőszerkezetbe Építhető Rendszeréhez","SYSTEMU IN-ROOF GSE INTEGRATION","ИНТЕГРАЦИИ GSE IN-ROOF SYSTEM","INTEGRAČNÍHO SYSTÉMU GSE INTEGRATION IN-ROOF SYSTEM",null,null,null,null,null,null,null,null,null,"COINDNOIRATEC ","AberFaitDATEC","v.TS-1","NOIR","Abergement Angle DROIT Noir-v.TS-1","Top RIGHT Angle Flashing Black-v.TS-1","Hoekafdekplaat RECHTS boven Zwart TS1","Winkelverblechung rechts v.TS-1 Schwarz","Felső JOBB Szögzáró Burkolat Fekete-v.TS-1","Górna PRAWA obróbka kątowa Czarny-v.TS-1","Верхняя правая угловая планка v.TS-1 Чёрная","Pravá horní rohová lišta v.TS-1 Černá",null,null,null,null,null,null,null,"ART101295",null,"Pa 1575 / 1082","ART100048",50.16,null,null,null,null,null,"Po 1640 / 992","Dpo 1650 / 1070",null,null,null,3,"MK06",330,"ART103629","ART103622","ART105498","ART105512","ART101590","BANDE_FLEXALU_330",null,"Po 1640 / 1001","3/5","3/5","3/5","3/5","3/6","4/6","4/6","4/6","4/6"]
["HomeT3","Vous trouverez à travers cette application l'outil qui vous permettra de calculer et de dimensionner vos commandes","You will find through this application the tool that will allow you to calculate and size your orders","Via deze toepassing vindt u het hulpmiddel waarmee u uw bestellingen kunt berekenen en de grootte ervan kunt bepalen","Mit dieser Anwendung erhalten Sie ein Werkzeug, das es Ihnen erlaubt, Ihre Aufträge auszulegen und zu berechnen.","Ez az eszköz segít meghatározni a szükséges paramétereket és rendelési listát","W tej aplikacji znajdziesz narzędzie, które pozwoli Ci obliczyć i określić wielkość zamówień","Это приложение позволит вам рассчитать размеры и определить стоимость вашего проекта","Tato aplikace vám umožní vypočítat rozměry a určit náklady na váš projekt",null,null,null,null,null,null,null,null,null,"ANGL_COIN_DROIT_AR ","AberFaitDATEC","v.A-1","Noir","Abergement Angle DROIT Noir-v.A-1","Top RIGHT Angle Flashing Black-v.A-1","Hoekafdekplaat RECHTS boven Zwart A1","Winkelverblechung rechts v.A-1 Schwarz","Felső JOBB Szögzáró Burkolat Fekete-v.A-1","Górna PRAWA obróbka kątowa Czarny-v.A-1","Верхняя правая угловая планка v.А-1 Чёрная","Pravá horní rohová lišta v.A-1 Černá",null,null,null,null,null,null,null,"ART100195",null,"Pa 1580 / 808","ART100713",38.28,null,null,null,null,null,"Po 1640 / 1001","Dpo 1650 / 1100",null,null,null,4,"MK06",500,"ART103629","ART103622","ART105498","ART105512","ART101590","BANDE_FLEXALU_500",null,"Po 1640 / 1001 P33","3/5","3/5","3/5","3/5","3/6","4/6","4/6","4/6","4/6"]
["Dim","Dimensionner","Size","Maat","Auslegen","Méret","Wymiar","Размер","Velikost",null,null,null,null,null,null,null,null,null,"COINGALUATEC ","AberFaitGATEC","v.TS-1","ALU","Abergement Angle GAUCHE Gris-v.TS-1","Top LEFT Angle Flashing Grey-v.TS-1",null,"Winkelverblechung links v.TS-1 ALU","Felső BAL Szögzáró Burkolat Szürke-v.TS-1","Górna LEWA obróbka kątowa Szary-v.TS-1","Верхняя левая угловая планка v.TS-1 Серая","Levá horní rohová lišta v.TS-1 Šedá",null,null,null,null,null,null,null,"ART100785",null,"Pa 1640 / 992","ART100356",50.16,null,null,null,null,null,"Po 1640 / 1001 P33","Dpo 1650 / 1135",null,null,null,5,"MK08",0,"ART103629","ART103622","ART105498","ART105512","ART101589",null,null,"Po 1710 / 995","4/6","4/6","4/6","4/6","4/6","4/6","4/6","4/6","4/6","4/6","4/6","4/6","4/6","4/6","4/6","6"]
["RefCmpPV","Référence du projet","Project reference","Project referentie","Projekt-Modulfeldreferenz","Project szám","Nr referencyjny projektu","Ссылка на проект","Reference projektu",null,null,null,null,null,null,null,null,null,"COINGNOIRATEC ","AberFaitGATEC","v.TS-1","NOIR","Abergement Angle GAUCHE Noir-v.TS-1","Top LEFT Angle Flashing Black-v.TS-1","Hoekafdekplaat LINKS boven Zwart TS1","Winkelverblechung links v.TS-1 Schwarz","Felső BAL Szögzáró Burkolat Fekete-v.TS-1","Górna LEWA obróbka kątowa Czarny-v.TS-1","Верхняя левая угловая планка v.TS-1 Чёрная","Levá horní rohová lišta v.TS-1 Černá",null,null,null,null,null,null,null,"ART100285",null,"Pa 1650 / 992","ART101488",50.16,null,null,null,null,null,"Po 1685 / 1016","Dpo 1650 / 1140",null,null,null,6,"MK08",330,"ART103629","ART103622","ART105498","ART105512","ART101589","BANDE_FLEXALU_330",null,"Po 1710 / 1000","4/6","4/6","4/6","4/6","4/6","4/6","4/6","4/6","4/6","4/6","4/6","4/6","4/6","4/6","4/6","6"]
["DimToit","Caractéristiques du toit","Roof Dimensions","Dakafmetingen","Dachabmessungen","Tető méretei","Wymiary dachu ","Размеры крыши","Rozměry střechy",null,null,null,null,null,null,null,null,null,"ANGL_COIN_GAUCH_AR ","AberFaitGATEC","v.A-1","Noir","Abergement Angle GAUCHE Noir-v.A-1","Top LEFT Angle Flashing Black-v.A-1","Hoekafdekplaat LINKS boven Zwart-A1","Winkelverblechung links v.A-1 Schwarz","Felső BAL Szögzáró Burkolat Fekete-v.A-1","Górna LEWA obróbka kątowa Czarny-v.A-1","Верхняя правая угловая планка v.А-1 Серая","Pravá horní rohová lišta v.A-1 Šedá",null,null,null,null,null,null,null,"ART101291",null,"Pa 1660 / 992","ART101502",50.16,null,null,null,null,null,"Po 1710 / 995","Dpo 1650 / 1145",null,null,null,7,"MK08",500,"ART103629","ART103622","ART105498","ART105512","ART101589","BANDE_FLEXALU_500",null,"Po 1710 / 1005","4/6","4/6","4/6","4/6","4/6","4/6","4/6","4/6","4/6","4/6","4/6","4/6","4/6","4/6","4/6","6"]
["Calepinage","Calepinage","Layout","Layout","Lattenplan","Elrendezés","Układ","Раскладка","Rozložení",null,null,null,null,null,null,null,null,null,"AFSA2013","AberFaitCATEC","LG 1.50 m","ALU","Abergement Haut Central Universel Gris L 1500mm","Universal Top Centre Flashing - Grey L 1500mm ",null,"First-Hauptverblechung  LG 1.50 m ALU","Univerzális Felső Közép Burkolat - Szürke L 1500mm","Uniwersalna górna śodkowa obróbka - Szary L 1500mm ","Универсальная верхняя центральная планка L 1500мм Серая","Univerzální horní středová lišta L 1500mm Šedá",null,null,null,null,null,null,null,"ART100695",null,"Pa 1670 / 992","ART101266",50.16,null,null,null,null,null,"Po 1710 / 1000","Dpo 1650 / 1160",null,null,null,8,"MK10",0,null,null,"ART105505","ART105519","RMK10",null,null,"Po 1710 / 1010","4/6","4/6","4/6","4/6","4/6","4/6","4/6","4/6","4/6","4/6","4/6","4/6","4/6","4/6","4/6","6"]
["DimMod","Caractéristiques du module","Module Dimensions","Module afmetingen","Modulabmessungen","Modul méretek","Wymiary modułu","Размеры модуля","Rozměry modulu",null,null,null,null,null,null,null,null,null,"AFCUNL1500","AberFaitCATEC","LG 1.50 m","NOIR","Abergement Haut Central Universel Noir L 1500mm","Universal Top Centre Flashing - Black L 1500mm ","Universele afdekplaat midden boven - Zwart L 1500mm ","First-Hauptverblechung  LG 1.50 m Schwarz","Univerzális Felső Közép Burkolat - Fekete L 1500mm","Uniwersalna górna środkowa obróbka - Czarny L 1500mm ","Универсальная верхняя центральная планка L 1500мм Чёрная","Univerzální horní středová lišta L 1500mm Černá",null,null,null,null,null,null,null,"ART101041 ",null,"Pa 1675 / 992 P33","ART100675",50.16,null,null,null,null,null,"Po 1710 / 1005","Dpo 1840 / 995",null,null,null,9,"MK10",330,null,null,"ART105505","ART105519","RMK10","BANDE_FLEXALU_330",null,"Po 1710 / 1020","4/6","4/6","4/6","4/6","4/6","4/6","4/6","4/6","4/6","4/6","4/6","4/6","4/6","4/6","4/6","6"]
["Long","Longueur (L)","Length (L)","Lengte (L)","Länge (L)","Hossz (L)","Długość (L)","Длина (L)","Délka (L)",null,null,null,null,null,null,null,null,null,"COINDALU2014_15","AberFaitD",null,"ALU","Abergement Angle Haut Droit Universel Gris ","Top Right Corner Flashing - Grey",null,"Eckverblechung rechts ALU","Felső Jobb Sarok Burkolat - Szürke","Obróbka górna prawy narożnik - Szary","Планка верхнего правого угла - Серая","Lišta pravého horního rohu - Šedá",null,null,null,null,null,null,null,"ART101340",null,"Pa 1680 / 992","ART100761",50.16,null,null,null,null,null,"Po 1710 / 1010","Dpo 1840 / 1020",null,null,null,10,"MK10",500,null,null,"ART105505","ART105519","RMK10","BANDE_FLEXALU_500",null,"Po 1710 / 1025","4/6","4/6","4/6","4/6","4/6","4/6","4/6","4/6","4/6","4/6","4/6","4/6","4/6","4/6","4/6","6"]
["Ramp","Rampant (R)","Roof Width (R)","Dakbreedte (R)","Länge der Dachschräge (R)","Tető szélesség (R)","Szerokość dachu (R)","Ширина крыши (R)","Šířka střechy (R)",null,null,null,null,null,null,null,null,null,"COINDNOIR2014_15","AberFaitD",null,"NOIR","Abergement Angle Haut Droit Universel Noir ","Top Right Corner Flashing - Black","Universele hoekafdekplaat RECHTS boven Zwart","Eckverblechung rechts Schwarz","Felső Jobb Sarok Burkolat - Fekete","Obróbka górna prawy narożnik - Czarny","Планка верхнего правого угла - Чёрная","Lišta pravého horního rohu -  Černá",null,null,null,null,null,null,null,"ART100574",null,"Pa 1686 / 1016","ART100252",50.16,null,null,null,null,null,"Po 1710 / 1020","Dpo 1840 / 1030",null,null,null,11,"PK08",0,null,null,"ART105498","ART105512","ART104616",null,null,"Po 1710 / 1030","4/6","4/6","4/6","4/6","4/6","4/6","4/6","4/6","4/6","4/6","4/6","4/6","4/6","4/6","4/6","6"]
["Haut","Hauteur (H)","Height (H)","Hoogte (H)","Höhe (H)","Magasság (H)","Wysokość (H)","Высота (H)","Výška (H)",null,null,null,null,null,null,null,null,null,"COINGALU2014_15","AberFaitG",null,"ALU","Abergement Angle Haut Gauche Universel Gris ","Top Left Corner Flashing - Grey",null,"Eckverblechung links ALU","Felső Bal Sarok Burkolat - Szürke","Obróbka górna lewy narożnik - Szary","Планка верхнего левого угла - Серая","Lišta levého horního rohu - Šedá",null,null,null,null,null,null,null,"ART100862",null,"Pa 1700 / 1016","ART100092",50.16,null,null,null,null,null,"Po 1710 / 1025","Dpo 1840 / 1040",null,null,null,12,"PK08",330,null,null,"ART105498","ART105512","ART104616","BANDE_FLEXALU_330",null,"Po 1710 / 1040","4/6","4/6","4/6","4/6","4/6","4/6","4/6","4/6","4/6","4/6","4/6","4/6","4/6","4/6","4/6","6"]
["Larg","Largeur (W)","House Width (W)","Breedte (W)","Breite (W)","Ház szélesség (W)","Szerokość budynku (W)","Ширина здания (W)","Šířka budovy (W)",null,null,null,null,null,null,null,null,null,"COINGNOIR2014_15","AberFaitG",null,"NOIR","Abergement Angle Haut Gauche Universel Noir ","Top Left Corner Flashing - Black","Universele hoekafdekplaat LINKS boven Zwart","Eckverblechung links Schwarz","Felső Bal Sarok Burkolat - Fekete","Obróbka górna lewy narożnik - Czarny","Планка верхнего левого угла - Чёрная","Lišta levého horního rohu -  Černá",null,null,null,null,null,null,null,"ART100945",null,"Pa 1665 / 1020","ART102153",50.16,null,null,null,null,null,"Po 1710 / 1030","Dpo 1840 / 1045",null,null,null,13,"PK08",500,null,null,"ART105498","ART105512","ART104616","BANDE_FLEXALU_500",null,"Po 1710 / 1045","4/6","4/6","4/6","4/6","4/6","4/6","4/6","4/6","4/6","4/6","4/6","4/6","4/6","4/6","4/6","6"]
["Epai","Epaisseur (E)","Thickness (E)","Dikte (E)","Dicke (E)","Vastagság (E)","Grubość (E)","Толщина (E)","Tloušťka (E)",null,null,null,null,null,null,null,null,null,"AFJA2013","AberFaitJonc",null,"ALU","Abergement Haut Jonction Universel Gris L 375mm  ","Top Junction Flashing - Grey L 375mm",null,"Verbindungsblech Firstverblechung ALU","Felső Csatlakozás Burkolat - Szürke L 375mm","Obróbka łącząca górna- Szary L 375mm","Соеденитель верхнего отлива L 375мм Серый","Spojka připojení horní lišty L 375mm Šedá",null,null,null,null,null,null,null,"ART100558",null,"Pa 1675 / 1020","ART102160",50.16,null,null,null,null,null,"Dpo 1650 / 995","Dpo 1840 / 1050",null,null,null,14,"PK10",0,null,null,"ART105505","ART105519","RPK10",null,null,"Po 1710 / 1050","4/6","4/6","4/6","4/6","4/6","4/6","4/6","4/6","4/6","4/6","4/6","4/6","4/6","4/6","4/6","6"]
["CalPort","Calepinage portrait","Portrait Layout","Portrait opstelling","Lattenplan für hochkant-Montage","Álló tájolás","Układ pionowy","Вертикальная раскладка","Rozložení na výšku",null,null,null,null,null,null,null,null,null,"AFJUNL375","AberFaitJonc",null,"NOIR","Abergement Haut Jonction Universel Noir L 375mm  ","Top Junction Flashing - Black L 375mm","Universele verbinding bovenste afdekplaat Zwart L 375mm  ","Verbindungsblech Firstverblechung Schwarz","Felső Csatlakozás Burkolat - Fekete L 375mm","Obróbka łącząca górna - Czarny L 375mm","Соеденитель верхнего отлива L 375мм Чёрный","Spojka připojení horní lišty L 375mm černá",null,null,null,null,null,null,null,"ART100039",null,"Pa 1680 / 1020","ART102167",50.16,null,null,null,null,null,"Dpo 1840 / 995","Dpo 1840 / 1070",null,null,null,15,"PK10",330,null,null,"ART105505","ART105519","RPK10","BANDE_FLEXALU_330",null,"Po 1710 / 1055","4/6","4/6","4/6","4/6","4/6","4/6","4/6","4/6","4/6","4/6","4/6","4/6","4/6","4/6","4/6","6"]
["CalPays","Calepinage paysage","Landscape Layout","Landscape opstelling","Lattenplan für Querformat-Montage","Fekvő tájolás","Układ poziomy","Горизонтальная раскладка","Rozložení na šířku",null,null,null,null,null,null,null,null,null,"ABER_HAUT_ATEC_ALU ","AberFaitC","v.TS-1","ALU","Abergement haut Gris 1001-v.TS-1","Top Centre Flashing Grey 1001-v.TS-1 ",null,"First-Hauptverblechung  1001-v.TS-1 ALU","Felső Közép Burkolat Szürke 1001-v.TS-1","Górna środkowa obróbka blacharska Szary 1001-v.TS-1 ","Верхняя центральная планка 1001-v.TS-1 Серая","Horní středová lišta 1001-v.TS-1 Šedá",null,null,null,null,null,null,null,"ART100441",null,"Pa 1685 / 1020","ART102174",50.16,null,null,null,null,null,"Dpo 1840 / 1020","Dpo 1840 / 1090",null,null,null,16,"PK10",500,null,null,"ART105505","ART105519","RPK10","BANDE_FLEXALU_500",null,"Dpo 1650 / 995","3/5","3/5","3/5","3/5","3/5","3/6","4/6","4/6","4/6","4/6","4/6","4/6","4/6","4/6","4/6","4/6","4/6","6"]
["CorPlakGSE","Plaque GSE correspondante","Corresponding GSE Frame","Overeenkomstige GSE-plaat","Entsprechende GSE-Wanne","Megfelelő GSE keret","Odpowiednia rama GSE","Соответствующая рама GSE","Odpovídající rám GSE",null,null,null,null,null,null,null,null,null,"ABER_HAUT_ATEC_NOI ","AberFaitC","v.TS-1","NOIR","Abergement haut Noir 1001-v.TS-1","Top Centre Flashing Black 1001-v.TS-1 ","Afdekplaat midden boven Zwart 1001-TS1 ","First-Hauptverblechung  1001-v.TS-1 Schwarz","Felső Közép Burkolat Fekete 1001-v.TS-1","Górna środkowa obróbka blacharska Czarny 1001-v.TS-1 ","Верхняя центральная планка 1001-v.TS-1 Чёрная","Horní středová lišta 1001-v.TS-1 Černá",null,null,null,null,null,null,null,"ART100557",null,"Pa 1690 / 1020","ART102181",50.16,null,null,null,null,null,"Dpo 1840 / 1030","Dpo 1840 / 1100",null,null,null,null,null,null,null,null,null,null,null,null,null,"Dpo 1650 / 1070","3/5","3/5","3/5","3/5","3/5","3/6","4/6","4/6","4/6","4/6","4/6","4/6","4/6","4/6","4/6","4/6","4/6","6"]
["FeatCmpPV","Composants du kit","Kit components","Onderdelen van de installatie","Eigenschaften der Installation des Modulfeldes","Csomag elemei","Elementy zestawu","Компоненты комплекта","Součásti soupravy",null,null,null,null,null,null,null,null,null,"AB_HAUT_1001_VA1 ","AberFaitC","v.A-1","NOIR","Abergement haut 1001-v.A-1","Top Centre Flashing 1001-v.A-1 ","Afdekplaat midden boven 1001-A1 ","First-Hauptverblechung  1001-v.A-1 ATEC Schiefer","Felső Közép Burkolat 1001-v.A-1","Górna środkowa obróbka blacharska 1001-v.A-1 ","Верхняя центральная планка 1001-v.A-1","Horní středová lišta 1001-v.A-1",null,null,null,null,null,null,null,"ART101014",null,"Pa 1695 / 1020","ART104182",50.16,null,null,null,null,null,"Dpo 2030 / 995","Dpo 1840 / 1135",null,null,null,null,null,null,null,null,null,null,null,null,null,"Dpo 1650 / 1100","3/5","3/5","3/5","3/5","3/5","3/6","4/6","4/6","4/6","4/6","4/6","4/6","4/6","4/6","4/6","4/6","4/6","6"]
["TypeCov","Type de couverture","Roof covering","Type dakbedekking","Art der Dachbedeckung","Tetőfedés típusa","Rodzaj pokrycia dachu","Кровельное покрытие","Střešní krytina",null,null,null,null,null,null,null,null,null,"AB_HAUT_1046_VA1 ","AberFaitC","v.A-1","NOIR","Abergement haut 1046-v.A-1","Top Centre Flashing 1046-v.A-1 ","Afdekplaat midden boven 1046-A1 ","First-Hauptverblechung  1046-v.A-1 ATEC Schiefer","Felső Közép Burkolat 1046-v.A-1","Górna środkowa obróbka blacharska 1046-v.A-1 ","Верхняя центральная планка 1046-v.A-1","Horní středová lišta 1046-v.A-1",null,null,null,null,null,null,null,"ART101567",null,"Pa 1700 / 1020","ART102188",50.16,null,null,null,null,null,null,"Dpo 2030 / 995",null,null,null,null,null,null,null,null,null,null,null,null,null,"Dpo 1650 / 1135","3/5/11","3/5/11","3/5/11","3/5/11","3/5/11","3/6/12","4/6/12","4/6/12","4/6/12","4/6/12","4/6/12","4/6/12","4/6/12","4/6/12","4/6/12","4/6/12","4/6/12","6/12"]
["Ardoise","Ardoise","Slate","Leien","Schiefer","Pala","Łupek","Шифер","Břidlice",null,null,null,null,null,null,null,null,null,"AB_HAUT_992_VA1 ","AberFaitC","v.A-1","NOIR","Abergement haut 992-v.A-1","Top Centre Flashing 992-v.A-1 ","Afdekplaat midden boven 992-A1 ","First-Hauptverblechung  992-v.A-1 ATEC Schiefer","Felső Közép Burkolat 992-v.A-1","Górna środkowa obróbka blacharska 992-v.A-1 ","Верхняя центральная планка 992-v.A-1","Horní středová lišta 992-v.A-1",null,null,null,null,null,null,null,"ART100820",null,"Pa 1705 / 1020","ART104189",50.16,null,null,null,null,null,null,"Dpo 2030 / 1050",null,null,null,null,null,null,null,null,null,null,null,null,null,"Dpo 1650 / 1140","3/5/11","3/5/11","3/5/11","3/5/11","3/5/11","3/6/12","4/6/12","4/6/12","4/6/12","4/6/12","4/6/12","4/6/12","4/6/12","4/6/12","4/6/12","4/6/12","4/6/12","6/12"]
["TuileC","Tuile à fort galbe","Curved Tiles","Gebogen dakpannen","Kanalziegel","Hullámcserép","Dachówka falista","Изогнутая черепица","Střešní zakřivená taška",null,null,null,null,null,null,null,null,null,"AB_HAUT_SPEC_ALU","AberFaitC","v.TS-1","ALU","Abergement Faîtage central zzz ALU","Top Centre Flashing zzz ALU",null,"First-Hauptverblechung zzz ALU","Felső Közép Burkolat zzz ALU","Górna środkowa obróbka blacharska zzz ALU","Верхняя центральная планка zzz - Серая","Horní středová lišta zzz - Šedá",null,null,null,null,null,null,null,null,null,"Pa 1720 / 1020","ART104196",50.16,null,null,null,null,null,null,"Dpo 2030 / 1055",null,null,null,null,null,null,null,null,null,null,null,null,null,"Dpo 1650 / 1145","3/5/11","3/5/11","3/5/11","3/5/11","3/5/11","3/6/12","4/6/12","4/6/12","4/6/12","4/6/12","4/6/12","4/6/12","4/6/12","4/6/12","4/6/12","4/6/12","4/6/12","6/12"]
["Tuile","Tuile plate","Flat tiles","Platte dakpannen","Ziegel","Lapos cserép","Dachówka płaska","Плоская черепица","Ploché střešní taška",null,null,null,null,null,null,null,null,null,"AB_HAUT_SPEC_NOIR","AberFaitC","v.TS-1","NOIR","Abergement Faîtage central zzz NOIR","Top Centre Flashing zzz BLACK","Afdekplaat midden boven zzz ZWART","First-Hauptverblechung zzz Schwarz","Felső Közép Burkolat zzz FEKETE","Górna środkowa obróbka blacharska zzz Czarny","Верхняя центральная планка zzz - Чёрная","Horní středová lišta zzz - Černá",null,null,null,null,null,null,null,null,null,"Pa 1740 / 1020","ART102195",50.16,null,null,null,null,null,null,"Dpo 2030 / 1135",null,null,null,null,null,null,null,null,null,null,null,null,null,"Dpo 1650 / 1160","3/5/11","3/5/11","3/5/11","3/5/11","3/5/11","3/6/12","4/6/12","4/6/12","4/6/12","4/6/12","4/6/12","4/6/12","4/6/12","4/6/12","4/6/12","4/6/12","4/6/12","6/12"]
["PlaqueN","Plaque nervurée","Trapezoidal sheet","Trapeziumvormige plaat","Trapezblech","Trapézlemez","Blacha trapezowa","Трапециевидный лист","Trapézový plech",null,null,null,null,null,null,null,null,null,"RACC_ABER_HAUT_ARD ","AberFaitJonc","v.A-1","NOIR","Jonction haute Noir-v.A-1","Junction for Top Flashing Black-v.A-1","Verbinding voor bovenste afdekplaat Zwart-A1","Verbindungsblech Firstverblechung v.A-1 Schwarz","Csatlakozás Felső Burkolathoz Fekete-v.A-1","Łącznik do obróbki górnej Czarny-v.A-1","Соеденитель для верхнего отлива v.A-1 - Чёрный","Spojka pro horní lištu v. A1 - Černá",null,null,null,null,null,null,null,"ART100110",null,"Po 1559 / 1046","ART100826",50.16,null,null,null,null,null,null,"Dpo 2030 / 1305",null,null,null,null,null,null,null,null,null,null,null,null,null,"Dpo 1840 / 995","4/6/8","4/6/8","4/6/8","4/6/8","4/6/8","4/6/8","4/6/8","4/6/8","4/6/8","4/6/8","4/6/8","4/6/8","4/6/8","4/6/8","4/6/8","4/6/8","4/6/8","4/6/8","4/6/8","4/6/8","4/6/8","4/6/8","4/6/8","4/6/8","6/8","6/9","6/9","7/9","7/9","7/9","7/9","7/9","7/9","7/9","7/9","7/9","7/9"]
["TuileM","Tuile mécanique","Interlocking tile","In elkaar grijpende dakpan","Falzziegel","Reteszelő tetőcserép","Dachówka zakładkowa","Сцепляющаяся черепица","Zámková taška",null,null,null,null,null,null,null,null,null,"ALAALUDROITATEC ","AberLatATEC","v.TS-1","ALU","Abergement latéral DROIT Gris-v.TS-1","RIGHT Lateral Flashing Grey-v.TS-1 ",null,"Seitliche Verblechung Rechts  v.TS-1 ALU","JOBB Oldalsó Burkolat Szürke-v.TS-1","PRAWA Obróbka boczna Szary-v.TS-1 ","Правая торцевая планка v.TS-1 - Серая","Pravá koncová lišta v.TS-1 -Šedá",null,null,null,null,null,null,null,"ART100079",null,"Po 1575 / 1053","ART101493",50.16,null,null,null,null,null,null,null,null,null,null,null,null,null,null,null,null,null,null,null,null,"Dpo 1840 / 1020","4/6/8","4/6/8","4/6/8","4/6/8","4/6/8","4/6/8","4/6/8","4/6/8","4/6/8","4/6/8","4/6/8","4/6/8","4/6/8","4/6/8","4/6/8","4/6/8","4/6/8","4/6/8","4/6/8","4/6/8","4/6/8","4/6/8","4/6/8","4/6/8","6/8","6/9","6/9","7/9","7/9","7/9","7/9","7/9","7/9","7/9","7/9","7/9","7/9"]
["PlaqueO","Plaque ondulée","Corrugated sheet","Golfplaat","Wellblech","Hullámlemez","Blacha falista","Гофрированный лист","Vlnitý plech",null,null,null,null,null,null,null,null,null,"ALABLKDROITATEC ","AberLatATEC","v.TS-1","NOIR","Abergement latéral DROIT Noir-v.TS-1","RIGHT Lateral Flashing Black-v.TS-1 ","Zijafdekplaat RECHTS Zwart-TS1","Seitliche Verblechung Rechts v.TS-1 Black","JOBB Oldalsó Burkolat Fekete-v.TS-1","PRAWA Obróbka boczna Czarny-v.TS-1 ","Правая торцевая планка v.TS-1 - Чёрная","Pravá koncová lišta v.TS-1 - Černá",null,null,null,null,null,null,null,"ART100973",null,"Po 1575 / 1082","ART101465",50.16,null,null,null,null,null,null,null,null,null,null,null,null,null,null,null,null,null,null,null,null,"Dpo 1840 / 1030","4/6/8","4/6/8","4/6/8","4/6/8","4/6/8","4/6/8","4/6/8","4/6/8","4/6/8","4/6/8","4/6/8","4/6/8","4/6/8","4/6/8","4/6/8","4/6/8","4/6/8","4/6/8","4/6/8","4/6/8","4/6/8","4/6/8","4/6/8","4/6/8","6/8","6/9","6/9","7/9","7/9","7/9","7/9","7/9","7/9","7/9","7/9","7/9","7/9"]
["InclT","Inclinaison (α)","Roof Slope (α)","Dakhelling (α)","Dachneigung (α)","Tető lejtése (α)","Kąt nachylenia dachu (α)","Наклон крыши (α)","Sklon střechy (α)",null,null,null,null,null,null,null,null,null,"ABER_LAT_DROIT_ARD ","AberLatATEC","v.A-1","NOIR","Abergement latéral DROIT Noir-v.A-1","RIGHT Lateral Flashing Black-v.A-1","Zijafdekplaat RECHTS Zwart-A1","Seitliche Verblechung Rechts v.A-1 Black","JOBB Oldalsó Burkolat Fekete-v.A-1","PRAWA Obróbka boczna Czarny-v.A-1","Правая торцевая планка v.A-1 - Чёрная","Pravá koncová lišta v.A-1 - Černá",null,null,null,null,null,null,null,"ART100429",null,"Po 1580 / 808","ART100450",38.28,null,null,null,null,null,null,null,null,null,null,null,null,null,null,null,null,null,null,null,null,"Dpo 1840 / 1040","4/6/8","4/6/8","4/6/8","4/6/8","4/6/8","4/6/8","4/6/8","4/6/8","4/6/8","4/6/8","4/6/8","4/6/8","4/6/8","4/6/8","4/6/8","4/6/8","4/6/8","4/6/8","4/6/8","4/6/8","4/6/8","4/6/8","4/6/8","4/6/8","6/8","6/9","6/9","7/9","7/9","7/9","7/9","7/9","7/9","7/9","7/9","7/9","7/9"]
["RacFait","Raccord haut","Top connection","Bovenste aansluiting","Firstanbindung","Felső csatlakozás","Połączenie na górze","Верхнее соединение","Horní připojení",null,null,null,null,null,null,null,null,null,"ALAALUGAUCHEATEC ","AberLatATEC","v.TS-1","ALU","Abergement latéral GAUCHE Gris-v.TS-1","LEFT Lateral Flashing Grey-v.TS-1 ",null,"Seitliche Verblechung Links  v.TS-1 ALU","BAL Oldalsó Burkolat Szürke-v.TS-1","LEWA Obróbka boczna Szary-v.TS-1 ","Левая торцевая планка v.TS-1 - Серая","Levá koncová lišta v.TS-1 - Šedá",null,null,null,null,null,null,null,"ART100057",null,"Po 1640 / 992","ART100220",50.16,null,null,null,null,null,null,null,null,null,null,null,null,null,null,null,null,null,null,null,null,"Dpo 1840 / 1045","4/6/8","4/6/8","4/6/8","4/6/8","4/6/8","4/6/8","4/6/8","4/6/8","4/6/8","4/6/8","4/6/8","4/6/8","4/6/8","4/6/8","4/6/8","4/6/8","4/6/8","4/6/8","4/6/8","4/6/8","4/6/8","4/6/8","4/6/8","4/6/8","6/8","6/9","6/9","7/9","7/9","7/9","7/9","7/9","7/9","7/9","7/9","7/9","7/9"]
["None1","Aucun","None","Geen","Keine","Nincs","Brak","Никакой","Nic",null,null,null,null,null,null,null,null,null,"ALABLKGAUCHEATEC ","AberLatATEC","v.TS-1","NOIR","Abergement latéral GAUCHE Noir-v.TS-1","LEFT Lateral Flashing Black-v.TS-1 ","Zijafdekplaat LINKS Zwart-TS1","Seitliche Verblechung Links v.TS-1 Black","BAL Oldalsó Burkolat Fekete-v.TS-1","LEWA Obróbka boczna Czarny-v.TS-1 ","Левая торцевая планка v.TS-1 - Чёрная","Levá koncová lišta v.TS-1 - Černá",null,null,null,null,null,null,null,"ART101030",null,"Po 1640 / 1001","ART100700",50.16,null,null,null,null,null,null,null,null,null,null,null,null,null,null,null,null,null,null,null,null,"Dpo 1840 / 1050","4/6/8","4/6/8","4/6/8","4/6/8","4/6/8","4/6/8","4/6/8","4/6/8","4/6/8","4/6/8","4/6/8","4/6/8","4/6/8","4/6/8","4/6/8","4/6/8","4/6/8","4/6/8","4/6/8","4/6/8","4/6/8","4/6/8","4/6/8","4/6/8","6/8","6/9","6/9","7/9","7/9","7/9","7/9","7/9","7/9","7/9","7/9","7/9","7/9"]
["AberFait","Abergement","Flashing","Afdekplaat  ","Firstverblechung","Burkolat","Obróbka blacharska","Доборный элемент","Krycí lišty",null,null,null,null,null,null,null,null,null,"ABER_LAT_GAUCH_AR ","AberLatATEC","v.A-1","NOIR","Abergement latéral GAUCHE Noir-v.A-1","LEFT Lateral Flashing Black-v.A-1","Zijafdekplaat LINKS Zwart-A1","Seitliche Verblechung Links v.A-1 Black","BAL Oldalsó Burkolat Fekete-v.A-1","LEWA Obróbka boczna Czarny-v.A-1","Левая торцевая планка v.A-1 - Чёрная","Levá koncová lišta v.A-1 - Černá",null,null,null,null,null,null,null,"ART100568",null,"Po 1640 / 1001 P33","ART100230",50.16,null,null,null,null,null,null,null,null,null,null,null,null,null,null,null,null,null,null,null,null,"Dpo 1840 / 1070","4/6/8","4/6/8","4/6/8","4/6/8","4/6/8","4/6/8","4/6/8","4/6/8","4/6/8","4/6/8","4/6/8","4/6/8","4/6/8","4/6/8","4/6/8","4/6/8","4/6/8","4/6/8","4/6/8","4/6/8","4/6/8","4/6/8","4/6/8","4/6/8","6/8","6/9","6/9","7/9","7/9","7/9","7/9","7/9","7/9","7/9","7/9","7/9","7/9"]
["RacEgout","Raccord bas","Eaves connection ","Dakrandaansluiting","Dichtigkeitsanbindung traufeseitig","Eresz csatlakozás","Dolne połączenie","Соединение карниза ","Okapové spojení",null,null,null,null,null,null,null,null,null,"ALUAP30TUILBRUTRE3","AberLatUniv","P30","ALU","Abergement Latéral Universel P30 Tuile Gris  ","Lateral Flashing P30 - Grey",null,"Seitliche Verblechung Universal P30 ALU","Oldalsó Burkolat P30 - Szürke","Obróbka boczna P30 - Szary","Торцевая планка Р30 - Серая","Koncová lišta P30 - Šedá",null,null,null,null,null,null,null,"ART100703",null,"Po 1686 / 1016","ART100702",50.16,null,null,null,null,null,null,null,null,null,null,null,null,null,null,null,null,null,null,null,null,"Dpo 1840 / 1090","4/6/8","4/6/8","4/6/8","4/6/8","4/6/8","4/6/8","4/6/8","4/6/8","4/6/8","4/6/8","4/6/8","4/6/8","4/6/8","4/6/8","4/6/8","4/6/8","4/6/8","4/6/8","4/6/8","4/6/8","4/6/8","4/6/8","4/6/8","4/6/8","6/8","6/9","6/9","7/9","7/9","7/9","7/9","7/9","7/9","7/9","7/9","7/9","7/9"]
["PowerMod","Puissance","Module Power","Module vermogen","Modulleistung","Modul teljesítménye","Moc modułu","Модуль питания","Modul napájení",null,null,null,null,null,null,null,null,null,"ALUNP30TUILNOIRRE3","AberLatUniv","P30","NOIR","Abergement Latéral Universel P30 Tuile Noir","Lateral Flashing P30 - Black","Universele zijafdekplaat P30 - Zwart","Seitliche Verblechung Universal P30 Schwarz","Oldalsó Burkolat P30 - Fekete","Obróbka boczna P30 - Czarny","Торцевая планка Р30 - Чёрная","Koncová lišta P30 - Černá",null,null,null,null,null,null,null,"ART100927",null,"Po 1710 / 995","ART104168",50.16,null,null,null,null,null,null,null,null,null,null,null,null,null,null,null,null,null,null,null,null,"Dpo 1840 / 1100","4/6/8","4/6/8","4/6/8","4/6/8","4/6/8","4/6/8","4/6/8","4/6/8","4/6/8","4/6/8","4/6/8","4/6/8","4/6/8","4/6/8","4/6/8","4/6/8","4/6/8","4/6/8","4/6/8","4/6/8","4/6/8","4/6/8","4/6/8","4/6/8","6/8","6/9","6/9","7/9","7/9","7/9","7/9","7/9","7/9","7/9","7/9","7/9","7/9"]
["AberLat","Raccord latéral","Lateral connection","Zij aansluiting","Seitliche Verblechung","Oldalsó csatlakozás","Połączenie boczne","Боковое соединение","Boční spojení",null,null,null,null,null,null,null,null,null,"ALUA","AberLatUniv",null,"ALU","Abergement Latéral Universel Gris ","Lateral Flashing - Grey",null,"Seitliche Verblechung Universal ALU","Oldalsó Burkolat - Szürke","Obróbka boczna - Szary","Торцевая планка - Серая","Koncová lišta - Šedá",null,null,null,null,null,null,null,"ART100673",null,"Po 1710 / 1000","ART102265",50.16,null,null,null,null,null,null,null,null,null,null,null,null,null,null,null,null,null,null,null,null,"Dpo 1840 / 1135","4/6/8/12/14","4/6/8/12/14","4/6/8/12/14","4/6/8/12/14","4/6/8/12/14","4/6/8/12/14","4/6/8/12/14","4/6/8/12/14","4/6/8/12/14","4/6/8/12/14","4/6/8/12/14","4/6/8/12/14","4/6/8/12/14","4/6/8/12/14","4/6/8/12/14","4/6/8/12/14","4/6/8/12/14","4/6/8/12/14","4/6/8/12/14","4/6/8/12/14","4/6/8/12/14","4/6/8/12/14","4/6/8/12/14","4/6/8/12/14","6/8/12/14","6/9/12/15","6/9/12/15","7/9/13/15","7/9/13/15","7/9/13/15","7/9/13/15","7/9/13/15","7/9/13/15","7/9/13/15","7/9/13/15","7/9/13/15","7/9/13/15"]
["NbrEtrier","Nombre d'étriers","Number of Clamps","Aantal klemmen","Anzahl Klemmen","Rögzítőbilincsek száma","Liczba zacisków","Количество зажимов","Počet svorek",null,null,null,null,null,null,null,null,null,"ALUN","AberLatUniv",null,"NOIR","Abergement Latéral Universel Noir","Lateral Flashing - Black","Universele zijafdekplaat - Zwart","Seitliche Verblechung Universal Schwarz","Oldalsó Burkolat - Fekete","Obróbka boczna - Czarny","Торцевая планка - Чёрная","Koncová lišta - Černá",null,null,null,null,null,null,null,"ART100494",null,"Po 1710 / 1005","ART102272",50.16]
["LargRooflex","Largeur FLEXALU","FLEXALU Width","Breedte FLEXALU","Breite FLEXALU","FLEXALU szélessége","Szerokość taśmy hydroizolacyjnej","Ширина FLEXALU","Šířka FLEXALU",null,null,null,null,null,null,null,null,null,"CORNIERELAQUEB","Corniere",null,"NOIR","Abergement Haut Cornière Laquée Noire L1400mm (pour la fixation des abergements centraux)","Top Corner Piece Flashing - Black L1400mm (To Join Module to Top Centre Flashings) ","Hoekstuk Zwart L1400 mm om de module te verbinden met de afdekplaat midden boven","Verbindungsstück (zur Befestigung der zentralen Verblechung) Schwarz","Felső Sarok Elem Burkolat - Fekete L1400mm (Modul csatlakoztatásához a Felső Közép Burkolathoz)","Narożnik górny czarny L1400mm (do mocowania środkowych obróbek blacharskich)","Верхняя угловая крышка L1400мм (для крепления модуля к верхней центральной планке) Чёрная","Horní rohový kryt L1400mm (pro upevnění modulu na horní středovou lištu) černý",null,null,null,null,null,null,null,"ART101409",null,"Po 1710 / 1010","ART104175",50.16]
["Noir","Noir","Black","Zwart","Schwarz","Fekete","Czarny","Чёрный","Černý",null,null,null,null,null,null,null,null,null,"CORNIERE","Corniere",null,"ALU","Abergement Haut Cornière Grise L1400mm (pour la fixation des abergements centraux)","Top Corner Piece Flashing - Grey L1400mm (To Join Module to Top Centre Flashings) ",null,"Verbindungsstück (zur Befestigung der zentralen Verblechung) ALU","Felső Sarok Elem Burkolat - Szürke L1400mm (Modul csatlakoztatásához a Felső Közép Burkolathoz)","Narożnik górny szary L1400mm (do mocowania środkowych obróbek blacharskich)","Верхняя угловая крышка L1400мм (для крепления модуля к верхней центральной планке) Серая","Horní rohový kryt L1400mm (pro upevnění modulu na horní středovou lištu) šedý",null,null,null,null,null,null,null,"ART100867",null,"Po 1710 / 1020","ART102279",50.16]
["Rouge","Rouge","Red","Rood","Rot","Piros","Czerwony","Красный","Červený",null,null,null,null,null,null,null,null,null,"CROCHET","Crochet",null,null,"Crochet de Fixation d'Abergement In Roof","GSE Flashing Hook","GSE bevestigingshaakjes afdekplaten","Hafte zur Befestigung der Verblechung","GSE Burkoló Bilincs","GSE Hak do obróbki blacharskiej","Зажим GSE","Svorka GSE",null,null,null,null,null,null,null,"ART100633",null,"Po 1710 / 1025","ART102286",50.16]
["RoofDisplay","Afficher le toit","View the Roof","Bekijk het dak","Dach anzeigen","Tetőnézet","Widok dachu","Посмотреть крышу","Pohled na střechu",null,null,null,null,null,null,null,null,"EtrDblH14NOIR","ART105575","EtrDbl","H14","NOIR","Etrier Double H14 - Acier Inox - Noir - In Roof","Double Clamp H14 - Steel - Black - In Roof","H14 Middenklem - Inox - Zwart - In Roof","Verstärkte Mittel-Klemme H14 Schwarz","Középkapocs H4 - Acél - Fekete - Tetőszerkezetbe építő r.","Podwójny zacisk H14 - Stal - Czarny - In Roof ","Двухсторонний зажим Н14 - Стальной - Чёрный - In Roof ","Oboustranná svorka H14 - ocel - černá - in Roof",null,null,null,null,null,null,null,"ART105575",null,"Po 1710 / 1030","ART102293",50.16]
["HomeBt","Accueil","Home","Homepage","Startseite","Főoldal","Home","Домой","Domů",null,null,null,null,null,null,null,null,"EtrDblH16ALU","EDH162014ALU (ASV09-35G)","EtrDbl","H16","ALU","Etrier Double H16 - Acier Inox - Gris - In Roof","Double Clamp H16 - Steel - Grey - In Roof ",null,"Verstärkte Mittel-Klemme H16","Középkapocs H16 - Acél - Szürke - Tetőszerkezetbe építő r.","Podwójny zacisk H16 - Stal - Szary - In Roof ","Двухсторонний зажим Н16 - Стальной - Серый - In Roof ","Oboustranná svorka H16 - ocel - šedá - in Roof",null,null,null,null,null,null,null,"ART100045",null,"Po 1710 / 1040","ART103174",50.16]
["CalInstr","Colorier le toit (surface encadrée ci-dessous) à l'aide de la souris, en selectionnant les cellules/cases correspondant aux modules, pour créer le champ PV souhaité.","Color the roof (framed surface below) using the mouse, by selecting the cells / boxes corresponding to the modules, to create the desired PV Plant.","Kleur het dak (omkaderd oppervlak hieronder) met behulp van de muis en slecteer de cellen/vakjes die overeenkomen met de modules om het gewenste PV-veld te creëren","das Dach (untenstehende, gerahmte Fläche) mit Hilfe der Maus markieren und über das Auswählen der einzelnen Zellen das entsprechende PV-Modulfeld erstellen","Az egér használatával adja meg a kívánt napelem panel elrendezést, a következő cellák kiválasztásával.","Pokoloruj dach (obszar w ramce poniżej) za pomocą myszy, wybierając komórki / pola odpowiadające modułom, aby utworzyć żądaną instalację fotowoltaiczną.","Используйте мышь, чтобы указать желаемую схему расположения солнечных панелей, выбрав следующие ячейки.","Vybarvěte střechu (dole zarámovaný povrch) pomocí myši výběrem buněk / polí odpovídajících modulům a vytvořte požadovaný FV systém.",null,null,null,null,null,null,null,null,"EtrDblH16NOIR","EDH162014N (ASV09-35V)","EtrDbl","H16","NOIR","Etrier Double H16 - Acier Inox - Noir - In Roof ","Double Clamp H16 - Steel - Black - In Roof ","H16 Middenklem - Inox - Zwart - In Roof","Verstärkte Mittel-Klemme H16 Schwarz","Középkapocs H16 - Acél - Fekete - Tetőszerkezetbe építő r.","Podwójny zacisk H16 - Stal - Czarny - In Roof ","Двухсторонний зажим Н16 - Стальной - Чёрный - In Roof ","Oboustranná svorka H16 - ocel - černá - in Roof",null,null,null,null,null,null,null,"ART100482",null,"Po 1710 / 1045","ART104728",50.16]
["NbrRows","Nombres de lignes","Number of Lines","Aantal rijen","Anzahl der Zeilen","Sorok száma","Ilość linii","Количество рядов","Počet řádků",null,null,null,null,null,null,null,null,"EtrDblH19ALU","EDH192014ALU (ASV-38G)","EtrDbl","H19","ALU","Etrier Double H19 - Acier Inox - Gris - In Roof ","Double Clamp H19 - Steel - Grey - In Roof  ",null,"Verstärkte Mittel-Klemme H19","Középkapocs H19 - Acél - Szürke - Tetőszerkezetbe építő r.","Podwójny zacisk H19 - Stal - Szary - In Roof  ","Двухсторонний зажим Н19 - Стальной - Серый - In Roof ","Oboustranná svorka H19 - ocel - šedá - in Roof",null,null,null,null,null,null,null,"ART100171",null,"Po 1710 / 1050","ART102300",50.16]
["NbrCol","Nombres de colonnes","Number of Columns","Aantal kolommen","Anzahl der Spalten","Oszlopok száma","Ilość kolumn","Количество столбцов","Počet sloupců",null,null,null,null,null,null,null,null,"EtrDblH19NOIR","EDH192014N (ASV-38V)","EtrDbl","H19","NOIR","Etrier Double H19 - Acier Inox - Noir - In Roof ","Double Clamp H19 - Steel - Black - In Roof ","H19 Middenklem - Inox - Zwart - In Roof","Verstärkte Mittel-Klemme H19 Schwarz","Középkapocs H19 - Acél - Fekete - Tetőszerkezetbe építő r.","Podwójny zacisk H19 - Stal - Czarny - In Roof ","Двухсторонний зажим Н19 - Стальной - Чёрный - In Roof ","Oboustranná svorka H19 - ocel - černá - in Roof",null,null,null,null,null,null,null,"ART100548",null,"Po 1710 / 1055","ART104413",50.16]
["NbrMod","Nombres modules","Number of Modules","Aantal zonnepanelen","Anzahl der Module","Modulok száma","Ilość modułów","Количество модулей","Počet modulů",null,null,null,null,null,null,null,null,"EtrDblH21ALU","EDH212014ALU (ASV09-40G)","EtrDbl","H21","ALU","Etrier Double H21 - Acier Inox - Gris - In Roof ","Double Clamp H21 - Steel - Grey - In Roof  ",null,"Verstärkte Mittel-Klemme H21","Középkapocs H21 - Acél - Szürke - Tetőszerkezetbe építő r.","Podwójny zacisk H21 - Stal - Szary - In Roof  ","Двухсторонний зажим Н21 - Стальной - Серый - In Roof ","Oboustranná svorka H21 - ocel - šedá - in Roof",null,null,null,null,null,null,null,"ART100597",null,"Po 1710 / 1060","ART102307",50.16]
["Ernergy","Energie","Energy","Energie","Energie","Energia","Energia ","Мощность","Napájení",null,null,null,null,null,null,null,null,"EtrDblH21NOIR","EDH212014N (ASV09-40V)","EtrDbl","H21","NOIR","Etrier Double H21 - Acier Inox - Noir - In Roof ","Double Clamp H21 - Steel - Black - In Roof ","H21 Middenklem - Inox - Zwart - In Roof","Verstärkte Mittel-Klemme H21 Schwarz","Középkapocs H21 - Acél - Fekete - Tetőszerkezetbe építő r.","Podwójny zacisk H21 - Stal - Czarny - In Roof ","Двухсторонний зажим Н21 - Стальной - Чёрный - In Roof ","Oboustranná svorka H21 - ocel - černá - in Roof",null,null,null,null,null,null,null,"ART100744",null,"Dpo 1650 / 995","ART105141",27.72]
["ResetCPV","Effacer champ PV","Erase PV Array","Verwijder het PV-veld","Modulfeld löschen","Elrendezés törlése","Usuń macierz PV","Стереть раскладку PV-модулей","Erase PV Array",null,null,null,null,null,null,null,null,"EtrDblH23ALU","EDH232014ALU (ASV09-42G)","EtrDbl","H23","ALU","Etrier Double H23 - Acier Inox - Gris - In Roof ","Double Clamp H23 - Steel - Grey - In Roof  ",null,"Verstärkte Mittel-Klemme H23","Középkapocs H23 - Acél - Szürke - Tetőszerkezetbe építő r.","Podwójny zacisk H23 - Stal - Szary - In Roof  ","Двухсторонний зажим Н23 - Стальной - Серый - In Roof ","Oboustranná svorka H23 - ocel - šedá - in Roof",null,null,null,null,null,null,null,"ART101192",null,"Dpo 1650 / 1070","ART105148",27.72]
["Purchase","Devis","Cost Estimate","Kostenraming","Zitat","Becsült költség","Szacowanie kosztów","Смета расходов","Odhad nákladů",null,null,null,null,null,null,null,null,"EtrDblH23NOIR","EDH232014N (ASV9-42V)","EtrDbl","H23","NOIR","Etrier Double H23 - Acier Inox - Noir - In Roof ","Double Clamp H23 - Steel - Black - In Roof ","H23 Middenklem - Inox - Zwart - In Roof","Verstärkte Mittel-Klemme H23 Schwarz","Középkapocs H23 - Acél - Fekete - Tetőszerkezetbe építő r.","Podwójny zacisk H23 - Stal - Czarny - In Roof ","Двухсторонний зажим Н23 - Стальной - Чёрный - In Roof ","Oboustranná svorka H23 - ocel - černá - in Roof",null,null,null,null,null,null,null,"ART100658",null,"Dpo 1650 / 1100","ART105155",27.72]
["NbrPiece","Nombre de pièces","Number of Pieces","Aantal onderdelen","Menge pro Artikel","Elemek száma","Ilość sztuk ","Количество штук","Počet kusů",null,null,null,null,null,null,null,null,"EtrDblH26ALU","EDH262014ALU (ASV09-46G)","EtrDbl","H26","ALU","Etrier Double H26 - Acier Inox - Gris - In Roof ","Double Clamp H26 - Steel - Grey - In Roof  ",null,"Verstärkte Mittel-Klemme H26","Középkapocs H26 - Acél - Szürke - Tetőszerkezetbe építő r.","Podwójny zacisk H26 - Stal - Szary - In Roof  ","Двухсторонний зажим Н26 - Стальной - Серый - In Roof ","Oboustranná svorka H26 - ocel - šedá - in Roof",null,null,null,null,null,null,null,"ART102202",null,"Dpo 1650 / 1135","ART105162",27.72]
["PlakGSEPays","Plaques GSE Paysage","GSE Frames Landscape","GSE Landscape plaat","GSE-Wanne Querformat","GSE Fekvő tájolású keret","Ramy GSE Poziome","Горизонтальная рама GSE","GSE rámy na šířku",null,null,null,null,null,null,null,null,"EtrDblH26NOIR","EDH262014N (ASV09-46V)","EtrDbl","H26","NOIR","Etrier Double H26 - Acier Inox - Noir - In Roof ","Double Clamp H26 - Steel - Black - In Roof ","H26 Middenklem - Inox - Zwart - In Roof","Verstärkte Mittel-Klemme H26 Schwarz","Középkapocs H26 - Acél - Fekete - Tetőszerkezetbe építő r.","Podwójny zacisk H26 - Stal - Czarny - In Roof ","Двухсторонний зажим Н26 - Стальной - Чёрный - In Roof ","Oboustranná svorka H26 - ocel - černá - in Roof",null,null,null,null,null,null,null,"ART102335",null,"Dpo 1650 / 1140","ART105169",27.72]
["PlakGSEPort","Plaques GSE Portrait","GSE Frames Portrait","GSE Portrait plaat","GSE-Wanne Hochkant","GSE Álló tájolású keret","Ramy GSE Pionowe","Вертикальная рама GSE","GSE svislý rámy",null,null,null,null,null,null,null,null,"EtrDblH27ALU","EDH272014ALU (ASV09-46G)","EtrDbl","H27","ALU","Etrier Double H27 - Acier Inox - Gris - In Roof ","Double Clamp H27 - Steel - Grey - In Roof  ",null,"Verstärkte Mittel-Klemme H27","Középkapocs H27 - Acél - Szürke - Tetőszerkezetbe építő r.","Podwójny zacisk H27 - Stal - Szary - In Roof  ","Двухсторонний зажим Н27 - Стальной - Серый - In Roof ","Oboustranná svorka H27 - ocel - šedá - in Roof",null,null,null,null,null,null,null,"ART100006",null,"Dpo 1650 / 1145","ART105722",27.72]
["AberLatUniv","Abergement latéral Universel","Universal Lateral Flashing","Universele zijafdekplaat ","Seitliche Verblechung Universal","Univerzális oldalsó/laterális burkolat","Uniwersalna obróbka do bocznej krawędzi dachu","Универсальная торцевая планка","Univerzální koncová lišta",null,null,null,null,null,null,null,null,"EtrDblH27NOIR","EDH272014N (ASV09-46V)","EtrDbl","H27","NOIR","Etrier Double H27 - Acier Inox - Noir - In Roof ","Double Clamp H27 - Steel - Black - In Roof ","H27 Middenklem - Inox - Zwart - In Roof","Verstärkte Mittel-Klemme H27 Schwarz","Középkapocs H27 - Acél - Fekete - Tetőszerkezetbe építő r.","Podwójny zacisk H27 - Stal - Czarny - In Roof ","Двухсторонний зажим Н27 - Стальной - Чёрный - In Roof ","Oboustranná svorka H27 - ocel - černá - in Roof",null,null,null,null,null,null,null,"ART100242",null,"Dpo 1650 / 1160","ART105176",27.72]
["AberLatATEC","Abergement latéral","Lateral Flashing","Zijafdekplaat","Seitliche Verblechung","Oldalsó burkolat","Obróbka do bocznej krawędzi dachu","Торцевая планка","Koncová lišta",null,null,null,null,null,null,null,null,"EtrDblH31ALU","EDH312014ALU (ASV09-50G)","EtrDbl","H31","ALU","Etrier Double H31 - Acier Inox - Gris - In Roof ","Double Clamp H31 - Steel - Grey - In Roof  ",null,"Verstärkte Mittel-Klemme H31","Középkapocs H31 - Acél - Szürke - Tetőszerkezetbe építő r.","Podwójny zacisk H31 - Stal - Szary - In Roof  ","Двухсторонний зажим Н31 - Стальной - Серый - In Roof ","Oboustranná svorka H31 - ocel - šedá - in Roof",null,null,null,null,null,null,null,"ART101326",null,"Dpo 1840 / 995","ART105183",29.04]
["AberFaitD","Abergement Faîtage Droit","Top Right Corner Flashing","Hoekstuk rechtsboven","Eckverblechung rechts","Jobb felső sarok burkolat","Obróbka blacharska - prawy narożnik","Планка верхнего правого угла","Lišta pravého horního rohu",null,null,null,null,null,null,null,null,"EtrDblH31NOIR","EDH312014N (ASV09-50V)","EtrDbl","H31","NOIR","Etrier Double H31 - Acier Inox - Noir - In Roof ","Double Clamp H31 - Steel - Black - In Roof ","H31 Middenklem - Inox - Zwart - In Roof","Verstärkte Mittel-Klemme H31 Schwarz","Középkapocs H31 - Acél - Fekete - Tetőszerkezetbe építő r.","Podwójny zacisk H31 - Stal - Czarny - In Roof ","Двухсторонний зажим Н31 - Стальной - Чёрный - In Roof ","Oboustranná svorka H31 - ocel - černá - in Roof",null,null,null,null,null,null,null,"ART101288",null,"Dpo 1840 / 1020","ART105190",29.04]
["AberFaitG","Abergement Faîtage Gauche","Top Left Corner Flashing","Hoekstuk linksboven","Eckverblechung links","Bal felső sarok burkolat","Obróbka blacharska - lewy narożnik","Планка верхнего левого угла","Lišta levého horního rohu",null,null,null,null,null,null,null,null,"EtrSplH16ALU","ESH162014ALU (ASV08-35G)","EtrSpl","H16","ALU","Etrier Simple H16 - Acier Inox - Gris - In Roof ","Simple Clamp H16 - Steel - Grey - In Roof  ",null,"Verstärkte Rand-Klemme H16","Végkapocs H16 - Acél - Szürke - Tetőszerkezetbe építő r.","Prosty zacisk H16 - Stal - Szary - In Roof  ","Односторонний зажим Н16 - Стальной - Серый - In Roof","Jednostranná svorka H16 - ocel - šedá - in Roof",null,null,null,null,null,null,null,"ART100376",null,"Dpo 1840 / 1030","ART105197",29.04]
["AberFaitDATEC","Abergement Angle Droit","Top Right Angle Flashing","Hoekafdekplaat rechtsboven","Winkelverblechung rechts","Jobb oldali szög burkolat","Obróbka kątowa - góra, prawa strona","Верхняя правая угловая планка","Pravá horní rohová lišta",null,null,null,null,null,null,null,null,"EtrSplH16NOIR","ESH162014N (ASV08-35V)","EtrSpl","H16","NOIR","Etrier Simple H16 - Acier Inox - Noir - In Roof ","Simple Clamp H16 - Steel - Black - In Roof ","H16 Eindklem - Inox - Zwart - In Roof","Verstärkte Rand-Klemme H16 Schwarz","Végkapocs H16 - Acél - Fekete - Tetőszerkezetbe építő r.","Prosty zacisk H16 - Stal - Czarny - In Roof ","Односторонний зажим Н16 - Стальной - Чёрный - In Roof ","Jednostranná svorka H16 - ocel - černá - in Roof",null,null,null,null,null,null,null,"ART100814",null,"Dpo 1840 / 1040","ART105729",29.04]
["AberFaitGATEC","Abergement Angle Gauche","Top Left Angle Flashing","Hoekafdekplaat linksboven","Winkelverblechung links","Bal oldali szög burkolat","Obróbka kątowa - góra, lewa strona ","Верхняя левая угловая планка","Horní levá rohová lišta",null,null,null,null,null,null,null,null,"EtrSplH16ALU","ESH162014ALU","EtrSpl","H16","ALU","Etrier Simple H16 - Acier Inox - Gris - In Roof ","Simple Clamp H16 - Steel - Grey - In Roof  ",null,"Verstärkte Rand-Klemme H16","Végkapocs H16 - Acél - Szürke - Tetőszerkezetbe építő r.","Prosty zacisk H16 - Stal - Szary - In Roof  ","Односторонний зажим Н16 - Стальной - Серый - In Roof","Jednostranná svorka H16 - ocel - šedá - in Roof",null,null,null,null,null,null,null,"ART100376",null,"Dpo 1840 / 1045","ART105358",29.04]
["AberFaitC","Abergement Faîtage central","Top Centre Flashing","Afdekplaat midden boven","First-Hauptverblechung","Felső-közép burkolat","Obróbka blacharska - góra, środek","Верхняя центральная планка","Horní středová lišta",null,null,null,null,null,null,null,null,"EtrSplH16NOIR","ESH162014N","EtrSpl","H16","NOIR","Etrier Simple H16 - Acier Inox - Noir - In Roof ","Simple Clamp H16 - Steel - Black - In Roof ","H16 Eindklem - Inox - Zwart - In Roof","Verstärkte Rand-Klemme H16 Schwarz","Végkapocs H16 - Acél - Fekete - Tetőszerkezetbe építő r.","Prosty zacisk H16 - Stal - Czarny - In Roof ","Односторонний зажим Н16 - Стальной - Чёрный - In Roof ","Jednostranná svorka H16 - ocel - černá - in Roof",null,null,null,null,null,null,null,"ART100814",null,"Dpo 1840 / 1050","ART105365",29.04]
["AberFaitCATEC","Abergement Faîtage","Centre Flashing","Afdekplaat midden  ","First-Hauptverblechung","Közép burkolat","Obróbka blacharska - środek","Центральная планка","Středová lišta",null,null,null,null,null,null,null,null,"EtrSplH19ALU","ESH192014ALU (ASV08-38G)","EtrSpl","H19","ALU","Etrier Simple H19 - Acier Inox - Gris - In Roof ","Simple Clamp H19 - Steel - Grey - In Roof ",null,"Verstärkte Rand-Klemme H19","Végkapocs H19 - Acél - Szürke - Tetőszerkezetbe építő r.","Prosty zacisk H19 - Stal - Szary - In Roof ","Односторонний зажим Н19 - Стальной - Серый - In Roof","Jednostranná svorka H19 - ocel - šedá - in Roof",null,null,null,null,null,null,null,"ART101152",null,"Dpo 1840 / 1070","ART105204",29.04]
["SelecATECModmsg1","Aucun module ATEC n'a été sélectionné.","No ATEC module has been selected.","Er is geen ATEC-zonnepaneel geselecteerd.","Es wurde kein ATEC-Modul ausgewählt.","Nem választott ATEC modult.","Nie wybrano żadnego modułu ATEC.","Не выбран ни один модуль ATEC.","Nebyl vybrán žádný modul ATEC.",null,null,null,null,null,null,null,null,"EtrSplH19NOIR","ESH192014N (ASV08-38V)","EtrSpl","H19","NOIR","Etrier Simple H19 - Acier Inox - Noir - In Roof","Simple Clamp H19 - Steel - Black - In Roof ","H19 Eindklem - Inox - Zwart - In Roof","Verstärkte Rand-Klemme H19 Schwarz","Végkapocs H19 - Acél - Fekete - Tetőszerkezetbe építő r.","Prosty zacisk H19 - Stal - Czarny - In Roof ","Односторонний зажим Н19 - Стальной - Чёрный - In Roof ","Jednostranná svorka H19 - ocel - černá - in Roof",null,null,null,null,null,null,null,"ART101299",null,"Dpo 1840 / 1090","ART105736",29.04]
["Corniere","Corniere ( pour Faîtage central)","Corner Piece (To Join Module to Top Centre Flashings)","Hoekstuk om de module te verbinden met de afdekplaat midden boven","Verbindungsstück (zur Befestigung der zentralen Verblechung)","Sarok elem (Modul csatlakoztatása a felső-közép burkolathoz)","Narożnik (dla kalenicy środkowej)","Угловой элемент (для соединения модуля с верхней центральной планкой)","Rohový díl (ke spojení modulu s horním středovým lemováním)",null,null,null,null,null,null,null,null,"EtrSplH21ALU","ESH212014ALU (ASV08-40G)","EtrSpl","H21","ALU","Etrier Simple H21 - Acier Inox - Gris - In Roof ","Simple Clamp H21 - Steel - Grey - In Roof ",null,"Verstärkte Rand-Klemme H21","Végkapocs H21 - Acél - Szürke - Tetőszerkezetbe építő r.","Prosty zacisk H21 - Stal - Szary - In Roof ","Односторонний зажим Н21 - Стальной - Серый - In Roof","Jednostranná svorka H21 - ocel - šedá - in Roof",null,null,null,null,null,null,null,"ART101279",null,"Dpo 1840 / 1100","ART105743",29.04]
["Rivets","Rivets Pop (4 rivets de fixation par corniere de faîtage)","Pop Rivet (4-Fixations Rivet for Top Centre Flashing)","Popnagel (4-bevestigingsnagels voor afdekplaat midden boven)","Pop-Niete (Halter für Verbindungsstücke)","Popszegecs (4-rögzítő szegecs a felső-közép burkolathoz)","Nity (4 nity mocujące na kątownik kalenicy)","Алюминиевая поп-заклепка (4 крепежные заклепки для верхней цетральной планки)","Trhací nýt hliník (4 upevňovací nýty pro horní středovou lištu)",null,null,null,null,null,null,null,null,"EtrSplH21NOIR","ESH212014N (ASV08-40V)","EtrSpl","H21","NOIR","Etrier Simple H21 - Acier Inox - Noir - In Roof ","Simple Clamp H21 - Steel - Black - In Roof  ","H21 Eindklem - Inox - Zwart - In Roof","Verstärkte Rand-Klemme H21 Schwarz","Végkapocs H21 - Acél - Fekete - Tetőszerkezetbe építő r.","Prosty zacisk H21 - Stal - Czarny - In Roof  ","Односторонний зажим Н21 - Стальной - Чёрный - In Roof ","Jednostranná svorka H21 - ocel - černá - in Roof",null,null,null,null,null,null,null,"ART100495",null,"Dpo 1840 / 1135","ART105211",29.04]
["VisRondP","Vis + rondelle (6 par plaque) ALU","Selt-Trapping Screw + GSE Washer Silver ( 6 per Frame)","Zelftapper + sluitring (6 per plaat) ALU","Schraube + GSE Unterlegscheibe (6 pro Platte) ALU","Önmetsző csavar + GSE alátét EZÜST szín (6db/keret)","Wkręt samogwintujący + podkładka GSE srebrna (6 na ramkę)","Саморез + шайба GSE - Серебренная (6 штук на раму)","Šroub + podložka GSE - Stříbrná (6 kusů na rám)",null,null,null,null,null,null,null,null,"EtrSplH23ALU","ESH232014ALU (ASV08-42G)","EtrSpl","H23","ALU","Etrier Simple H23 - Acier Inox - Gris - In Roof ","Simple Clamp H23 - Steel - Grey - In Roof  ",null,"Verstärkte Rand-Klemme H23","Végkapocs H23 - Acél - Szürke - Tetőszerkezetbe építő r.","Prosty zacisk H23 - Stal - Szary - In Roof  ","Односторонний зажим Н23 - Стальной - Серый - In Roof","Jednostranná svorka H23 - ocel - šedá - in Roof",null,null,null,null,null,null,null,"ART101215",null,"Dpo 2030 / 995","ART00001",29.04]
["VisRondE","Vis + rondelle pour fixation des étriers","Selt-Trapping Screw + GSE Washer Black to fix Clamp","Zelftapper + GSE sluitring zwart voor bevestiging klemmen ","Schraube + Unterlegscheibe zur Befestigung der Modulklemme","Önmetsző csavar + GSE alátét FEKETE szín - Rögzítőkapocshoz","Wkręt samogwintujący + podkładka GSE czarna do mocowania zacisku","Саморез + шайба GSE - Черного цвета для, фиксации зажима","Šroub + podložka GSE - Černá, pro upevnění svorky",null,null,null,null,null,null,null,null,"EtrSplH23NOIR","ESH232014N (ASV08-42V)","EtrSpl","H23","NOIR","Etrier Simple H23 - Acier Inox - Noir - In Roof ","Simple Clamp H23 - Steel - Black- In Roof ","H23 Eindklem - Inox - Zwart - In Roof","Verstärkte Rand-Klemme H23 Schwarz","Végkapocs H23 - Acél - Fekete - Tetőszerkezetbe építő r.","Prosty zacisk H23 - Stal - Czarny- In Roof ","Односторонний зажим Н23 - Стальной - Чёрный - In Roof ","Jednostranná svorka H23 - ocel - černá - in Roof",null,null,null,null,null,null,null,"ART101230",null,"Dpo 2030 / 1050","ART00002",29.04]
["Joints","Joints EPDM Cellulaire ","Cale EPDM Cell","Zelfklevende cellulaire EPDM","EPDM-Dichtung CELL klebend","EPDM lap","Membrana EPDM","Опорный блок EPDM","Nosná jednotka EPDM",null,null,null,null,null,null,null,null,"EtrSplH26ALU","ESH262014ALU (ASV08-46G)","EtrSpl","H26","ALU","Etrier Simple H26 - Acier Inox - Gris - In Roof ","Simple Clamp H26 - Steel - Grey - In Roof  ",null,"Verstärkte Rand-Klemme H26","Végkapocs H26 - Acél - Szürke - Tetőszerkezetbe építő r.","Prosty zacisk H26 - Stal - Szary - In Roof  ","Односторонний зажим Н26 - Стальной - Серый - In Roof","Jednostranná svorka H26 - ocel - šedá - in Roof",null,null,null,null,null,null,null,"ART102321",null,"Dpo 2030 / 1055","ART00003",29.04]
["EtrDbl","Etrier Double Renforcé","Reinforced Double Clamp","Middenklem","Verstärkte Mittel-Klemme","Erősített Rögzítő középkapocs","Wzmocniony podwójny zacisk","Усиленный двойной зажим","Zesílená dvojitá svorka",null,null,null,null,null,null,null,null,"EtrSplH26NOIR","ESH262014N (ASV08-46V)","EtrSpl","H26","NOIR","Etrier Simple H26 - Acier Inox - Noir - In Roof ","Simple Clamp H26 - Steel - Black - In Roof ","H26 Eindklem - Inox - Zwart - In Roof","Verstärkte Rand-Klemme H26 Schwarz","Végkapocs H26 - Acél - Fekete - Tetőszerkezetbe építő r.","Prosty zacisk H26 - Stal - Czarny - In Roof ","Односторонний зажим Н26 - Стальной - Чёрный - In Roof ","Jednostranná svorka H26 - ocel - černá - in Roof",null,null,null,null,null,null,null,"ART102328",null,"Dpo 2030 / 1135","ART00004",29.04]
["EtrSpl","Etrier Simple renforcé","Reinforced Single Clamp","Eindklem","Verstärkte Rand-Klemme","Erősített Rögzítő végkapocs","Wzmocniony pojedynczy zacisk","Усиленный одинарный зажим","Zesílená jednoduchá svorka",null,null,null,null,null,null,null,null,"EtrSplH27ALU","ESH272014ALU (ASV08-46G)","EtrSpl","H27","ALU","Etrier Simple H27 - Acier Inox - Gris - In Roof ","Simple Clamp H27 - Steel - Grey - In Roof ",null,"Verstärkte Rand-Klemme H27","Végkapocs H27 - Acél - Szürke - Tetőszerkezetbe építő r.","Prosty zacisk H27 - Stal - Szary - In Roof ","Односторонний зажим Н27 - Стальной - Серый - In Roof ","Jednostranná svorka H27 - ocel - šedá - in Roof",null,null,null,null,null,null,null,"ART100063",null,"Dpo 2030 / 1305","ART00005",29.04]
["Grappe","Grappe de 4 Cales de renfort G et D pour étriers simples","Batch of 4 Reinforcement GSE Wedges L and R for Single Clamps","4 GSE verstevigingswiggen voor L en R eindklemmen","Cluster von 4 Randverstärkungen L und R für Rand-Klemme","4 darab GSE ék (végzáró elem) Jobbos és Balos - Végkapocshoz","Zestaw 4 klinów wzmacniających GSE L i R do zacisków pojedynczych","Партия из 4 арматурных клиньев GSE для левых и правых одинарных зажимов","Dávka 4 výztužných klínů GSE L a R pro jednoduché svorky",null,null,null,null,null,null,null,null,"EtrSplH27NOIR","ESH272014N (ASV08-46V)","EtrSpl","H27","NOIR","Etrier Simple H27 - Acier Inox - Noir - In Roof","Simple Clamp H27 - Steel - Black - In Roof ","H27 Eindklem - Inox - Zwart - In Roof","Verstärkte Rand-Klemme H27 Schwarz","Végkapocs H27 - Acél - Fekete - Tetőszerkezetbe építő r.","Prosty zacisk H27 - Stal - Czarny - In Roof ","Односторонний зажим Н27 - Стальной - Чёрный - In Roof ","Jednostranná svorka H27 - ocel - černá - in Roof",null,null,null,null,null,null,null,"ART100260"]
["Crochet","Crochets fixation abergements","GSE Flashing Hook","GSE bevestigingshaakjes afdekplaten","Hafte zur Befestigung der Verblechung","GSE Burkoló bilincs","Hak GSE","Зажим GSE","Svorka GSE",null,null,null,null,null,null,null,null,"EtrSplH31ALU","ESH312014ALU (ASV08-50G)","EtrSpl","H31","ALU","Etrier Simple H31 - Acier Inox - Gris - In Roof ","Simple Clamp H31 - Steel - Grey - In Roof ",null,"Verstärkte Rand-Klemme H31","Végkapocs H31 - Acél - Szürke - Tetőszerkezetbe építő r.","Prosty zacisk H31 - Stal - Szary - In Roof ","Односторонний зажим Н31 - Стальной - Серый - In Roof ","Jednostranná svorka H31 - ocel - šedá - in Roof",null,null,null,null,null,null,null,"ART100172"]
["Option","Options","Options","Opties","Optionen","Opciók","Opcje","Опции","Možnosti",null,null,null,null,null,null,null,null,"EtrSplH31NOIR","ESH312014N (ASV08-50V)","EtrSpl","H31","NOIR","Etrier Simple H31 - Acier Inox - Noir - In Roof","Simple Clamp H31 - Steel - Black - In Roof ","H31 Eindklem - Inox - Zwart - In Roof (frame dikte 50mm)","Verstärkte Rand-Klemme H31 Schwarz","Végkapocs H31 - Acél - Fekete - Tetőszerkezetbe építő r.","Prosty zacisk H31 - Stal - Czarny - In Roof ","Односторонний зажим Н31 - Стальной - Чёрный - In Roof ","Jednostranná svorka H31 - ocel - černá - in Roof",null,null,null,null,null,null,null,"ART100381"]
["Rooflex","Bande d'étanchéité FLEXALU (Rouleau de 5 m)","FLEXALU Waterproofing Strip (5 m roll)","FLEXALU waterafdichte strip (rol van 5 m)","FLEXALU Dichtungband (5 m-Rolle)","FLEXALU vízzáró szalag (5 m/tekercs)","Taśma hydroizolacyjna (rolka 5 m)","Гидроизоляционная лента FLEXALU (рулон 5 м)","Hydroizolační pás FLEXALU (role 5 m)",null,null,null,null,null,null,null,null,null,"CALE_GAUCHE / CALE_DROIT","Grappe",null,null,"Grappe de 4 Cales de renfort G et D pour étriers simples  ","Batch of 4 Reinforcement GSE Wedges L and R for Single Clamps",null,"Cluster von 4 Randverstärkungen L und R für Rand-Klemme","4 darab GSE ék (végzáró elem) Jobbos és Balos - Végkapocshoz","Zestaw 4 klinów wzmacniających GSE L i R do zacisków pojedynczych","Набор из 4 усиливающих клиньев GSE L и R для односторонних зажимов","Sada z 4 zesilovacích klínů GSE L a R pro jednostranné svorky"]
["EcranToit","Ecran de sous toiture (Rouleau de 75 m²)","Roof-Underlay Screen (75 m² roll)","Dakfolie (75 m² rol)","Unterspannbahn (75 m²-Rolle)","Tető szigetelő (75 m²/tekercs)","Podkład dachowy (rolka 75m²)","Подкровельная плёнка (рулон 75 м²)","Krycí fólie (role 75 m²)",null,null,null,null,null,null,null,null,null,"JOINT_PRE_CONTRAIN","JointImpr",null,null,"Joint pré-contraint - 20 x 40 mm (Rouleau de 5.5 m)  ","Pre-Compressed Seal - 20 x 40mm 5.5m (roll)","Voorgecomprimeerde afdichting/uitzetband - 20 x 40mm (5,5m rol)","Vorkomprimiertes Dichtungsband - 20 x 40 mm (5.5 m-Rolle)","Előnyomott tömítés - 20 x 40 mm 5.5 m (tekercs)","Taśma uszczelniająca wstępnie sprasowana - 20 x 40 mm 5.5m (rolka)","Предварительно прессованная уплотнительная лента - 20x40мм (рулон 2м)","Těsnicí lisovaná páska - 20x40mm (role 2m)",null,null,null,null,null,null,null,"ART101088"]
["JointImpr","Joint pré-contraint - 20 x 40 mm (Rouleau de 5.5 m)","Pre-Compressed Seal Roll - 20 x 40 mm (5.5 m roll)","Voorgecomprimeerde afdichting - 20 x 40mm (5,5m rol)","Vorkomprimiertes Dichtungsband - 20 x 40 mm (5.5 m-Rolle)","Előnyomott tömítés - 20 x 40 mm (5.5 m/tekercs)","Taśma uszczelniająca wstępnie sprasowana - 20 x 40 mm (rolka 5,5 m)","Уплотнительная спресованная лента - 20 x 40 мм (рулон 5,5 м)","Těsnicí lisovaná páska - 20 x 40 mm (role 5,5 m)",null,null,null,null,null,null,null,null,null,"JOINT_MOUSS_TRIAN ","JointTrImpr",null,null,"Joint mousse triangulaire TN2F 40X60 ADH LONG 2ML","Triangular Pre-Compressed Seal Roll - 40 x 60 mm (2 m roll)","Driehoekige voorgecomprimeerde afdichtingsrol - 40 x 60 mm (2 m rol)","Dreieckig vorkomprimiertes Dichtungsband - 40 x 60 mm (5.5 m-Rolle)","Háromszög - Előnyomott tömítés - 40 x 60 mm (2m/tekercs)","Trójkątna wstępnie sprasowana taśma uszczelniająca - 40 x 60 mm (2 m rolka)","Треугольная предварительно прессованная уплотнительная лента - 40x60мм (рулон 2м)","Trojúhelníková předem lisovaná těsnicí páska - 40x60mm (role 2m)"]
["JointTrImpr","Joint pré-contraint triangulaire - 40 x 60 mm (Rouleau de 5.5 m)","Triangular Pre-Compressed Seal Roll - 40 x 60 mm (5.5 m roll)","Driehoekige voorgecomprimeerde afdichtingsrol - 40 x 60 mm (2 m rol)","Dreieckig vorkomprimiertes Dichtungsband - 40 x 60 mm (5.5 m-Rolle)","Háromszög - Előnyomott tömítés - 40 x 60 mm (5.5 m/tekercs)","Trójkątna wstępnie sprasowana taśma uszczelniająca - 40 x 60 mm (rolka 5,5 m)","Треугольная предварительно прессованная уплотнительная лента - 40 x 60 мм (рулон 5,5 м)","Trojúhelníková předem lisovaná těsnicí páska - 40 x 60 mm (role 5,5 m)",null,null,null,null,null,null,null,null,null,"CALE_EPDM_CELL",null,null,null,"Cale EPDM Pour Vis In Roof (25x21 EP. 5mm)","EPDM Cell for Screw - In Roof (25x21 EP. 5mm)","EPDM voor de IN-ROOF schroeven (25x21mm, 5mm dik)","EPDM-Dichtung CELL klebend","EPDM lap csavarozáshoz - Tetőszerkezetbe építő r. (25 x 21 EP. 5mm)","Uszczelka EPDM do wkrętu - In Roof (25x21 EP. 5mm)"," Опорный блок EPDM под винт - In Roof (25x21 EP. 5мм)","Těsnění EPDM pro šroub - in Roof (25X21 EP. 5mm)",null,null,null,null,null,null,null,"ART101138"]
["DimChamp","Taille du champ PV","Size of the PV Plant","PV-veldgrootte","Größe des Modulfeldes","Napelem konfiguráció mérete","Wielkość instalcji PV","Размер конфигурации PV-модулей","Velikost konfigurace FV",null,null,null,null,null,null,null,null,null,"PPAYS 1640 / 992","PlakGSEPays",null,null,"Plaques Paysage ","GSE Landscape Frame ","GSE Landscape montageplaat ","GSE-Wanne Querformat ","GSE Fekvő tájolású keret ","GSE Ramka Pozioma ","Горизонтальная рама GSE ","Horizontální rám GSE "]
["HautCmpARE","Hauteur (avec FLEXALU en partie basse)","Height (with Low FLEXALU)","Hoogte (met FLEXALU onderste gedeelte)","Höhe (mit FLEXALU an der Unterseite)","Magasság (alsó FLEXALU-val)","Wysokość (z t.hydroizolacyjną w dolnej części)","Высота (с низким FLEXALU)","Výška (s nízkou FLEXALU)",null,null,null,null,null,null,null,null,null,"PPORT 1640 / 992","PlakGSEPort",null,null,"Plaques Portrait ","GSE Portrait Frame ","GSE Portrait montageplaat ","GSE-Wanne Hochkant ","GSE Álló tájolású keret ","GSE Ramka Pionowa ","Вертикальная рама GSE ","Vertikální rám GSE "]
["LargCmpAAL","Largeur (avec abergements latéraux)","Width (with Lateral Flashings)","Breedte (met zij afdekplaten)","Breite (mit seitlicher Verblechung)","Szélesség (oldalsó burkolattal)","Szerokość (z obróbką do krawędzi bocznej)","Ширина (с торцевой планкой)","Šířka (s koncovou lištou)",null,null,null,null,null,null,null,null,null,"RIVETPOP","Rivets",null,null,"Rivets Pop 4x8 (pour la fixation des cornières)","Pop Rivet 4x8 (Fixations Rivet for Top Centre Flashing)","Popnagels 4x8 (voor het verbinden van het bovenste hoekstuk)","Pop-Niete (Halter für Verbindungsstücke)","Popszegecs 4x8 (Rögzítő szegecs a felső-közép burkolathoz)","Nit POP 4x8 (Nit mocujący do górnego środkowego kołnierza) ","Поп-заклепка 4х8 (крепежная заклепка для верхней цетральной планки)","Поп-заклепка 4х8 (крепежная заклепка для верхней цетральной планки)",null,null,null,null,null,null,null,"ART100389"]
["Coord","Coordonnées","Contact Details","Contact gegevens","Kontaktdaten","Kapcsolat","Dane kontaktowe","Контактная информация","Kontaktní údaje",null,null,null,null,null,null,null,null,null,"VIS2014A","VisRondP",null,"ALU","Vis GSE Integration 6.3mmx60mm Alu","GSE Integration Screw - 6.3mmx60mm - Grey","GSE Integration schroef + sluitring Grijs 6.3mmx60mm","Schraube + GSE Unterlegscheibe (6 pro Platte) ALU","GSE csavar - 6.3mmx60mm - Szürke","GSE Integration wkręt - 6.3mmx60mm - Szary","GSE винт - 6,3x60мм - Серый","GSE šroub - 6,3x60mm - šedý ",null,null,null,null,null,null,null,"ART100931"]
["DateExp","Date de livraison souhaitée","Desired Delivery Date","Gewenste leverdatum","Gewünschtes Versanddatum","Szállítási idő","Preferowana data dostawy","Желаемая дата доставки","Požadované datum dodání",null,null,null,null,null,null,null,null,null,"VIS2014N","VisRondE",null,"NOIR","Vis GSE Integration 6.3mmx60mm Noir","GSE Integration Screw - 6.3mmx60mm - Black","GSE Integration schroef + sluitring Zwart 6.3mmx60mm","Schraube + Unterlegscheibe zur Befestigung der Modulklemme","GSE csavar - 6.3mmx60mm - Fekete","GSE Integration wkręt - 6.3mmx60mm - Czarny","GSE винт - 6,3x60мм - Черный","GSE šroub - 6,3x60mm - černý",null,null,null,null,null,null,null,"ART101552"]
["Adr","Adresse / Contact","Address / Contact","Adres / Contactpersoon","Adresse / Kontakt","Cím / kapcsolat","Adres / kontakt","Адрес / Контакт","Adresa / Kontakt",null,null,null,null,null,null,null,null,null,"BANDE_FLEXALU_330","Rooflex",null,"NOIR","Flexalu Gris Ardoise 330mm L5m Butyle 20/100","Flexalu Waterproof Strip Black 330mm (5 m roll)","Flexalu Waterdichte Strip Zwart 330mm (5 m rol)","FLEXALU Dichtungband (5 m-Rolle) Schwarz 330mm","FLEXALU Vízzáró Szalag Fekete 330mm (5m/tekercs)","Taśma hydroizolacyjna Czarny 330mm (5 m rolka)","Водонепроницаемая лента FLEXALU Чёрная 330мм (рулон 5м)","Vodotěsná páska FLEXALU černá 330mm (role 5m)",null,null,null,null,null,null,null,"ART100385"]
["ScrolTitle","(Dimensions : Toit, Module PV & Plaque GSE)","(Dimensions: Roof, PV Module & GSE Frame)","(Afmetingen : Dak, PV Module & GSE Plaat)","(Größe: Dach, PV-Modul & GSE-Wanne)","(Méretek: Tető, Napelem modul & GSE keret)","(Wymiary: Dach, Moduł PV & Rama GSE)","(Размеры: крыша, PV-модуль и рама GSE)","(Rozměry: střecha, FV modul a rám GSE)",null,null,null,null,null,null,null,null,null,"BANDE_FLEXALU_500","Rooflex",null,"NOIR","Flexalu Gris Ardoise 500mm L5m Butyle 20/100","Flexalu Waterproof Strip Black 500mm (5 m roll)","Flexalu Waterdichte Strip Zwart 500mm (5 m rol)","FLEXALU Dichtungband (5 m-Rolle) Schwarz 500mm","FLEXALU Vízzáró Szalag Fekete 500mm (5m/tekercs)","Taśma hydroizolacyjna Czarny 500mm (5 m rolka)","Водонепроницаемая лента FLEXALU Чёрная 500мм (рулон 5м)","Vodotěsná páska FLEXALU černá 500mm (role 5m)",null,null,null,null,null,null,null,"ART101405"]
["Toit","Toit","Roof","Dak","Dach","Tető","Dach","Крыша","Střecha",null,null,null,null,null,null,null,null,null,"BANDE_FLEXALU-500","Rooflex",null,"ROUGE","Flexalu Rouge Terre Cuite 500mm L5m Butyle 20/100","Flexalu Waterproof Strip Red 500mm (5 m roll)","Flexalu Waterdichte Strip Rood 330mm (5 m rol)","FLEXALU Dichtungband (5 m-Rolle) Rot 500mm","FLEXALU Vízzáró Szalag Piros 500mm (5m/tekercs)","Taśma hydroizolacyjna Czerwony 500mm (5 m rolka)","Водонепроницаемая лента FLEXALU Красная 500мм (рулон 5м)","Vodotěsná páska FLEXALU červená 500mm (role 5m)",null,null,null,null,null,null,null,"ART101272"]
["ModPV","Module PV","PV Module","PV Module","PV-Modul","Napelem modul","Moduł PV","Солнечная батарея","FV modul",null,null,null,null,null,null,null,null,null,"ECRAN_SOUS_TOITURE ","EcranToit",null,null,"Ecran de sous toiture (Rouleau de 75 m²)  ","Roof-Underlay Screen (75 m² roll)","Dakfolie (Rol van 75 m²)  ","Unterspannbahn (75 m²-Rolle)","Tető szigetelő (75 m²/tekercs)","Podkład dachowy (rolka 75m²)","Подкровельная плёнка (рулон 75м²)","Krycí fólie (role 75 m²)",null,null,null,null,null,null,null,"ART101292"]
["Adj","Ajustement","Adjustment","Aanpassing","Anpassung","Beállítás","Regulacja","Корректирование","Nastavení",null,null,null,null,null,null,null,null,null,"CALE_GAUCHE",null,null,null,"Cale Gauche de Renfort pour Etriers Simple In Roof","Left Wedge for Simple Clamp - In Roof","Linker Wig voor Eindklem - In Roof","Linker Verstärkungskeile für Rand-Klemme","Balos Ék (végzáró elem) Végkapocshoz - Tetőszerkezetbe építő r.","Lewy klin do zacisku prostego - In Roof","Левый клин для прямого зажима - In Roof","Levý klín pro přímé upnutí - in Roof",null,null,null,null,null,null,null,"ART100212"]
["PlakGSE","Plaque GSE","GSE frame","GSE plaat","GSE-Wanne","GSE keret","Rama GSE ","Рама GSE","GSE rám",null,null,null,null,null,null,null,null,null,"CALE_DROIT",null,null,null,"Cale Droite de Renfort pour Etriers Simple In Roof","Right Wedge for Simple Clamp - In Roof","Rechter Wig voor Eindklem - In Roof","Rechte Verstärkungskeile für Rand-Klemme","Jobbos Ék(végzáró elem) Végkapocshoz - Tetőszerkezetbe építő r.","Prawy klin do zacisku prostego - In Roof","Правый клин для прямого зажима - In Roof","Pravý klín pro přímé upnutí - in Roof",null,null,null,null,null,null,null,"ART101501"]
["Ref","Références","References","Referentie","Referenzen","Referencia","Referencje","Рекомендации","Reference",null,null,null,null,null,null,null,null,null,"ART104077",null,"v.A2",null,"Abergement Angle DROIT-A2","Top RIGHT Angle Flashing-A2","Top RIGHT Angle Flashing-A2","Top RIGHT Angle Flashing-A2","Top RIGHT Angle Flashing-A2","Top RIGHT Angle Flashing-A2","Top RIGHT Angle Flashing-A2","Top RIGHT Angle Flashing-A2",null,null,null,null,null,null,null,"ART104077"]
["Den","Dénomination","Denomination","Benaming","Bezeichnung","Megnevezés","Określenie","Наименование","Označení",null,null,null,null,null,null,null,null,null,"ART104070",null,"v.A2",null,"Abergement Angle GAUCHE-A2","Top LEFT Angle Flashing-A2","Top LEFT Angle Flashing-A2","Top LEFT Angle Flashing-A2","Top LEFT Angle Flashing-A2","Top LEFT Angle Flashing-A2","Top LEFT Angle Flashing-A2","Top LEFT Angle Flashing-A2",null,null,null,null,null,null,null,"ART104070"]
["CalcRampTitle","Calculer le Rampant du toit","Calculate the Roof Width","Bereken de dakhelling","Berechnung der Länge der Dachschräge","Tető szélesség kiszámítása","Oblicz szerokość dachu","Рассчитать ширину крыши","Vypočítat šířku střechy",null,null,null,null,null,null,null,null,null,"ART101608",null,"v.TN1",null,"Abergement angle inférieur DROITE Noir TN1","Bottom RIGHT Angle Flashing Black-TN1","Bottom RIGHT Angle Flashing Black-TN1","Bottom RIGHT Angle Flashing Black-TN1","Bottom RIGHT Angle Flashing Black-TN1","Bottom RIGHT Angle Flashing Black-TN1","Bottom RIGHT Angle Flashing Black-TN1","Bottom RIGHT Angle Flashing Black-TN1",null,null,null,null,null,null,null,"ART101608"]
["LargMsn","Largeur de la maison (m)","Width of the house (m)","Breedte van het huis (m)","Breite des Hauses (m)","Ház szélessége (m)","Szerokość budynku (m)","Ширина здания (м)","Šířka budovy (m)",null,null,null,null,null,null,null,null,null,"ART101616",null,"v.TN1",null,"Abergement angle inférieur GAUCHE Noir TN1","Bottom LEFT Angle Flashing Black-TN1","Bottom LEFT Angle Flashing Black-TN1","Bottom LEFT Angle Flashing Black-TN1","Bottom LEFT Angle Flashing Black-TN1","Bottom LEFT Angle Flashing Black-TN1","Bottom LEFT Angle Flashing Black-TN1","Bottom LEFT Angle Flashing Black-TN1",null,null,null,null,null,null,null,"ART101616"]
["NbrPans","Nombre de Pans","Number of Pans","Aantal dakvlakken","Anzahl der Dachschrägen","Tervek száma","Ilość połaci dachu","Количество скатов крыши","Počet střešních svahů",null,null,null,null,null,null,null,null,null,"ART101618",null,"v.TN1",null,"Abergement angle supérieur DROITE Noir TN1","Top RIGHT Angle Flashing Black-TN1","Top RIGHT Angle Flashing Black-TN1","Top RIGHT Angle Flashing Black-TN1","Top RIGHT Angle Flashing Black-TN1","Top RIGHT Angle Flashing Black-TN1","Top RIGHT Angle Flashing Black-TN1","Top RIGHT Angle Flashing Black-TN1",null,null,null,null,null,null,null,"ART101618"]
["Calculer","Calculer","Compute","Bereken  ","Berechnen","Számítás","Oblicz","Вычислить","Vypočítat",null,null,null,null,null,null,null,null,null,"ART101629",null,"v.TN1",null,"Abergement angle supérieur GAUCHE Noir TN1","Top LEFT Angle Flashing Black-TN1","Top LEFT Angle Flashing Black-TN1","Top LEFT Angle Flashing Black-TN1","Top LEFT Angle Flashing Black-TN1","Top LEFT Angle Flashing Black-TN1","Top LEFT Angle Flashing Black-TN1","Top LEFT Angle Flashing Black-TN1",null,null,null,null,null,null,null,"ART101629"]
["Annuler","Annuler","Cancel","Annuleren","Abbrechen","Mégse","Anuluj ","Отменить","Zrušit",null,null,null,null,null,null,null,null,null,"ART104000",null,"v.A2",null,"Abergement haut 1000-A2","Top Centre Flashing 1000-A2 ","Top Centre Flashing 1000-A2 ","Top Centre Flashing 1000-A2 ","Top Centre Flashing 1000-A2 ","Top Centre Flashing 1000-A2 ","Top Centre Flashing 1000-A2 ","Top Centre Flashing 1000-A2 ",null,null,null,null,null,null,null,"ART104000"]
["CalcRampMsg1","Les champs suivants doivent contenir une valeur numérique positive non nulle: 'Inclinaison toiture' et 'Largeur de la maison'.","The following fields must contain a non-zero positive numeric value: 'Roof Slope' and 'Width of the House'.","De volgende velden moeten een niet-nul positieve numerieke waarde bevatten:\"Dakhelling\" en \"Huisbreedte\".","Die folgenden Felder müssen einen positiven numerischen Wert ungleich Null enthalten: Dachneigung und Breite des Hauses.","A következő mezőknek pozitív számot kell tartalmazniuk: 'Tető lejtés' és 'Ház szélessége'.","\nNastępujące pola muszą zawierać dodatnią wartość liczbową (różną od zera): „Nachylenie dachu” i „Szerokość budynku”.\n","\nСледующие поля должны содержать ненулевое положительное числовое значение: «Уклон крыши» и «Ширина здания».\n","Následující pole musí obsahovat nenulovou kladnou číselnou hodnotu: „Střešní sklon“ a „Šířka budovy“.",null,null,null,null,null,null,null,null,null,"ART104007",null,"v.A2",null,"Abergement haut 1005-A2","Top Centre Flashing 1005-A2","Top Centre Flashing 1005-A2","Top Centre Flashing 1005-A2","Top Centre Flashing 1005-A2","Top Centre Flashing 1005-A2","Top Centre Flashing 1005-A2","Top Centre Flashing 1005-A2",null,null,null,null,null,null,null,"ART104007"]
["CalcRampMsg2","Veuillez vérifier les valeurs de ces champs puis lancez de nouveau le calcul du Rampant.","Please check the values ​​of these fields then run the Roof Width calculation again.","Controleer de waarden deze velden en voer de berekening van de dakbreedte opnieuw uit.","Bitte überprüfen Sie die Werte dieser Felder und führen Sie die Berechnung der Länge der Dachschräge erneut aus.","Kérjük, ellenőrizze ezeknek a mezőknek az értékeit, majd futtassa újra a tetőszélesség számítását.","Sprawdź wartości w tych polach, a następnie ponownie wykonaj obliczenia szerokości dachu.","Проверьте значения в этих полях, затем снова запустите расчет ширины крыши.","Zkontrolujte hodnoty těchto polí a poté znovu spusťte výpočet šířky střechy.",null,null,null,null,null,null,null,null,null,"ART104014",null,"v.A2",null,"Abergement haut 1020-A2","Top Centre Flashing 1020-A2","Top Centre Flashing 1020-A2","Top Centre Flashing 1020-A2","Top Centre Flashing 1020-A2","Top Centre Flashing 1020-A2","Top Centre Flashing 1020-A2","Top Centre Flashing 1020-A2",null,null,null,null,null,null,null,"ART104014"]
["DftRefCmpPV","Champ PV 1","PV Array 1","PV-veld 1","PV-Modulfeld 1","Napelem elrendezés 1","Macierz PV 1","Раскладка PV-модулей 1","Rozložení PV modulů 1",null,null,null,null,null,null,null,null,null,"ART103986",null,"v.A2",null,"Abergement haut 1030-A2","Top Centre Flashing 1030-A2","Top Centre Flashing 1030-A2","Top Centre Flashing 1030-A2","Top Centre Flashing 1030-A2","Top Centre Flashing 1030-A2","Top Centre Flashing 1030-A2","Top Centre Flashing 1030-A2",null,null,null,null,null,null,null,"ART103986"]
["CalcRampLink","Cliquez ici pour calculer le Rampant !","Click here to calculate the Roof Width !","Klik hier om de dakbreedte te berekenen!","Klicken Sie hier, um die Länge der Dachschräge zu berechnen !","Kattintson ide a tetőszélesség kiszámításához!","Kliknij tutaj, aby obliczyć szerokość dachu!","Щелкните здесь, чтобы рассчитать ширину крыши!","Kliknutím sem vypočítáte šířku střechy!",null,null,null,null,null,null,null,null,null,"ART103993",null,"v.A2",null,"Abergement haut 1046-A2","Top Centre Flashing 1046-A2 ","Top Centre Flashing 1046-A2 ","Top Centre Flashing 1046-A2 ","Top Centre Flashing 1046-A2 ","Top Centre Flashing 1046-A2 ","Top Centre Flashing 1046-A2 ","Top Centre Flashing 1046-A2 ",null,null,null,null,null,null,null,"ART103993"]
["None2","Aucune","None","Geen","keine Angabe","Nincs","Brak","Никакой","Nic",null,null,null,null,null,null,null,null,null,"ART104021",null,"v.A2",null,"Abergement haut 1050-A2","Top Centre Flashing 1050-A2","Top Centre Flashing 1050-A2","Top Centre Flashing 1050-A2","Top Centre Flashing 1050-A2","Top Centre Flashing 1050-A2","Top Centre Flashing 1050-A2","Top Centre Flashing 1050-A2",null,null,null,null,null,null,null,"ART104021"]
["ColorAber","Couleur","Color","Kleur","Farbe","Szín","Kolor","Цвет","Barva",null,null,null,null,null,null,null,null,null,"ART103979",null,"v.A2",null,"Abergement haut 992-A2","Top Centre Flashing 992-A2 ","Top Centre Flashing 992-A2 ","Top Centre Flashing 992-A2 ","Top Centre Flashing 992-A2 ","Top Centre Flashing 992-A2 ","Top Centre Flashing 992-A2 ","Top Centre Flashing 992-A2 ",null,null,null,null,null,null,null,"ART103979"]
["Yes","Oui","Yes","Ja","Ja","Igen","Tak","Да","Ano",null,null,null,null,null,null,null,null,null,"ART104042",null,"v.TS2/TN1",null,"Abergement haut Noir 1000-TS2/TN1","Top Centre Flashing Black 1000-TS2/TN1  ","Top Centre Flashing Black 1000-TS2/TN1  ","Top Centre Flashing Black 1000-TS2/TN1  ","Top Centre Flashing Black 1000-TS2/TN1  ","Top Centre Flashing Black 1000-TS2/TN1  ","Top Centre Flashing Black 1000-TS2/TN1  ","Top Centre Flashing Black 1000-TS2/TN1  ",null,null,null,null,null,null,null,"ART104042"]
["No","Non","No","Neen","Nein","Nem","Nie","Нет","Ne",null,null,null,null,null,null,null,null,null,"ART104028",null,"v.TS2/TN1",null,"Abergement haut Noir 1001-TS2/TN1","Top Centre Flashing Black 1001 -TS2/TN1","Top Centre Flashing Black 1001 -TS2/TN1","Top Centre Flashing Black 1001 -TS2/TN1","Top Centre Flashing Black 1001 -TS2/TN1","Top Centre Flashing Black 1001 -TS2/TN1","Top Centre Flashing Black 1001 -TS2/TN1","Top Centre Flashing Black 1001 -TS2/TN1",null,null,null,null,null,null,null,"ART104028"]
["ErrInfoMsg1","Ce champ doit contenir un nombre entre","This field must contain a number between","Dit veld moet een getal bevatten tussen","Dieses Feld muss eine Zahl enthalten zwischen","A mezőnek egy számot kell tartalmaznia","To pole musi zawierać liczbę pomiędzy","Это поле должно содержать число от","Toto pole musí obsahovat číslo mezi",null,null,null,null,null,null,null,null,null,"ART104049",null,"v.TS2/TN1",null,"Abergement haut Noir 1005-TS2/TN1 ","Top Centre Flashing Black 1005-TS2/TN1  ","Top Centre Flashing Black 1005-TS2/TN1  ","Top Centre Flashing Black 1005-TS2/TN1  ","Top Centre Flashing Black 1005-TS2/TN1  ","Top Centre Flashing Black 1005-TS2/TN1  ","Top Centre Flashing Black 1005-TS2/TN1  ","Top Centre Flashing Black 1005-TS2/TN1  ",null,null,null,null,null,null,null,"ART104049"]
["And","et","and","en","und","és","i","и","a",null,null,null,null,null,null,null,null,null,"ART104056",null,"v.TS2/TN1",null,"Abergement haut Noir 1020-TS2/TN1","Top Centre Flashing Black 1020-TS2/TN1  ","Top Centre Flashing Black 1020-TS2/TN1  ","Top Centre Flashing Black 1020-TS2/TN1  ","Top Centre Flashing Black 1020-TS2/TN1  ","Top Centre Flashing Black 1020-TS2/TN1  ","Top Centre Flashing Black 1020-TS2/TN1  ","Top Centre Flashing Black 1020-TS2/TN1  ",null,null,null,null,null,null,null,"ART104056"]
["LongToit","Longueur du toit","Roof length","Lengte dak","Dachlänge","Tetőhossz","Długość dachu","Длина крыши","Délka střechy",null,null,null,null,null,null,null,null,null,"ART104035",null,"v.TS2/TN1",null,"Abergement haut Noir 1046-TS2/TN1","Top Centre Flashing Black 1046-TS2/TN1 ","Top Centre Flashing Black 1046-TS2/TN1 ","Top Centre Flashing Black 1046-TS2/TN1 ","Top Centre Flashing Black 1046-TS2/TN1 ","Top Centre Flashing Black 1046-TS2/TN1 ","Top Centre Flashing Black 1046-TS2/TN1 ","Top Centre Flashing Black 1046-TS2/TN1 ",null,null,null,null,null,null,null,"ART104035"]
["RampToit","Rampant du toit","Roof Width","Breedte dak","Länge der Dachschräge","Tetőszélesség","Szerokość dachu","Ширина крыши","Šířka střechy",null,null,null,null,null,null,null,null,null,"ART104063",null,"v.TS2/TN1",null,"Abergement haut Noir 1050-TS2/TN1 ","Top Centre Flashing Black 1050-TS2/TN1 ","Top Centre Flashing Black 1050-TS2/TN1 ","Top Centre Flashing Black 1050-TS2/TN1 ","Top Centre Flashing Black 1050-TS2/TN1 ","Top Centre Flashing Black 1050-TS2/TN1 ","Top Centre Flashing Black 1050-TS2/TN1 ","Top Centre Flashing Black 1050-TS2/TN1 ",null,null,null,null,null,null,null,"ART104063"]
["HautModPVPo","Hauteur du module PV portrait","PV Portrait Module Height","Hoogte van de PV-module in Portrait","Modulhöhe bei Hochkantmontage","Napelem Álló modul magasság","Wysokość modułu PV w pionie ","Высота вертикального PV-модуля","Výška vertikálního FV modulu",null,null,null,null,null,null,null,null,null,"ART104833",null,"v.TS2/TN1",null,"Abergement haut Noir 1055-TS2/TN1 ","Top Centre Flashing Black 1055-TS2/TN1 ","Top Centre Flashing Black 1055-TS2/TN1 ","Top Centre Flashing Black 1055-TS2/TN1 ","Top Centre Flashing Black 1055-TS2/TN1 ","Top Centre Flashing Black 1055-TS2/TN1 ","Top Centre Flashing Black 1055-TS2/TN1 ","Top Centre Flashing Black 1055-TS2/TN1 ",null,null,null,null,null,null,null,"ART104833"]
["HautModPVPa","Hauteur du module PV paysage","PV Landscape Module Height","Hoogte van de PV-module in Landscape","Modulhöhe bei Querformatmontage","Napelem Fekvő modul magasság","Wysokość modułu PV w poziomie","Высота горизонтального PV-модуля","Výška vodorovného FV modulu",null,null,null,null,null,null,null,null,null,"ART101622",null,"v.TS2/TN1",null,"Abergement haut Noir 992-TS2/TN1","Top Centre Flashing Black 992-TS2/TN1 ","Top Centre Flashing Black 992-TS2/TN1 ","Top Centre Flashing Black 992-TS2/TN1 ","Top Centre Flashing Black 992-TS2/TN1 ","Top Centre Flashing Black 992-TS2/TN1 ","Top Centre Flashing Black 992-TS2/TN1 ","Top Centre Flashing Black 992-TS2/TN1 ",null,null,null,null,null,null,null,"ART101622"]
["LargModPVPo","Largeur du module PV portrait","PV Portrait Module Width","Breedte van de PV-module in Portrait","Modulbreite bei Hochkantmontage","Napelem Álló modul szélesség","Szerokość modułu PV w pionie ","Ширина вертикального PV-модуля","Šířka vertikálního FV modulu",null,null,null,null,null,null,null,null,null,"ART101609",null,"v A2/TN1",null,"Abergement latéral DROITE-A2/TN1","RIGHT Lateral Flashing-A2/TN1","RIGHT Lateral Flashing-A2/TN1","RIGHT Lateral Flashing-A2/TN1","RIGHT Lateral Flashing-A2/TN1","RIGHT Lateral Flashing-A2/TN1","RIGHT Lateral Flashing-A2/TN1","RIGHT Lateral Flashing-A2/TN1",null,null,null,null,null,null,null,"ART101609"]
["LargModPVPa","Largeur du module PV paysage","PV Landscape Module Width","Breedte van de PV-module in Landscape","Modulbreite bei Querformatmontage","Napelem Fekvő modul szélesség","Szerokość modułu PV w poziomie","Широна горизонтального PV-модуля","Šířka vodorovného FV modulu",null,null,null,null,null,null,null,null,null,"ART101620",null,"v A2/TN1",null,"Abergement latéral GAUCHE-A2/TN1","LEFT Lateral Flashing-A2/TN1","LEFT Lateral Flashing-A2/TN1","LEFT Lateral Flashing-A2/TN1","LEFT Lateral Flashing-A2/TN1","LEFT Lateral Flashing-A2/TN1","LEFT Lateral Flashing-A2/TN1","LEFT Lateral Flashing-A2/TN1",null,null,null,null,null,null,null,"ART101620"]
["ErrInfoMsg2","Le champ PV à créer doit avoir une référence d'au moins 6 caratères alphanumérique.","The PV plant to be created must have a reference of at least 6 alphanumeric characters.","Het aan te maken PV-veld moet een referentie hebben van ten minste 6 alfanumerieke tekens.","Das zu erstellende PV-Feld muss eine Referenzangabe von mindestens 6 alphanumerischen Zeichen haben.","A létrehozandó Napelem konfigurációnak legalább 6 alfanumerikus karakterből álló hivatkozással kell rendelkeznie.","Projektowany układ instalacji PV, musi mieć odniesienie składające się z co najmniej 6 znaków alfanumerycznych.","Ссылка на создаваемую конфигурацию солнечного элемента должна состоять как минимум из 6 буквенно-цифровых символов.","FV systém, který má být vytvořen, musí mít odkaz na alespoň 6 alfanumerických znaků.",null,null,null,null,null,null,null,null,null,"ART104644",null,null,null,"Abergement Latéral Universel Noir 1290mm New Design 2022","Lateral Flashing - Black 1290mm New Design 2022","Lateral Flashing - Black 1290mm New Design 2022","Lateral Flashing - Black 1290mm New Design 2022","Lateral Flashing - Black 1290mm New Design 2022","Lateral Flashing - Black 1290mm New Design 2022","Lateral Flashing - Black 1290mm New Design 2022","Lateral Flashing - Black 1290mm New Design 2022",null,null,null,null,null,null,null,"ART104644"]
["ErrInfoMsg3","Dans le cadre des évaluations techniques du système, l'étanchéité est garantie sur des pentes comprises entre 12° et 60°.","In accordance with the technical evaluations of the system, waterproofing is guaranteed on slopes between 12° to 60°.","Volgens de technische evaluaties van het systeem is de waterdichtheid gegarandeerd op hellingen tussen 12° en 60°","Im Rahmen der technischen Bewertungen des Systems ist die Wasserdichtheit bei Dachneigungen zwischen 12 ° und 60 ° garantiert.","A rendszer műszaki értékelésének megfelelően a vízszigetelés 12 ° és 60 ° közötti lejtőn garantált.","Zgodnie z oceną techniczną systemu, wodoszczelność jest gwarantowana na zboczach nachylonych pod kątem od 12° do 60°.","Согласно технической оценке системы, гидроизоляция гарантируется на склонах от 12° до 60°.","V souladu s technickým hodnocením systému je zaručena hydroizolace na svazích mezi 12° a 60°.",null,null,null,null,null,null,null,null,null,"ART101617",null,"v.TN1",null,"Couloir latéral DROITE Noir TN1","RIGHT Lateral Corridor Black TN1","RIGHT Lateral Corridor Black TN1","RIGHT Lateral Corridor Black TN1","RIGHT Lateral Corridor Black TN1","RIGHT Lateral Corridor Black TN1","RIGHT Lateral Corridor Black TN1","RIGHT Lateral Corridor Black TN1",null,null,null,null,null,null,null,"ART101617"]
["ErrInfoMsg4","En dessous et au dessus de ces pentes, bien contrôler l'étanchéité et la méthode d'installation.","Below and above these slopes, check the watertightness and installation method of the array.","Controleer, onder en boven deze hellingen de waterdichtheid en de installatiemethode van de installatie.","Unterhalb und oberhalb dieser Dachneigungen sind Dichtheit und Installationsart der Anlage gesondert zu prüfen.","Ezen lejtés érték alatt és felett ellenőrizze a tömb vízzáróságát és telepítési módját.","Poniżej i powyżej tych zboczy sprawdź wodoszczelność i sposób montażu.","Ниже и выше этих откосов проверьте водонепроницаемость и способ установки.","Níže a nad těmito svahy zkontrolujte vodotěsnost a způsob instalace.",null,null,null,null,null,null,null,null,null,"ART101625",null,"v.TN1",null,"Couloir latéral GAUCHE Noir TN1","LEFT Lateral Corridor Black TN1","LEFT Lateral Corridor Black TN1","LEFT Lateral Corridor Black TN1","LEFT Lateral Corridor Black TN1","LEFT Lateral Corridor Black TN1","LEFT Lateral Corridor Black TN1","LEFT Lateral Corridor Black TN1",null,null,null,null,null,null,null,"ART101625"]
["ErrInfoMsg5","L'utilisation des abergements de faitage n'est conseillée que sur des pentes supérieures à 17°.","The use of top flashings is recommended only for slopes greater than 17°.","Het gebruik van de bovenste afdekplaten wordt alleen aanbevolen voor hellingen groter dan 17°.","Die Verwendung der Firstverblechung wird nur bei Neigungen empfohlen, die größer als 17 ° sind.","A felső burkolat használata csak 17 ° -nál nagyobb lejtés értéknél ajánlott.","Stosowanie obróbki blacharskiej jest zalecane tylko przy kącie nachylenia większym niż 17°.","Использование верхней крышки рекомендуется только для уклонов более 17°.","Použití horních lemů se doporučuje pouze pro svahy větší než 17°.",null,null,null,null,null,null,null,null,null,"ART104105",null,"v A2/TS2/TN1",null,"Crochet abergement long A2/TS2/TN1","Long GSE Flashing Hook A2/TS2/TN1","Long GSE Flashing Hook A2/TS2/TN1","Long GSE Flashing Hook A2/TS2/TN1","Long GSE Flashing Hook A2/TS2/TN1","Long GSE Flashing Hook A2/TS2/TN1","Long GSE Flashing Hook A2/TS2/TN1","Long GSE Flashing Hook A2/TS2/TN1",null,null,null,null,null,null,null,"ART104105"]
["ErrInfoMsg6","En dessous de cette pente, bien se référer au manuel d'installation en ligne : ","Below this slope, refer to the online installation manual: ","Raadpleeg onder deze helling de online installatiehandleiding:","Unterhalb dieser Dachneigung finden Sie gesonderte Hinweise in den Online-Installationsanweisungen: ","Ezen lejtés érték alatt olvassa el az online telepítési kézikönyvet:","Poniżej tego nachylenia zapoznaj się z instrukcją instalacji online:","Ниже этого наклона прочтите онлайн-руководство по установке:","Pod tímto sklonem si přečtěte online instalační příručku:",null,null,null,null,null,null,null,null,null,"ART104119",null,"v TS2/TN1",null,"Feuillard support tuiles TS2/TN1","Metal sheets Tiles Support TS2/TN1","Metal sheets Tiles Support TS2/TN1","Metal sheets Tiles Support TS2/TN1","Metal sheets Tiles Support TS2/TN1","Metal sheets Tiles Support TS2/TN1","Metal sheets Tiles Support TS2/TN1","Metal sheets Tiles Support TS2/TN1",null,null,null,null,null,null,null,"ART104119"]
["ErrInfoMsg7","Aucune plaque GSE correspondante n'a été trouvée !","No corresponding GSE frame has been found !","Er is géén passende GSE-plaat gevonden!","Es wurde keine passende GSE-Wanne gefunden!","Nem található megfelelő GSE keret!","Nie znaleziono odpowiadającej ramy GSE!","Подходящей GSE рамы не найдено!","Nebyl nalezen žádný odpovídající rám GSE!",null,null,null,null,null,null,null,null,null,"ART101178",null,null,null,"Joint mousse triangulaire TN2F 40X60 ADH LONG 2ML","Triangular Pre-Compressed Seal Roll - 40 x 60 mm (2 m roll)","Triangular Pre-Compressed Seal Roll - 40 x 60 mm (2 m roll)","Triangular Pre-Compressed Seal Roll - 40 x 60 mm (2 m roll)","Triangular Pre-Compressed Seal Roll - 40 x 60 mm (2 m roll)","Triangular Pre-Compressed Seal Roll - 40 x 60 mm (2 m roll)","Triangular Pre-Compressed Seal Roll - 40 x 60 mm (2 m roll)","Triangular Pre-Compressed Seal Roll - 40 x 60 mm (2 m roll)",null,null,null,null,null,null,null,"ART101178"]
["ErrInfoMsg8","Modifiez les dimensions du module PV pour trouver une plaque GSE correspondante.","Change the dimensions of the PV module to find a corresponding GSE Frame.","Wijzig de afmetingen van de PV-module om een passende GSE-plaat te vinden.","Ändern Sie die Abmessungen des PV-Moduls, um eine passende GSE-Wanne zu finden.","Módosítsa a Napelem modul méreteit, hogy megtalálja a megfelelő GSE keretet.","Zmień wymiary modułu PV, aby znaleźć odpowiednią ramę GSE.","Измените размеры PV-модуля, чтобы найти соответствующую раму GSE.","Změňte rozměry FV modulu a vyhledejte odpovídající rám GSE.",null,null,null,null,null,null,null,null,null,"ART104084",null,"v.A2",null,"Jonction haute-A2","Junction for Top Flashing-A2","Junction for Top Flashing-A2","Junction for Top Flashing-A2","Junction for Top Flashing-A2","Junction for Top Flashing-A2","Junction for Top Flashing-A2","Junction for Top Flashing-A2",null,null,null,null,null,null,null,"ART104084"]
["ErrInfoMsg9","Aucune référence du champ PV n'a été renseignée !","No reference of the PV array has been filled in !","Er is géén referentie ingevuld van het PV-veld!","Es wurde keine Referenz der PV-Anlage eingegeben!","Nincs kitöltve a Napelem tömb hivatkozása!","Nie wprowadzono żadnego odniesienia do układu modułów PV!","Никакой ссылки на компоновку PV-модулей не было введено!","Nebyl zaveden žádný odkaz na uspořádání PV modulů!",null,null,null,null,null,null,null,null,null,"ART104112",null,"v TS2/TN1",null,"Support tuiles TS2/TN1","Tiles Support TS2/TN1","Tiles Support TS2/TN1","Tiles Support TS2/TN1","Tiles Support TS2/TN1","Tiles Support TS2/TN1","Tiles Support TS2/TN1","Tiles Support TS2/TN1",null,null,null,null,null,null,null,"ART104112"]
["ErrInfoMsg10","Reseignez-en un.","Please, fill in one.","Vul er één in","Bitte einmal ausfüllen.","Kérem, válasszon","Proszę, wpisz jeden. ","Пожалуйста выберите.","Prosím vyber si.",null,null,null,null,null,null,null,null,null,"MK08","MK08",null,null,"Kit Velux MK08","MK08 Velux Kit","MK08 Velux Kit","MK08 Velux Kit","MK08 Velux Kit","MK08 Velux Kit","MK08 Velux Kit","MK08 Velux Kit",null,null,null,null,null,null,null,"MK08"]
["Date","Date","Date","Datum","Datum","Dátum","Data","Дата","Datum",null,null,null,null,null,null,null,null,null,"PK08","PK08",null,null,"Kit Velux PK08","PK08 Velux Kit","PK08 Velux Kit","PK08 Velux Kit","PK08 Velux Kit","PK08 Velux Kit","PK08 Velux Kit","PK08 Velux Kit",null,null,null,null,null,null,null,"PK08"]
["Total","Total","Total","Totaal","Gesamt","Összesen","Razem","Итого","Celkové",null,null,null,null,null,null,null,null,null,"SK10","SK10",null,null,"Kit Velux SK10","SK10 Velux Kit","SK10 Velux Kit","SK10 Velux Kit","SK10 Velux Kit","SK10 Velux Kit","SK10 Velux Kit","SK10 Velux Kit",null,null,null,null,null,null,null,"SK10"]
["PlanLat","Plan de lattage indisponible","Battening plan unavailable","Lattenplan niet beschikbaar","Lattenplan nicht verfügbar","Nem érhető el tetőléc terv","Plan kantówek niedostępny","План обрешотки недоступен","Krokevní systém nejsou k dispozici",null,null,null,null,null,null,null,null,null,"MK06","MK06",null,null,"Kit Velux MK06","MK06 Velux Kit","MK06 Velux Kit","MK06 Velux Kit","MK06 Velux Kit","MK06 Velux Kit","MK06 Velux Kit","MK06 Velux Kit",null,null,null,null,null,null,null,"MK06"]
["Roul","Rouleau(x)","Roll(s)","Rol(len)","Rolle(n)","Tekercs(ek)","Rolka(-i)","Рулон(ов)","Role(y)",null,null,null,null,null,null,null,null,null,"PK10","PK10",null,null,"Kit Velux PK10","PK10 Velux Kit","PK10 Velux Kit","PK10 Velux Kit","PK10 Velux Kit","PK10 Velux Kit","PK10 Velux Kit","PK10 Velux Kit",null,null,null,null,null,null,null,"PK10"]
["HautCmpSRFRE","Hauteur (sans Raccord faîtage et Raccord à l'égout)","Height (without Ridge connection and Connection to eaves)","Hoogte (zonder nokaansluiting en dakrandaansluiting)","Höhe (ohne Firstanbindung und Dichtigkeitsanbindung traufeseitig)","Magasság (gerinc és eresz csatlakozás nélkül)","Wysokość (bez połączenia kalenicowego i połączenia z okapem)","Высота (без конькового соединения и соединения с карнизом)","Výška (bez hřebenového připojení a připojení k okapům)",null,null,null,null,null,null,null,null,null,"MK10","MK10",null,null,"Kit Velux MK10","MK10 Velux Kit","MK10 Velux Kit","MK10 Velux Kit","MK10 Velux Kit","MK10 Velux Kit","MK10 Velux Kit","MK10 Velux Kit",null,null,null,null,null,null,null,"MK10"]
["LargCmpSAL","Largeur (sans abergements latéraux)","Width (without Lateral Flashing)","Breedte (zonder zijafdekplaten)","Breite (ohne seitliche Verblechung)","Szélesség (oldalsó burkolat nélkül)","Szerokość (z obróbką do krawędzi bocznej)","Ширина (без торцевой планки)","Šířka (bez koncové lišty)",null,null,null,null,null,null,null,null,null,"ART101589",null,null,null,"Raccord velux ODL MK08 GSE In-Roof","Velux MK08 ODL Kit for GSE In Roof - Portrait","Velux MK08 ODL Kit for GSE In Roof - Portrait","Velux MK08 ODL Kit for GSE In Roof - Portrait","Velux MK08 ODL Kit for GSE In Roof - Portrait","Velux MK08 ODL Kit for GSE In Roof - Portrait","Velux MK08 ODL Kit for GSE In Roof - Portrait","Velux MK08 ODL Kit for GSE In Roof - Portrait",null,null,null,null,null,null,null,"ART101589"]
["Remise","Remise GSE","GSE Discount","GSE korting","GSE Rabatt","GSE Kedvezmény","GSE Rabat","GSE Скидка","GSE Sleva",null,null,null,null,null,null,null,null,null,"ART101590",null,null,null,"Raccord velux ODL MK06 GSE In-Roof","Velux MK06 ODL Kit for GSE In Roof - Portrait","Velux MK06 ODL Kit for GSE In Roof - Portrait","Velux MK06 ODL Kit for GSE In Roof - Portrait","Velux MK06 ODL Kit for GSE In Roof - Portrait","Velux MK06 ODL Kit for GSE In Roof - Portrait","Velux MK06 ODL Kit for GSE In Roof - Portrait","Velux MK06 ODL Kit for GSE In Roof - Portrait",null,null,null,null,null,null,null,"ART101590"]
["RemiseAber","Remise d'abergements supérieurs","Discount for top flashings","Korting voor bovenste afdekplaten","Rabatt der Obenverblechungen","Kedvezmény felső burkolatra","Rabat do obróbki blacharskiej","Скидка на верхние планки","Sleva na horní lišty",null,null,null,null,null,null,null,null,null,"ART104616",null,null,null,"Raccord velux ODL PK08 GSE In-Roof","Velux PK08 ODL Kit for GSE In Roof - Portrait","Velux PK08 ODL Kit for GSE In Roof - Portrait","Velux PK08 ODL Kit for GSE In Roof - Portrait","Velux PK08 ODL Kit for GSE In Roof - Portrait","Velux PK08 ODL Kit for GSE In Roof - Portrait","Velux PK08 ODL Kit for GSE In Roof - Portrait","Velux PK08 ODL Kit for GSE In Roof - Portrait",null,null,null,null,null,null,null,"ART104616"]
["RemiseQuest","Avez-vous une remise ?","Do you have a discount ?","Heeft u een korting ?","Haben Sie Rabatt?","Rendelkezik kedvezménnyel?","Czy masz rabat?","У вас есть скидка?","Máte slevu?",null,null,null,null,null,null,null,null,null,"RMK10",null,null,null,"Raccord velux ODL MK10 GSE In-Roof","Velux MK10 ODL Kit for GSE In Roof - Portrait","Velux MK10 ODL Kit for GSE In Roof - Portrait","Velux MK10 ODL Kit for GSE In Roof - Portrait","Velux MK10 ODL Kit for GSE In Roof - Portrait","Velux MK10 ODL Kit for GSE In Roof - Portrait","Velux MK10 ODL Kit for GSE In Roof - Portrait","Velux MK10 ODL Kit for GSE In Roof - Portrait",null,null,null,null,null,null,null,"RMK10"]
["ErrInfoMsg11","La valeur de la remise saisie n'est pas correcte.","The discount value entered is not correct.","De ingevoerde kortingswaarde is niet correct","Der Wert des eingegebenen Rabattes ist nicht korrekt.","A megadott kedvezmény értéke nem megfelelő.","Wprowadzona wartość rabatu jest nieprawidłowa.","Введено неверное значение скидки.","Zadaná hodnota slevy není správná.",null,null,null,null,null,null,null,null,null,"RPK10",null,null,null,"Raccord velux ODL PK10 GSE In-Roof","Velux PK10 ODL Kit for GSE In Roof - Portrait","Velux PK10 ODL Kit for GSE In Roof - Portrait","Velux PK10 ODL Kit for GSE In Roof - Portrait","Velux PK10 ODL Kit for GSE In Roof - Portrait","Velux PK10 ODL Kit for GSE In Roof - Portrait","Velux PK10 ODL Kit for GSE In Roof - Portrait","Velux PK10 ODL Kit for GSE In Roof - Portrait",null,null,null,null,null,null,null,"RPK10"]
["HautCmpARF","Hauteur (avec Raccord faîtage)","Height (with top connection)","Hoogte (met bovenaansluiting)","Höhe (mit Firstanbindung)","Magasság (felső csatlakozással)","Wysokość (z obróbką blacharską górną)","Высота (с верхним соединением)","Výška (s horním spojem)",null,null,null,null,null,null,null,null,null,"ART104623",null,null,null,"Raccord velux ODL SK10 GSE In-Roof","Velux SK10 ODL Kit for GSE In Roof - Portrait","Velux SK10 ODL Kit for GSE In Roof - Portrait","Velux SK10 ODL Kit for GSE In Roof - Portrait","Velux SK10 ODL Kit for GSE In Roof - Portrait","Velux SK10 ODL Kit for GSE In Roof - Portrait","Velux SK10 ODL Kit for GSE In Roof - Portrait","Velux SK10 ODL Kit for GSE In Roof - Portrait",null,null,null,null,null,null,null,"ART104623"]
["HautCmpARFRE","Hauteur (avec Raccord faîtage et Raccord à l'égout)","Height (with top connection and eaves connection)","Hoogte (met nokaansluiting en dakrandaansluiting)","Höhe (mit Firstanbindung und Dichtigkeitsanbindung traufeseitig)","Magasság (oldalsó és eresz csatlakozással)","Wysokość (z obróbką blacharską boczną i dolną)","Высота (с боковым соединением и соединением карниза)","Výška (s bočním spojením a spojením římsy)",null,null,null,null,null,null,null,null,null,"ART103622",null,null,null,"Abergement Lateral Gauche pour Velux MK06/MK08 v.2020","LEFT VELUX LATERAL FLASHING MK06/MK08 v.2020","LEFT VELUX LATERAL FLASHING MK06/MK08 v.2020","LEFT VELUX LATERAL FLASHING MK06/MK08 v.2020","LEFT VELUX LATERAL FLASHING MK06/MK08 v.2020","LEFT VELUX LATERAL FLASHING MK06/MK08 v.2020","LEFT VELUX LATERAL FLASHING MK06/MK08 v.2020","LEFT VELUX LATERAL FLASHING MK06/MK08 v.2020",null,null,null,null,null,null,null,"ART103622"]
["PUHT","P.U. (HT)","Unit Price (Excl Tax)","Eenheidsprijs (Excl. BTW)","Pro Einheit (zzgl. MwSt.)","Egységár (ÁFA nélkül)","Cena jednostkowa netto","Цена за единицу (без налогов)","Jednotková cena (bez daně)",null,null,null,null,null,null,null,null,null,"ART103629",null,null,null,"Abergement Lateral Droit pour Velux MK06/MK08 v.2020","RIGHT VELUX LATERAL FLASHING MK06/MK08 v.2020","RIGHT VELUX LATERAL FLASHING MK06/MK08 v.2020","RIGHT VELUX LATERAL FLASHING MK06/MK08 v.2020","RIGHT VELUX LATERAL FLASHING MK06/MK08 v.2020","RIGHT VELUX LATERAL FLASHING MK06/MK08 v.2020","RIGHT VELUX LATERAL FLASHING MK06/MK08 v.2020","RIGHT VELUX LATERAL FLASHING MK06/MK08 v.2020",null,null,null,null,null,null,null,"ART103629"]
["AberFaitJonc","Abergement Faîtage Jonction","Top Flashing junction","Verbinding bovenste afdekplaat","Verbindungsblech Firstverblechung","Felső burkolat csatlakozás","Obróbka blacharska - góra, łącznik","Соеденитель верхнего отлива","Spojka připojení horní lišty",null,null,null,null,null,null,null,null,null,"ART105512",null,null,null,"Abergement Lateral Gauche pour Velux TAILLE 08 v.2022","LEFT VELUX LATERAL FLASHING SIZE 08 v.2022","LEFT VELUX LATERAL FLASHING SIZE 08 v.2022","LEFT VELUX LATERAL FLASHING SIZE 08 v.2022","LEFT VELUX LATERAL FLASHING SIZE 08 v.2022","LEFT VELUX LATERAL FLASHING SIZE 08 v.2022","LEFT VELUX LATERAL FLASHING SIZE 08 v.2022","LEFT VELUX LATERAL FLASHING SIZE 08 v.2022",null,null,null,null,null,null,null,"ART105512"]
["PUREM","P.U. REMISÉ ","Discounted unit price","Eenheidsprijs met korting","Pro Einheit Diskontiert","Kedvezményes darab ár","Cena jednostkowa po rabacie","Цена за штуку со скидкой","Zlevněná jednotková cena",null,null,null,null,null,null,null,null,null,"ART105498",null,null,null,"Abergement Lateral Droit pour Velux TAILLE 08 v.2022","RIGHT VELUX LATERAL FLASHING SIZE 08 v.2022","RIGHT VELUX LATERAL FLASHING SIZE 08 v.2022","RIGHT VELUX LATERAL FLASHING SIZE 08 v.2022","RIGHT VELUX LATERAL FLASHING SIZE 08 v.2022","RIGHT VELUX LATERAL FLASHING SIZE 08 v.2022","RIGHT VELUX LATERAL FLASHING SIZE 08 v.2022","RIGHT VELUX LATERAL FLASHING SIZE 08 v.2022",null,null,null,null,null,null,null,"ART105498"]
["Portrait","Portrait","Portrait","Portrait","Hochkant","Álló tájolás","Pion ","Вертикальный","Vertikální",null,null,null,null,null,null,null,null,null,"ART105519",null,null,null,"Abergement Lateral Gauche pour Velux TAILLE 10 v.2022","LEFT VELUX LATERAL FLASHING SIZE 10 v.2022","LEFT VELUX LATERAL FLASHING SIZE 10 v.2022","LEFT VELUX LATERAL FLASHING SIZE 10 v.2022","LEFT VELUX LATERAL FLASHING SIZE 10 v.2022","LEFT VELUX LATERAL FLASHING SIZE 10 v.2022","LEFT VELUX LATERAL FLASHING SIZE 10 v.2022","LEFT VELUX LATERAL FLASHING SIZE 10 v.2022",null,null,null,null,null,null,null,"ART105519"]
["Paysage","Paysage","Landscape","Landscape","Querformat","Fekvő tájolás","Poziom","Горизонтальный","Horizontální",null,null,null,null,null,null,null,null,null,"ART105505",null,null,null,"Abergement Lateral Droit pour Velux TAILLE 10 v.2022","RIGHT VELUX LATERAL FLASHING SIZE 10 v.2022","RIGHT VELUX LATERAL FLASHING SIZE 10 v.2022","RIGHT VELUX LATERAL FLASHING SIZE 10 v.2022","RIGHT VELUX LATERAL FLASHING SIZE 10 v.2022","RIGHT VELUX LATERAL FLASHING SIZE 10 v.2022","RIGHT VELUX LATERAL FLASHING SIZE 10 v.2022","RIGHT VELUX LATERAL FLASHING SIZE 10 v.2022",null,null,null,null,null,null,null,"ART105505"]
["NotePriceOpt","NB : Prix disponible auprès de votre interlocuteur habituel.","NB: Price available from your usual contact.","NB: Prijzen verkrijgbaar bij uw gebruikelijke contactpersoon.","NB: Preisinformationen erhalten Sie bei Ihrem üblichen Ansprechpartner.","NB: Ár elérhető partnereinknél.","NB: Cena dostępna u dystrybutora","NB: Цена доступна у наших партнеров.","Pozn.: Cena je k dispozici u vašeho obvyklého kontaktu.",null,null,null,null,null,null,null,null,null,"DPORT 1640 / 992",null,null,null,"DEMI_Po ","HALF_Po ","HALF_Po ","HALF_Po ","HALF_Po ","HALF_Po ","HALF_Po ","HALF_Po "]
["HidePrice","Masquer les prix","Hide prices","Verberg prijzen","Preise ausblenden","Árak elrejtése","Ukryj cenę","Скрыть цены","Skrýt ceny",null,null,null,null,null,null,null,null,null,"ART105351",null,null,null,"Abergement Intermodule 2012-2020","Intermodule Flashing 2012-2020",null,"Mittlere Blechabdeckung 2012-2020",null,null,null,null,null,null,null,null,null,null,null,"ART105351"]
["DisPrice","Afficher les prix","Show prices","Toon prijzen","Preise anzeigen","Árak mutatása","Pokaż cenę","Указать цены","Zobrazit ceny",null,null,null,null,null,null,null,null,null,"ART105554",null,null,null,"Abergement Intermodule 2022","Intermodule Flashing 2022",null,"Mittlere Blechabdeckung 2022",null,null,null,null,null,null,null,null,null,null,null,"ART105554"]
["WebLink1","Pour plus d’information sur le produit : www.gseintegration.com","For more information about the product: www.gseintegration.com","Voor meer informatie over het produkt : www.gseintegration.com","Für weitere Informationen über das Produkt: www.gseintegration.com","Több információért a termékről: www.hasznaldanapot.hu","Więcej informacji o produkcie: www.gseintegration.com","Для получения дополнительной информации о продукте: www.gseintegration.com","Další informace o produktu: www.gseintegration.com"]
["UpQte","Modifier les quantités","Change quantities","Wijzig hoeveelheden","Ändern Sie die Mengen","Mennyiség megváltoztatása","Zmień ilość","Изменить каличество","Změňte množství"]
["FzQte","Bloquer les quantités","Freeze quantities","Vergrendel hoeveelheden","Mengen sperren","Mennyiség rögzítése","Zachowaj ilość ","Зафиксировать количество","Freeze quantities"]
["Lang","Français","English","Nederlands","Deutsch","Angol","Polski","Английский","Angličtina"]
["PVPlant","Champ PV","PV Array","PV-veld","PV-Modulfeld","PV elrendezés","Macierz modułów PV","Раскладка PV-модулей","Rozložení FV modulů"]
["nbAS","Nombre de GSE Air'System","Number of GSE Air'System","Aantal GSE Air'System","Anzhal der GSE Air'System","GSE Levegő rendszerek száma","Ilość GSE Air'System","Количество GSE Air'System","Počet GSE Air'System"]
["KITATEC","Kit spécifique","Specific Kit","Specifieke kit","Spezifischer Kit","Specifikus szett","Zestaw specjalny","Конкретный комплект","Specifická sada"]
["KITUNI","Kit Universel","Universal Kit","Universele kit","Allgemeines Kit","Univerzális szett","Zestaw uniwersalny ","Универсальный комплект","Univerzální sada"]
["Autre","Autres","Others","Andere","Andere","Egyéb","Pozostałe ","Другие","Ostatní"]
["FENTOIT","Fenêtre de toit","Roof Window","Dakraam","Fenster am Dach","Tetőablak","Okno dachowe","Мансардное окно","Střešní okno"]
["NOFENTOIT","Pas de fenêtre","No Window","Geen raam","Kein Fenster","Nincs ablak","Brak okna ","Без окна","Žádné okno"]
["VISU","Visualiser le positionnement des abergements hauts et des bandes d'étanchéité sur le champ PV","Show the position of the top flashings and sealing strips on the PV plant","Toon de plaats van de bovenste afdekplaten en van de waterafdichtstrip op het PV-veld","Visualisierung der Positionierung der oberen Verblechungen und Dichtungsstreifen auf PV-modulfeld","Mutasd a felső burkolatot és szigetelő réteget a PV elrendezésen ","Pokaż położenie górnych obróbek blacharskich i taśm uszczelniających w układzie modułów fotowoltaicznych","Показать положение верхних планок и уплотнительных полос на раскладке PV-модулей.","Zobrazit umístění horních listových a těsnicích pásů na rozložení FV modulů."]
["SelecATECModmsg2","Sélectionnez en un.","Choose one.","Selecteer er één","Wähle ein.","Válasszon egyet.","Wybierz jeden.","Выберете один.","Vybrat jeden."]
["SelecATECModmsg3","La pente de toit est incorrecte pour la Tuile Canal (13.5° <= X <= 45°).","The roof slope is incorrect for 'Curved Tiles' (13.5° <= X <= 45°).","De dakhelling is onjuist voor 'Gebogen dakpannen' (13.5° <= X <= 45°).","Die Dachneigung der 'Gewölbten Kacheln' ist falsch (13,5° <= X <= 45°).","A megadott lejtés értéke nem megfelelő ' Ívelt cseréphez' (13.5° <= x <= 45°)","Kąt nachylenia dachu jest nieprawidłowy dla dachówki falistej (13,5 ° <= X <= 45 °).","Указанное значение уклона неверно для \"Изогнутой черепицы\" (13.5° <= X <= 45°).","Sklon střechy není správný pro „zakřivené  tašky“ (13.5° <= X <= 45°)."]
["SelecATECModmsg4","Corrigez la valeur.","Correct the value.","Corrigeer de waarde.","Berichtigen Sie den Wert.","Javítsa az értéket.","Popraw wartość.","Исправьте значение.","Opravte hodnotu."]
["SelecATECModmsg5","La pente de toit est incorrecte pour l'ardoise (14° <= X <= 45°).","The roof slope is incorrect for 'Slate' (14° <= X <= 45°).","De dakhelling is onjuist voor 'Leien' (14° <= X <= 45°).","Die Dachneigung  der  'Schiefer' ist falsch (14° <= X <= 45°).","A megadott lejtés értéke nem megfelelő ' Palához' (14° <= x <= 45°)","Kąt nachylenia dachu jest nieprawidłowy dla pokrycia dachowego z łupku (14° <= X <= 45°).","Указанное значение наклона неверно для \"Шифера\" (14° <= X <= 45°).","Sklon střechy není správný pro „Břidlice“ (14° <= X <= 45°)."]
["Pan1","Simple pan","Monopitch","Enkel dakvlak","Einfache Dachfläche","Féltető","Jednostronny","Односкатная","Pultová"]
["Pan2","Double pan","Duopitch","Dubbel dakvlak","Doppelte Dachplatte","Nyeregtető","Dwustronny","Двухскатная","Sedlová"]
["Dimension","Dimensions","Dimensions","Afmetingen","Dimensionen","Méretek","Wymiary","Размеры","Rozměry"]
["Conforme","Conforme à Avis Technique (France)","Compliant with the \"Avis Technique\" \n(French users only)","In overeenstemming met de \"Avis Technique\" \n(enkel voor gebruik in Frankrijk)","Entspricht der \"Avis Technique\" \n(nur für französische Benutzer)","Megfelel az \"Avis Technique\" előírásoknak (csak Francia felhasználóknak)","Zgodne z \"Avis Technique\" (Tylko francuscy użytkownicy)","Соответствует спецификациям \"Avis Technique\" \n(только для пользователей из Франции)","V souladu s \"Avis Technique\" \n(Pouze francouzští uživatelé)"]
["Avis","Module sous Avis Technique ","PV modules compliant with the \"Avis Technique\"","Zonnepaneel dat voldoet aan de \"Avis Technique\"","PV-Module, die mit der \"Avis Technique\" vorschriftsmäßig \nübereinstimmen","PV modul megfelel az \"Avis Technique\" előírásoknak","Moduły PV zgodne z \"Wymaganiami Technicznymi\"","PV-модули, соответствующие требованиям \"Avis Technique\"","FV panely vyhovující „Avis Technique“"]
["Techno","Technologie","Technology","Technologie","Technologie","Technológia","Technologia","Технология","Technologie"]
["Jonction","Boite de jonction splittée","Split junction box","Gesplitste aansluitdoos","Anschlusskasten","Osztott csatlakozódoboz","Rozdzielacz","Разъемная распределительная коробка","Rozdělená spojovací skříňka"]
["Renfort","Barre(s) de renfort","Rear support bar(s)","Achterste verstevigingsbalk(en)","Bewehrungsstab","Elülső segéd sáv(ok)","Tylny wspornik(i)","Задняя опорная балка(и)","Zadní nosná tyč(y)"]
["Abergement","Abergements","Flashings","Afdekplaten","Verblechung","Burkolatok","Obróbki blacharskie","Доборные элементы","Klempířské plechy"]
["Colorflex","Couleur FLEXALU","FLEXALU Color","Kleur FLEXALU","FLEXALU Farbe","FLEXALU szín","Kolor taśmy hydroizolacyjnej","Цвет FLEXALU","Barva FLEXALU"]
["Largeurflex","Largeur FLEXALU","FLEXALU Width","Breedte FLEXALU","FLEXALU Breite","FLEXALU szélesség","Szerokość taśmy hydroizolacyjnej","Ширина FLEXALU","Šířka FLEXALU"]
["Comment","Commentaires","Comments","Opmerkingen","Kommentare","Megjegyzések","Uwagi ","Комментарии","Komentáře"]
["Dessin","Dessin","Drawing","Tekening","Zeichnung","Rajz","Rysunek","Чертёж","Nákres"]
["Config","Insérer","Insert","Invoegen","Einfügen","Beilleszt","Wprowadź","Вставить","Vložit"]
["Objet","Objet","Item","Object","Objekt","Tétel","Przedmiot","Элемент","Položka"]
["Ajouter","Ajouter champ PV","Add new layout","Extra PV-veld","Anbauen","Új elrendezés hozzáadása","Dodaj nowy układ","Добавить новую раскладку","Přidat nové rozvržení"]
["Deplacement","Déplacement du champs PV","PV array moving","Verplaats het PV-veld","Bewegung","PV elrendezés mozgatása","Ruchomy układ modułów PV","Подвижная схема PV-модулей","Pohyblivé schéma FV modulů"]
["Message","Pour les abergements hauts des delais supplementaires de production sont a prevoir. Il est possible de les remplacer par du Flexalu","Additional time has to be considered for the production of the top center flashing. It is possible to replace it with Flexalu","Voor de bovenste afdekplaten is extra produktietijd nodig. Het is mogelijk ze te vervangen door Flexalu","Für die Herstellung der oberen Blechabdeckung muss zusätzliche Zeit berücksichtigt werden. Es ist möglich, sie durch Flexalu (Dichtungsband)  zu ersetzen.","A felső burkolat legyártása több időt vesz igénybe. Kiváltható FLEXALU alkalmazásával","Należy wziąć pod uwagę dodatkowy czas montażu na wykonanie górnej obróbki blacharskiej. Istnieje możliwość użycia taśmy hydroizolacyjnej. ","Необходимо учитывать дополнительное время сборки верхней центральной планки. Существует возможность использования гидроизоляционной ленты FLEXALU.","Je třeba vzít v úvahu dodatečnou dobu montáže pro provedení horní středové lišty. Existuje možnost použití hydroizolační pásky FLEXALU."]
["Message_toit","Valeurs en dehors du toit","Out of the roof","Waarden buiten het dak","Vom Dach aus","Tetőn kívül","Wartości poza dachem","За пределами крыши","Mimo střechu"]
["Calcul","Calcul des pièces","Calculate parts","Bereken de onderdelen","Berechnung","Alkatrészek kiszámítása","Oblicz części","Расчет деталей","Vypočítat díly"]
["Aucune_plaque","Aucune plaque trouvée","No GSE frame found","Geen GSE montageplaat gevonden","Keine GSE-Wanne gefunden","Nem található megfelelő GSE keret","Nie znaleziono ramy GSE","GSE рама не найдена","Nebyl nalezen žádný rám GSE"]
["Choisir_plaque","Choisir plaque","Select GSE frame","Selecteer de GSE montageplaat","Auswählen GSE-Wanne","Válasszd ki a GSE keretet","Wybierz ramę GSE","Выбирете GSE раму","Vyberte rám GSE"]
["EcranToiture","Ecran de sous toiture","Roofing Underlay","Dakfolie","Unterspannbahn","Tető szigetelés","Podkład dachowy","Утепление крыши","Izolace střechy"]
["projet","projet","project","project  ","projekt\n","projekt","projekt ","проект","projekt"]
["info_rampant","Si vous ne connaissez pas la longueur de rampant, saisissez l’inclinaison et la largeur du toit pour la déterminer.","If you don’t know the roof width (R), enter the roof slope (α) and the house width (W) to determine it.","Als u de dakbreedte (R) niet weet, voer dan de dakhelling (α) en de huisbreedte (W) in om deze te bepalen","Wenn Sie die Dachfläche nicht kennen, geben Sie dessen Neigung und die Breite des Hauses ein, um diese zu bestimmen.","Ha nem tudja a tető szélességét('R), adja meg a tető lejtését(α) és a ház szélességét (W) a meghatározásához.","Jeśli nie znasz szerokości dachu (R), wprowadź kąt nachylenie dachu (α) i szerokość budynku (W), aby ją zdefiniować.","Если вы не знаете ширину крыши (R), введите уклон крыши (α) и ширину дома (W), чтобы определить ее.","Pokud neznáte šířku střechy (R), zadejte její sklon (α) a šířku budovy (W)."]
["inserer","Insérer un champ prédéfini","Set up a predefined PV array","Geef een voorgedefiniëerd PV-veld op","Einfügen einer vordefinierten PV-Anordnung","Előre meghatározott PV elrendezés megadása","Skonfiguruj wstępnie zdefiniowaną macierz modułów PV","Настроить стандартную раскладку PV-модулей","Přizpůsobit standardní rozložení FV modulů"]
["ligne","Lignes","Lines","Rijen","Zeilen","Sorok","Linie","Ряды","Řádky"]
["colonne","Colonnes","Columns","Kolommen","Spalten","Oszlopok","Kolumny ","Столбцы","Sloupce"]
["Dessiner","Dessiner le champ PV","Draw the PV array","Teken het PV-veld","Zeichnen der PV-Anordnung","PV elrendezés megrajzolása","Narysuj tablicę macierz modułów PV","Создать раскладку PV-модулей","Vytvořit rozložení FV modulů"]
["liste","Liste de matériel","Bill of material","Materiaallijst","Stückliste","Anyagszámla","Zestawienie materiałów","Смета материалов","Bill of material"]
["legende1","Abergement de faîtage","Top Flashing","Bovenste afdekplaat","Eckverblechung","Felső burkolat","Obróbka do szczytowej krawędzi dachu ","Верхний отлив","Horní okapnice"]
["legende2","Abergement latéral","Lateral Flashing","Zij afdekplaat","Seitliche Verblechung","Oldalsó burkolat","Obróbka do bocznej krawędzi dachu","Торцевая планка","Koncová lišta"]
["legende3","Bande d'étanchéité FLEXALU","FLEXALU Waterproofing Strip","FLEXALU waterafdichtingsstrip","FLEXALU Dichtungband","FLEXALU vízzáró szalag","Taśma hydroizolacyjna ","Гидроизоляционная лента FLEXALU","Hydroizolační pás FLEXALU"]
["Haut2","Hauteur (m)","Height (m)","Hoogte (m)","Höhe (m)","Magasság (m)","Wysokość (m)","Высота (м)","Výška (m)"]
["Larg2","Largeur (m)","Width (m)","Breedte (m)","Breite (m)","Szélesség (m)","Szerokość (m)","Ширина (м)","Šířka (m)"]
["Larg3","Largeur (L)","Width (L)","Breedte (L)","Breite (L)","Szélesség (L)","Szerokość (L)","Ширина (L)","Šířka (L)"]
["Messtoit","Veuillez saisir les dimensions du toit avant d’accéder à la partie Calepinage.","Please enter the roof dimensions before accessing the Layout section.","Voer de dakafmetingen in voordat u naar het Lay-out gedeelte gaat.","Please enter the roof dimensions before accessing the Layout section.","Kérem adja meg a tető méreteit mielőtt tovább lép az elrendezés szekcióba.","Wprowadź wymiary dachu przed przejściem do sekcji Układ.","Пожалуйста, введите размеры крыши, прежде чем переходить к разделу «Раскладка».","Před vstupem do sekce Rozvržení zadejte rozměry střechy."]
["Produit","Produit","Product","Producten","Produkt","Termékek","Produkt","Продукт","Výrobky"]
["Reset","Reset","Reset","Reset","Reset","Visszaállítás","Resetowanie","Сбросить","Resetovat"]
["Position X","Position X","Positon X","Positie X","Positon X","Pozíció X","Pozycja X","Положение X ","Pozice X "]
["Position Y","Position Y","Position Y","Positie Y","Position Y","Pozíció Y","Pozycja Y","Положение Y ","Pozice Y "]
["Messtaille","Les dimensions du toit ne permettent pas d’installer une ligne et/ou colonne de module photovoltaïque avec le système GSE In-Roof. Veuillez modifier les dimensions de la toiture pour passer à l’onglet Calepinage. ","The roof dimensions do not allow the installation of one row and/or column of photovoltaic modules with the GSE In-Roof system. Please change the roof dimensions to be able to continue to the Layout tab.","De afmetingen van het dak laten de installatie van één rij en/of kolom van zonnepanelen niet toe met het GSE In-Roof systeem. Wijzig de dakafmetingen om naar het tabblad “opstelling” te gaan.","Die Abmessungen des Daches lassen die Installation einer Reihe und/oder Säule von Photovoltaikmodulen mit dem GSE-In-Roof-System nicht zu. Bitte ändern Sie die Dachabmessungen in der Registerkarte Lattenplan.","A tetőméretek nem teszik lehetővé a fotovoltaikus modulok sorának és/vagy oszlopának telepítését a GSE In-Roof rendszerrel. Kérjük, módosítsa a tető méreteit az Elrendezés lapon.","Wymiary dachu nie pozwalają na montaż rzędu i/lub kolumny modułów fotowoltaicznych w systemie GSE In-Roof. Proszę zmienić wymiary dachu w zakładce Układ.","Размеры крыши не позволяют установить горизонтальный ряд и/или вертикальный ряд фотоэлектрических модулей с системой GSE IN-ROOF.  Измените размеры крыши и перейдите на вкладку Макет.","Rozměry střechy neumožňují instalaci řady a / nebo sloupku fotovoltaických modulů se systémem GSE In-Roof.  Změňte rozměry střechy a přejděte na kartu Rozvržení."]
["Sansprix","Se renseigner auprès d’un distributeur","Check with a distributor","Check with a distributor","Check with a distributor","Check with a distributor","Check with a distributor","Check with a distributor","Check with a distributor"]
["mess_velux","Cliquer sur un module PV pour générer une fenêtre de toit","Click on a PV module to generate a roof window","Click on a PV module to generate a roof window","Click on a PV module to generate a roof window","Click on a PV module to generate a roof window","Click on a PV module to generate a roof window","Click on a PV module to generate a roof window","Click on a PV module to generate a roof window"]
["legende4","Bande d’étanchéité Flexalu pour fenêtre de toit","Flexalu Waterproofing strip for the roof window","Flexalu Waterproofing strip for the roof window","Flexalu Waterproofing strip for the roof window","Flexalu Waterproofing strip for the roof window","Flexalu Waterproofing strip for the roof window","Flexalu Waterproofing strip for the roof window","Flexalu Waterproofing strip for the roof window"]
["legende5","Abergement Velux GSEi","GSEi Velux Flashing","GSEi Velux Flashing","GSEi Velux Flashing","GSEi Velux Flashing","GSEi Velux Flashing","GSEi Velux Flashing","GSEi Velux Flashing"]
["Choisir_velux","Choisir VELUX","Select VELUX","Selecteer de VELUX","Auswählen VELUX","Válasszd ki a VELUX","Wybierz VELUX","Выбирете VELUX","Vyberte VELUX"]

{"sheet":"Home","index":1,"n_rows":0,"n_cols":0,"rows_kept":0,"cut":false,"hidden":false,"merged":[]}

{"sheet":"Listes","index":2,"n_rows":34,"n_cols":31,"rows_kept":34,"cut":false,"hidden":true,"merged":[]}
["Epaisseur Module PV",null,"Pans","Module","Hauteur (mm)","Largeur (mm)","Epaisseur (mm)",null,null,null,null,null,null,null,null,null,null,null,null,null,null,"Type couverture","Oui/non","Raccord haut","Raccord bas","Couleur","Langue numéro","couleur etrier","Message velux","liste_velux","index_velux"]
[30,null,1,"AUO SunPrimo PM060PW1",1640,992,40,250,255,260,265,270,275,280,285,290,295,300,305,310,null,{"$f":"VLOOKUP(\"TuileM\",BD!$A$1:$P$200,Listes!$AA$2+1,0)","v":"Tuile mécanique"},{"$f":"VLOOKUP(\"Yes\",BD!$A$1:$P$200,Listes!$AA$2+1,0)","v":"Oui"},{"$f":"VLOOKUP(\"None1\",BD!$A$1:$P$200,Listes!$AA$2+1,0)","v":"Aucun"},{"$f":"VLOOKUP(\"None1\",BD!$A$1:$P$200,Listes!$AA$2+1,0)","v":"Aucun"},{"$f":"UPPER(trad(\"Noir\"))","v":"NOIR"},{"$f":"MATCH(s_langue,BD!$B$1:$P$1,0)","v":1},"NOIR",{"$f":"VLOOKUP(\"mess_velux\",BD!$A$1:$P$200,Listes!$AA$2+1,0)","v":"Cliquer sur un module PV pour générer une fenêtre de toit"},"MK06",4]
[31,null,2,"AUO SunVivo PM060MX2",1640,992,40,250,255,260,265,270,275,280,285,290,295,300,305,310,null,{"$f":"VLOOKUP(\"Ardoise\",BD!$A$1:$P$200,Listes!$AA$2+1,0)","v":"Ardoise"},{"$f":"VLOOKUP(\"No\",BD!$A$1:$P$200,Listes!$AA$2+1,0)","v":"Non"},{"$f":"VLOOKUP(\"Aberfait\",BD!$A$1:$P$200,Listes!$AA$2+1,0)","v":"Abergement"},"FLEXALU",null,null,null,null,"MK08",6]
[32,null,null,"AUO SunForte PM096B00",1559,1046,46,325,327,330,333,335,0,0,0,0,0,0,0,0,null,{"$f":"VLOOKUP(\"TuileC\",BD!$A$1:$P$200,Listes!$AA$2+1,0)","v":"Tuile à fort galbe"},null,"FLEXALU"]
[33,null,null,"BISOL BMU",1649,991,35,250,255,260,265,270,275,280,285,0,0,0,0,0,null,{"$f":"VLOOKUP(\"Tuile\",BD!$A$1:$P$200,Listes!$AA$2+1,0)","v":"Tuile plate"}]
[34,null,null,"BISOL BMO",1649,991,35,280,285,290,295,300,305,0,0,0,0,0,0,0,null,{"$f":"VLOOKUP(\"PlaqueN\",BD!$A$1:$P$200,Listes!$AA$2+1,0)","v":"Plaque nervurée"}]
[35,null,null,"SolarWorld Sunmodule Plus SW poly",1675,1001,33,250,255,260,265,270,275,0,0,0,0,0,0,0,null,{"$f":"VLOOKUP(\"PlaqueO\",BD!$A$1:$P$200,Listes!$AA$2+1,0)","v":"Plaque ondulée"}]
[36,null,null,"SolarWorld Sunmodule Plus SW mono",1675,1001,33,280,290,300,0,0,0,0,0,0,0,0,0,0]
[37,null,null,"Soluxtec Das Modul Multi Serie FR 60",1645,985,35,250,255,260,265,0,0,0,0,0,0,0,0,0]
[38,null,null,"Soluxtec Das Modul Mono Serie FR 60",1645,985,35,275,280,285,290,295,300,0,0,0,0,0,0,0]
[39,null,null,"SunPower SPR-E20/X21/X22",1559,1046,46,327,345,350,360,0,0,0,0,0,0,0,0,0]
[40,null,null,"Trina TSM-PD05",1650,992,35,255,260,265,270,0,0,0,0,0,0,0,0,0]
[41,null,null,"Trina TSM-DD05A",1650,992,35,270,275,280,285,290,0,0,0,0,0,0,0,0]
[42,null,null,"Viessmann Vitovolt 300 P",1640,992,40,250,255,260,265,270,0,0,0,0,0,0,0,0]
[43,null,null,"Viessmann Vitovolt 300 P",1640,992,40,275,280,285,290,295,300,305,310,0,0,0,0,0]
[44,null,null,"SOLUXTEC DAS MODUL Mono FS",1665,1005,35,315,320,325,330,0,0,0,0,0,0,0,0,0]
[45,null,null,"SUNPOWER Maxeon 2",1690,1046,40,340,345,350,355,360,0,0,0,0,0,0,0,0]
[46,null,null,"SUNPOWER Maxeon 3",1690,1046,40,370,375,380,385,390,395,400,0,0,0,0,0,0]
[47,null,null,"TRINASOLAR TSM-DE06M(II) ",1690,996,35,325,330,335,340,0,0,0,0,0,0,0,0,0]
[48,null,null,"TRINASOLAR TSM-DD06M.05(II)",1690,996,35,310,315,320,325,330,335,0,0,0,0,0,0,0]
[49,null,null,"TRINASOLAR TSM-PE06H",1690,996,35,285,290,295,300,0,0,0,0,0,0,0,0,0]
[50,null,null,"LG NeON’2  N1C",1686,1016,40,330,335,340,345,350,355,360,0,0,0,0,0,0]
[null,null,null,"LG NeON’2  N1K",1686,1016,40,325,330,335,340,0,0,0,0,0,0,0,0,0]
[null,null,null,"LG NeON’2  N1T",1686,1016,40,335,340,345,0,0,0,0,0,0,0,0,0,0]
[null,null,null,"LG NeON’R Q1C",1700,1016,40,360,365,370,375,380,0,0,0,0,0,0,0,0]
[null,null,null,"LG NeON’R Q1K",1700,1016,40,335,340,345,350,355,360,365,370,0,0,0,0,0]
[null,null,null,"JA SOLAR JAP60S09/SC",1657,996,35,270,275,280,285,290,0,0,0,0,0,0,0,0]
[null,null,null,"JA SOLAR JAM60S09/PR",1657,996,35,310,315,320,325,330,0,0,0,0,0,0,0,0]
[null,null,null,"JA SOLAR JAM60S12/PR",1657,996,35,305,310,315,320,325,0,0,0,0,0,0,0,0]
[null,null,null,"CSUNxxx-60M 1640x990x35",1640,990,35,295,300,305,310,315,0,0,0,0,0,0,0,0]
[null,null,null,"CSUNxxx-60M 1658x996x35",1658,996,35,315,320,325,330,0,0,0,0,0,0,0,0,0]
[null,null,null,"CSUNxxx-120M",1684,1002,35,310,315,320,325,330,335,340,0,0,0,0,0,0]
[null,null,null,"PERLIGHT PLM-XXXMB-60",1640,992,35,270,275,280,285,290,295,300,305,310,0,0,0,0]
[null,null,null,"Autres",0,0,0,0,0,0,0,0,0,0,0,0,0,0,0,0]

{"sheet":"Accueil","index":3,"n_rows":46,"n_cols":13,"rows_kept":46,"cut":false,"hidden":false,"merged":[[2,2,2,12],[3,2,3,12],[42,3,42,4],[6,3,8,11]]}
[]
[]
[null,null,{"$f":"VLOOKUP(\"HomeT1\",BD!$A$1:$P$200,Listes!$AA$2+1,0)","v":"BIENVENUE DANS L'OUTIL DE DIMENSIONNEMENT ET COMMANDE "}]
[null,null,{"$f":"VLOOKUP(\"HomeT2\",BD!$A$1:$P$200,Listes!$AA$2+1,0)","v":"DU GSE INTEGRATION IN-ROOF SYSTEM"}]
[]
[null,null,null,null,null,null,null,null,null,null,null,null,"Français"]
[null,null,null,{"$f":"VLOOKUP(\"HomeT3\",BD!$A$1:$P$200,Listes!$AA$2+1,0)","v":"Vous trouverez à travers cette application l'outil qui vous permettra de calculer et de dimensionner vos commandes"}]
[]
[]
[]
[]
[]
[]
[]
[]
[]
[]
[]
[]
[]
[]
[]
[]
[]
[]
[]
[]
[]
[]
[]
[]
[]
[]
[]
[]
[]
[]
[]
[]
[]
[]
[]
[null,null,{"$f":"VLOOKUP(\"Produit\",BD!$A$1:$P$200,Listes!$AA$2+1,0)","v":"Produit"},"GSE IN-ROOF"]
[null,null,null,null,null,null,null,"GSE Intégration"]
[null,null,null,null,null,null,null,"5 - 9 rue Morand - 93400 Saint Ouen"]
[null,null,null,null,null,null,null,"Tel : +33(0)1.49.48.14.51 - contact@gseintegration.fr - www.gseintegration.com"]

{"sheet":"Projet","index":4,"n_rows":68,"n_cols":100,"rows_kept":68,"cut":false,"hidden":true,"merged":[[2,79,2,99],[6,2,6,4],[8,2,8,3],[3,9,3,12],[10,9,11,12],[3,35,3,38],[3,42,3,43],[8,16,8,17],[29,3,29,5],[12,9,12,12],[37,9,37,11],[8,9,9,12],[1,9,1,12],[16,17,16,19],[18,17,18,19],[20,17,20,19],[20,16,21,16],[10,17,10,19]]}
[null,null,null,null,null,null,null,null,null,null,null,null,null,null,null,null,null,null,null,null,null,null,null,null,null,null,null,null,"Po 1710 / 995",1710,995,"H16"]
[null,null,null,null,null,null,null,null,null,{"$f":"VLOOKUP(\"RefCmpPV\",BD!$A$1:$P$200,Listes!$AA$2+1,0)","v":"Référence du projet"},null,null,null,null,null,null,null,null,null,null,null,null,null,null,null,null,null,null,"Po 1710 / 1000",1710,1000,"H16"]
[null,null,null,null,null,null,null,null,null,null,null,null,null,null,null,null,null,null,null,null,null,null,null,null,null,null,"Pan",1,"Dpo 1650 / 995",1650,995,"H16",null,null,null,null,null,null,null,null,null,null,null,null,null,null,null,null,null,null,null,null,null,null,null,null,null,null,null,null,null,null,null,null,null,null,null,null,null,null,null,null,null,null,null,null,null,null,null,"Intermodule"]
[null,null,null,null,null,null,null,null,null,null,null,null,null,null,null,null,null,null,null,null,null,null,null,null,null,null,"Hauteur ref :",1650,null,null,null,null,null,null,"Référence","Tolérances dimensionnelles",null,null,null,null,null,null,"Dimensions de référence de la plaque GSE",null,null,null,null,null,null,null,null,null,null,null,30,31,32,33,34,35,36,37,38,39,40,41,42,43,44,45,46,47,48,49,50,null,null,null,null,30,31,32,33,34,35,36,37,38,39,40,41,42,43,44,45,46,47,48,49,50]
[null,null,null,null,null,null,null,null,null,null,null,null,null,null,null,null,null,null,null,null,null,null,null,null,null,null,"Largueur ref :",995,null,null,null,null,null,"Version","PLAQUE","HAUTEUR MINIMUM","HAUTEUR MAXIMUM","LARGEUR MINIMUM","LARGEUR MAXIMUM","EPAISSEUR MIN","Demi cellule","Renfort","Hauteur ref","Larg ref","Orientation","Pas ondes","Débord ondes","Ajust_haut","Haut  plaque","Ajustement de la graduation","Flexalu"]
[null,null,null,null,null,null,null,null,null,null,null,null,null,null,null,null,null,null,null,null,null,null,null,null,null,null,"Lignes :",9,null,null,null,null,null,2012,"Po 1575 / 1046",1525,1675,1041,1046,35,null,null,1575,1046,"PORTRAIT",36.5,30,1,160,null,null,null,null,null,null,null,null,null,null,"H16","H16","H16","H19","H19","H21","H21","H23","H23","H23","H26","H26","H27","H27",null,"H31",null,null,2012,"Po 1575 / 1046",null,null,null,null,null,"H14","H14","H14","H16","H16","H16","H19","H19","H21","H21","H23","H23","H23","H26","H26","H27"]
[null,null,{"$f":"VLOOKUP(\"DimToit\",BD!$A$1:$P$200,Listes!$AA$2+1,0)","v":"Caractéristiques du toit"},null,null,null,null,null,null,{"$f":"VLOOKUP(\"DimMod\",BD!$A$1:$P$200,Listes!$AA$2+1,0)","v":"Caractéristiques du module"},null,null,null,null,null,null,{"$f":"VLOOKUP(\"FeatCmpPV\",BD!$A$1:$P$200,Listes!$AA$2+1,0)","v":"Composants du kit"},null,null,null,null,null,null,null,null,null,"Colonnes :",18,null,null,null,null,null,2012,"Po 1575 / 1053",1525,1675,1048,1053,35,null,null,1575,1053,"PORTRAIT",36.5,30,1,160,null,null,null,null,null,null,null,null,null,null,"H16","H16","H16","H19","H19","H21","H21","H23","H23","H23","H26","H26","H27","H27",null,"H31",null,null,2012,"Po 1575 / 1053",null,null,null,null,null,"H14","H14","H14","H16","H16","H16","H19","H19","H21","H21","H23","H23","H23","H26","H26","H27"]
[null,null,null,null,null,null,null,null,null,null,null,null,null,null,null,null,null,null,null,null,null,null,null,null,null,null,"Ajustement :",30,null,null,null,null,null,2012,"Po 1575 / 1082",1525,1675,1077,1082,35,null,null,1575,1082,"PORTRAIT",36.5,30,1,160,null,null,null,null,null,null,null,null,null,null,"H16","H16","H16","H19","H19","H21","H21","H23","H23","H23","H26","H26","H27","H27",null,"H31",null,null,2012,"Po 1575 / 1082",null,null,null,null,null,"H14","H14","H14","H16","H16","H16","H19","H19","H21","H21","H23","H23","H23","H26","H26","H27"]
[null,null,{"$f":"VLOOKUP(\"Pan1\",BD!$A$1:$P$200,Listes!$AA$2+1,0)","v":"Simple pan"},null,{"$f":"VLOOKUP(\"Pan2\",BD!$A$1:$P$200,Listes!$AA$2+1,0)","v":"Double pan"},null,null,null,false,{"$f":"VLOOKUP(\"Conforme\",BD!$A$1:$P$200,Listes!$AA$2+1,0)","v":"Conforme à Avis Technique (France)"},null,null,null,null,null,null,{"$f":"VLOOKUP(\"Abergement\",BD!$A$1:$P$200,Listes!$AA$2+1,0)&\" :\"","v":"Abergements :"},null,null,null,null,null,null,null,null,null,"Intermodule :",10,null,null,null,null,null,2012,"Po 1580 / 808",1530,1680,803,808,35,null,null,1580,808,"PORTRAIT",36.5,30,1,160,"non","non",null,null,null,null,null,null,null,null,"H16","H16","H16","H19","H19","H21","H21","H23","H23","H23","H26","H26","H27","H27",null,"H31",null,null,2012,"Po 1580 / 808",null,null,null,null,null,"H14","H14","H14","H16","H16","H16","H19","H19","H21","H21","H23","H23","H23","H26","H26","H27"]
[null,null,null,null,null,null,null,null,null,null,null,null,null,null,null,null,null,null,null,null,null,null,null,null,null,null,"Hauteur :",15.61,null,null,null,null,null,2012,"Po 1640 / 992",1590,1740,987,992,35,null,null,1640,992,"PORTRAIT",36.5,30,1,160,"si > 20mm","Oui, 1200mm de large",null,null,null,null,null,null,null,null,"H16","H16","H16","H19","H19","H21","H21","H23","H23","H23","H26","H26","H27","H27",null,"H31",null,null,2012,"Po 1640 / 992",null,null,null,null,null,"H14","H14","H14","H16","H16","H16","H19","H19","H21","H21","H23","H23","H23","H26","H26","H27"]
[null,null,null,null,null,null,null,null,null,{"$f":"VLOOKUP(\"Avis\",BD!$A$1:$P$200,Listes!$AA$2+1,0)","v":"Module sous Avis Technique "},null,null,null,null,null,2,{"$f":"VLOOKUP(\"KITUNI\",BD!$A$1:$P$200,Listes!$AA$2+1,0)","v":"Kit Universel"},{"$f":"VLOOKUP(\"KITATEC\",BD!$A$1:$P$200,Listes!$AA$2+1,0)","v":"Kit spécifique"},null,null,null,null,null,null,null,null,"Longueur :",18.663,null,null,null,null,null,2012,"Po 1640 / 1001",1590,1740,996,1001,35,null,null,1640,1001,"PORTRAIT",36.5,30,1,160,"si > 20mm","Oui, 1200mm de large",null,null,null,null,null,null,null,null,"H16","H16","H16","H19","H19","H21","H21","H23","H23","H23","H26","H26","H27","H27",null,"H31",null,null,2012,"Po 1640 / 1001",null,null,null,null,null,"H14","H14","H14","H16","H16","H16","H19","H19","H21","H21","H23","H23","H23","H26","H26","H27"]
[null,null,null,null,null,null,null,null,null,null,null,null,null,null,null,null,null,null,null,null,null,null,null,null,null,{"$f":"VLOOKUP(v_plaque,$AI:$CV,MATCH(v_epaisseur,$AI$4:$CV$4,0),0)","v":{"$error":"#N/A"}},"simple Etrier double",{"$f":"VLOOKUP(v_plaque,$AI:$CV,MATCH(v_epaisseur,$AI$4:$CV$4,0)+IF(v_intermodule=TRUE,25,0),0)","v":{"$error":"#N/A"}},null,null,null,null,null,2012,"Po 1640 / 1001 P33",1590,1740,996,1001,32,null,null,1640,1001,"PORTRAIT",36.5,30,1,160,"si > 20mm","Oui, 1200mm de large",null,null,null,null,null,"H16","H16","H16","H19","H19","H21","H21","H23","H23","H23","H26","H26","H27","H27",null,"H31","H31","H31",null,null,null,2012,"Po 1640 / 1001 P33",null,null,"H14","H14","H14","H16","H16","H16","H19","H19","H21","H21","H23","H23","H23","H26","H26","H27","H27",null,"H31"]
[null,null,null,null,null,null,null,null,null,"Autres",null,null,null,null,null,null,{"$f":"VLOOKUP(\"ColorAber\",BD!$A$1:$P$200,Listes!$AA$2+1,0)&\" :\"","v":"Couleur :"},"NOIR",null,null,null,null,null,null,null,null,"Nb etriers",{"$f":"IF(flex_etrier=1,4,6)","v":4},null,null,null,null,null,2012,"Po 1685 / 1016",1635,1755,1011,1016,35,null,null,1685,1016,"PORTRAIT",36.5,30,1,160,"Toutes les valeurs","Oui, 1200mm de large",null,null,null,null,null,null,null,null,"H16","H16","H16","H19","H19","H21","H21","H23","H23","H23","H26","H26","H27","H27","H27","H31",null,null,2012,"Po 1685 / 1016",null,null,null,null,null,"H14","H14","H14","H16","H16","H16","H19","H19","H21","H21","H23","H23","H23","H26","H26","H27"]
[null,null,null,null,null,null,null,null,null,null,null,null,null,null,null,null,null,null,null,null,null,null,null,null,null,36.5,"Pas ondes",40,null,null,null,null,null,2020,"Po 1710 / 995",1660,1780,990,995,30,"Oui","Oui",1710,995,"PORTRAIT",36.5,30,1,130,"Toutes les valeurs","Oui, 1200mm de large",null,null,null,"H16","H16","H16","H19","H19","H21","H21","H23","H23","H23","H26","H26","H27","H27",null,"H31","H31","H31",null,null,null,null,null,2020,"Po 1710 / 995","H14","H14","H14","H16","H16","H16","H19","H19","H21","H21","H23","H23","H23","H26","H26","H27","H27",null,"H31","H31","H31"]
[null,null,null,null,null,null,null,null,null,{"$f":"VLOOKUP(\"Dimension\",BD!$A$1:$P$200,Listes!$AA$2+1,0)&\" :\"","v":"Dimensions :"},null,null,null,null,null,null,null,null,null,null,null,null,null,null,null,null,"Débord ondes",33,null,null,null,null,null,2020,"Po 1710 / 1000",1660,1780,995,1000,30,"Oui","Oui",1710,1000,"PORTRAIT",36.5,30,1,130,"Toutes les valeurs","Oui, 1200mm de large",null,null,null,"H16","H16","H16","H19","H19","H21","H21","H23","H23","H23","H26","H26","H27","H27",null,"H31","H31","H31",null,null,null,null,null,2020,"Po 1710 / 1000","H14","H14","H14","H16","H16","H16","H19","H19","H21","H21","H23","H23","H23","H26","H26","H27","H27",null,"H31","H31","H31"]
[null,null,null,null,null,null,null,null,null,null,null,null,null,null,null,null,null,null,null,null,null,null,null,null,null,"ajustement/ajuste_haut","Ajust_haut",0.5,null,null,null,null,null,2020,"Po 1710 / 1005",1660,1780,1000,1005,30,"Oui","Oui",1710,1005,"PORTRAIT",36.5,30,1,130,"Toutes les valeurs","Oui, 1200mm de large",null,null,null,"H16","H16","H16","H19","H19","H21","H21","H23","H23","H23","H26","H26","H27","H27",null,"H31","H31","H31",null,null,null,null,null,2020,"Po 1710 / 1005","H14","H14","H14","H16","H16","H16","H19","H19","H21","H21","H23","H23","H23","H26","H26","H27","H27",null,"H31","H31","H31"]
[null,null,null,null,null,null,null,null,null,{"$f":"VLOOKUP(\"Haut\",BD!$A$1:$P$200,Listes!$AA$2+1,0)&\" :\"","v":"Hauteur (H) :"},null,"mm",null,null,null,null,{"$f":"VLOOKUP(\"AberLat\",BD!$A$1:$P$200,Listes!$AA$2+1,0)&\" :\"","v":"Raccord latéral :"},"Abergement",null,null,null,null,null,null,null,160,"Haut  plaque",160,null,null,null,null,null,2020,"Po 1710 / 1010",1660,1780,1005,1010,30,"Oui","Oui",1710,1010,"PORTRAIT",36.5,30,1,130,"Toutes les valeurs","Oui, 1200mm de large",null,null,null,"H16","H16","H16","H19","H19","H21","H21","H23","H23","H23","H26","H26","H27","H27",null,"H31","H31","H31",null,null,null,null,null,2020,"Po 1710 / 1010","H14","H14","H14","H16","H16","H16","H19","H19","H21","H21","H23","H23","H23","H26","H26","H27","H27",null,"H31","H31","H31"]
[null,null,null,null,null,null,null,null,null,null,null,null,null,null,null,null,null,null,null,null,null,null,null,null,null,null,"Flex Velux",330,null,null,null,null,null,2020,"Po 1710 / 1020",1660,1780,1015,1020,30,"Oui","Oui",1710,1020,"PORTRAIT",36.5,30,1,130,"Toutes les valeurs","Oui, 1200mm de large",null,null,null,"H16","H16","H16","H19","H19","H21","H21","H23","H23","H23","H26","H26","H27","H27",null,"H31","H31","H31",null,null,null,null,null,2020,"Po 1710 / 1020","H14","H14","H14","H16","H16","H16","H19","H19","H21","H21","H23","H23","H23","H26","H26","H27","H27",null,"H31","H31","H31"]
[null,null,null,null,null,null,null,null,null,{"$f":"VLOOKUP(\"Larg3\",BD!$A$1:$P$200,Listes!$AA$2+1,0)&\" :\"","v":"Largeur (L) :"},null,"mm",null,null,null,null,{"$f":"VLOOKUP(\"RacFait\",BD!$A$1:$P$200,Listes!$AA$2+1,0)&\" :\"","v":"Raccord haut :"},"Abergement",null,null,null,null,null,null,null,null,"au","av",null,null,null,null,null,2020,"Po 1710 / 1025",1660,1780,1020,1025,30,"Oui","Oui",1710,1025,"PORTRAIT",36.5,30,1,130,"Toutes les valeurs","Oui, 1200mm de large",null,null,null,"H16","H16","H16","H19","H19","H21","H21","H23","H23","H23","H26","H26","H27","H27",null,"H31","H31","H31",null,null,null,null,null,2020,"Po 1710 / 1025","H14","H14","H14","H16","H16","H16","H19","H19","H21","H21","H23","H23","H23","H26","H26","H27","H27",null,"H31","H31","H31"]
[null,null,null,null,null,null,null,null,null,null,null,null,null,null,null,null,null,null,null,null,null,null,null,null,null,null,null,null,null,null,null,null,null,2020,"Po 1710 / 1030",1660,1780,1025,1030,30,"Oui","Oui",1710,1030,"PORTRAIT",36.5,30,1,130,"Toutes les valeurs","Oui, 1200mm de large",null,null,null,"H16","H16","H16","H19","H19","H21","H21","H23","H23","H23","H26","H26","H27","H27",null,"H31","H31","H31",null,null,null,null,null,2020,"Po 1710 / 1030","H14","H14","H14","H16","H16","H16","H19","H19","H21","H21","H23","H23","H23","H26","H26","H27","H27",null,"H31","H31","H31"]
[null,null,null,null,null,null,null,null,null,{"$f":"VLOOKUP(\"Epai\",BD!$A$1:$P$200,Listes!$AA$2+1,0)&\" :\"","v":"Epaisseur (E) :"},null,"mm",null,null,null,null,{"$f":"VLOOKUP(\"RacEgout\",BD!$A$1:$P$200,Listes!$AA$2+1,0)&\" :\"","v":"Raccord bas :"},"FLEXALU",null,null,null,null,null,null,null,null,null,null,null,null,null,null,null,2020,"Po 1710 / 1040",1660,1780,1035,1040,30,"Oui","Oui",1710,1040,"PORTRAIT",36.5,30,1,130,"Toutes les valeurs","Oui, 1200mm de large",null,null,null,"H16","H16","H16","H19","H19","H21","H21","H23","H23","H23","H26","H26","H27","H27",null,"H31","H31","H31",null,null,null,null,null,2020,"Po 1710 / 1040","H14","H14","H14","H16","H16","H16","H19","H19","H21","H21","H23","H23","H23","H26","H26","H27","H27",null,"H31","H31","H31"]
[null,null,{"$f":"VLOOKUP(\"Long\",BD!$A$1:$P$200,Listes!$AA$2+1,0)&\" :\"","v":"Longueur (L) :"},null,"m",null,null,null,null,null,null,null,null,null,null,null,null,null,null,null,null,null,null,null,null,null,null,null,null,null,null,null,null,2020,"Po 1710 / 1045",1660,1780,1040,1045,30,"Oui","Oui",1710,1045,"PORTRAIT",36.5,30,1,130,"Toutes les valeurs","Oui, 1200mm de large",null,null,null,"H16","H16","H16","H19","H19","H21","H21","H23","H23","H23","H26","H26","H27","H27",null,"H31","H31","H31",null,null,null,null,null,2020,"Po 1710 / 1045","H14","H14","H14","H16","H16","H16","H19","H19","H21","H21","H23","H23","H23","H26","H26","H27","H27",null,"H31","H31","H31"]
[null,null,null,null,null,null,null,null,null,null,null,null,null,null,null,null,null,null,null,null,null,null,null,null,null,null,null,null,null,null,null,null,null,2020,"Po 1710 / 1050",1660,1780,1045,1050,30,"Oui","Oui",1710,1050,"PORTRAIT",36.5,30,1,130,"Toutes les valeurs","Oui, 1200mm de large",null,null,null,"H16","H16","H16","H19","H19","H21","H21","H23","H23","H23","H26","H26","H27","H27",null,"H31","H31","H31",null,null,null,null,null,2020,"Po 1710 / 1050","H14","H14","H14","H16","H16","H16","H19","H19","H21","H21","H23","H23","H23","H26","H26","H27","H27",null,"H31","H31","H31"]
[null,null,{"$f":"VLOOKUP(\"InclT\",BD!$A$1:$P$200,Listes!$AA$2+1,0)&\" :\"","v":"Inclinaison (α) :"},null,"°",null,"%",null,null,null,null,null,null,null,null,null,null,null,null,null,null,null,null,null,null,null,null,null,null,null,null,null,null,2020,"Po 1710 / 1055",1660,1780,1050,1055,30,"Oui","Oui",1710,1055,"PORTRAIT",36.5,30,1,130,"Toutes les valeurs","Oui, 1200mm de large",null,null,null,"H16","H16","H16","H19","H19","H21","H21","H23","H23","H23","H26","H26","H27","H27",null,"H31","H31","H31",null,null,null,null,null,2020,"Po 1710 / 1055","H14","H14","H14","H16","H16","H16","H19","H19","H21","H21","H23","H23","H23","H26","H26","H27","H27",null,"H31","H31","H31"]
[null,null,null,null,null,null,null,null,null,null,null,null,null,null,null,null,{"$f":"VLOOKUP(\"Colorflex\",BD!$A$1:$P$200,Listes!$AA$2+1,0)&\" :\"","v":"Couleur FLEXALU :"},{"$f":"VLOOKUP(\"Noir\",BD!$A$1:$P$200,Listes!$AA$2+1,0)","v":"Noir"},null,{"$f":"VLOOKUP(\"Rouge\",BD!$A$1:$P$200,Listes!$AA$2+1,0)","v":"Rouge"},1,null,null,null,null,null,null,null,null,null,null,null,null,2020,"Po 1710 / 1060",1660,1780,1055,1060,30,"Oui","Oui",1710,1060,"PORTRAIT",36.5,30,1,130,"Toutes les valeurs","Oui, 1200mm de large",null,null,null,"H16","H16","H16","H19","H19","H21","H21","H23","H23","H23","H26","H26","H27","H27",null,"H31","H31","H31",null,null,null,null,null,2020,"Po 1710 / 1060","H14","H14","H14","H16","H16","H16","H19","H19","H21","H21","H23","H23","H23","H26","H26","H27","H27",null,"H31","H31","H31"]
[null,null,{"$f":"VLOOKUP(\"Ramp\",BD!$A$1:$P$200,Listes!$AA$2+1,0)&\" :\"","v":"Rampant (R) :"},null,"m",null,null,null,null,null,null,null,null,null,null,null,null,null,null,null,null,null,null,null,null,null,null,null,null,null,null,null,null,2022,"Dpo 1650 / 995",1570,1800,990,995,30,"Oui",null,1650,995,"PORTRAIT",40,33,0.5,160,null,null,null,null,null,"H16","H16","H16","H19","H19","H21","H21","H23","H23","H23","H26","H26","H27","H27",null,"H31","H31","H31",null,null,null,null,null,2022,"Dpo 1650 / 995","H14","H14","H14","H16","H16","H16","H19","H19","H21","H21","H23","H23","H23","H26","H26","H27","H27",null,"H31","H31","H31"]
[null,1,null,null,null,null,null,null,null,{"$f":"VLOOKUP(\"PowerMod\",BD!$A$1:$P$200,Listes!$AA$2+1,0)&\" :\"","v":"Puissance :"},null,"Wc",null,null,null,null,{"$f":"VLOOKUP(\"Largeurflex\",BD!$A$1:$P$200,Listes!$AA$2+1,0)&\" :\"","v":"Largeur FLEXALU :"},"330 mm",null,"500 mm",2,null,null,null,null,null,null,null,null,null,null,null,null,2022,"Dpo 1650 / 1070",1570,1800,1065,1070,30,"Oui",null,1650,1070,"PORTRAIT",40,33,0.5,160,null,null,null,null,null,"H16","H16","H16","H19","H19","H21","H21","H23","H23","H23","H26","H26","H27","H27",null,"H31","H31","H31",null,null,null,null,null,2022,"Dpo 1650 / 1070","H14","H14","H14","H16","H16","H16","H19","H19","H21","H21","H23","H23","H23","H26","H26","H27","H27",null,"H31","H31","H31"]
[null,null,{"$f":"VLOOKUP(\"Larg\",BD!$A$1:$P$200,Listes!$AA$2+1,0)&\" :\"","v":"Largeur (W) :"},null,"m",null,null,null,null,null,null,null,null," ",null,null,null,null,null,null,null,null,null,null,null,null,null,null,null,null,null,null,null,2022,"Dpo 1650 / 1100",1570,1800,1095,1100,30,"Oui",null,1650,1100,"PORTRAIT",40,33,0.5,160,null,null,null,null,null,"H16","H16","H16","H19","H19","H21","H21","H23","H23","H23","H26","H26","H27","H27",null,"H31","H31","H31",null,null,null,null,null,2022,"Dpo 1650 / 1100","H14","H14","H14","H16","H16","H16","H19","H19","H21","H21","H23","H23","H23","H26","H26","H27","H27",null,"H31","H31","H31"]
[null,null,null,null,null,null,null,null,null,{"$f":"VLOOKUP(\"Techno\",BD!$A$1:$P$200,Listes!$AA$2+1,0)&\" :\"","v":"Technologie :"},null,null,null,null,null,null,"Mittlere Blechabdeckung",false,null,null,null,null,null,null,null,null,null,null,null,null,null,null,null,2022,"Dpo 1650 / 1135",1570,1800,1130,1135,30,"Oui",null,1650,1135,"PORTRAIT",40,33,0.5,160,null,null,null,null,null,"H16","H16","H16","H19","H19","H21","H21","H23","H23","H23","H26","H26","H27","H27",null,"H31","H31","H31",null,null,null,null,null,2022,"Dpo 1650 / 1135","H14","H14","H14","H16","H16","H16","H19","H19","H21","H21","H23","H23","H23","H26","H26","H27","H27",null,"H31","H31","H31"]
[null,null,{"$f":"VLOOKUP(\"TypeCov\",BD!$A$1:$P$200,Listes!$AA$2+1,0)&\" :\"","v":"Type de couverture :"},"Tuile mécanique",null,null,null,null,null,null,null,null,null,null,null,null,null,null,null,null,null,null,null,null,null,null,null,null,null,null,null,null,null,2022,"Dpo 1650 / 1140",1570,1800,1135,1140,30,"Oui",null,1650,1140,"PORTRAIT",40,33,0.5,160,null,null,null,null,null,"H16","H16","H16","H19","H19","H21","H21","H23","H23","H23","H26","H26","H27","H27",null,"H31","H31","H31",null,null,null,null,null,2022,"Dpo 1650 / 1140","H14","H14","H14","H16","H16","H16","H19","H19","H21","H21","H23","H23","H23","H26","H26","H27","H27",null,"H31","H31","H31"]
[null,null,null,null,null,null,null,null,null,{"$f":"VLOOKUP(\"Jonction\",BD!$A$1:$P$200,Listes!$AA$2+1,0)","v":"Boite de jonction splittée"},null,null,null,false,null,null,{"$f":"VLOOKUP(\"NbrEtrier\",BD!$A$1:$P$200,Listes!$AA$2+1,0)&\" :\"","v":"Nombre d'étriers :"},4,null,6,1,null,null,null,null,null,null,null,null,null,null,null,null,2022,"Dpo 1650 / 1145",1570,1800,1140,1145,30,"Oui",null,1650,1145,"PORTRAIT",40,33,0.5,160,null,null,null,null,null,"H16","H16","H16","H19","H19","H21","H21","H23","H23","H23","H26","H26","H27","H27",null,"H31","H31","H31",null,null,null,null,null,2022,"Dpo 1650 / 1145","H14","H14","H14","H16","H16","H16","H19","H19","H21","H21","H23","H23","H23","H26","H26","H27","H27",null,"H31","H31","H31"]
[null,null,null,null,null,null,null,null,null,{"$f":"VLOOKUP(\"Renfort\",BD!$A$1:$P$200,Listes!$AA$2+1,0)","v":"Barre(s) de renfort"},null,null,null,false,null,null,null,null,null,null,null,null,null,null,null,null,null,null,null,null,null,null,null,2022,"Dpo 1650 / 1160",1570,1800,1155,1160,30,"Oui",null,1650,1160,"PORTRAIT",40,33,0.5,160,null,null,null,null,null,"H16","H16","H16","H19","H19","H21","H21","H23","H23","H23","H26","H26","H27","H27",null,"H31","H31","H31",null,null,null,null,null,2022,"Dpo 1650 / 1160","H14","H14","H14","H16","H16","H16","H19","H19","H21","H21","H23","H23","H23","H26","H26","H27","H27",null,"H31","H31","H31"]
[null,null,null,null,null,null,null,null,null,null,null,null,null,null,null,null,null,null,null,null,null,null,null,null,null,null,null,null,null,null,null,null,null,2022,"Dpo 1840 / 995",1760,1990,990,995,30,"Oui",null,1840,995,"PORTRAIT",40,33,0.5,160,null,null,null,null,null,"H16","H16","H16","H19","H19","H21","H21","H23","H23","H23","H26","H26","H27","H27",null,"H31","H31","H31",null,null,null,null,null,2022,"Dpo 1840 / 995","H14","H14","H14","H16","H16","H16","H19","H19","H21","H21","H23","H23","H23","H26","H26","H27","H27",null,"H31","H31","H31"]
[null,null,null,null,null,null,null,null,1,{"$f":"VLOOKUP(\"Portrait\",BD!$A$1:$P$200,Listes!$AA$2+1,0)","v":"Portrait"},null,{"$f":"VLOOKUP(\"Paysage\",BD!$A$1:$P$200,Listes!$AA$2+1,0)","v":"Paysage"},null,null,null,null,{"$f":"VLOOKUP(\"EcranToiture\",BD!$A$1:$P$200,Listes!$AA$2+1,0)&\" :\"","v":"Ecran de sous toiture :"},null,null,null,null,null,null,null,null,null,null,null,null,null,null,null,null,2022,"Dpo 1840 / 1020",1760,1990,1015,1020,30,"Oui",null,1840,1020,"PORTRAIT",40,33,0.5,160,null,null,null,null,null,"H16","H16","H16","H19","H19","H21","H21","H23","H23","H23","H26","H26","H27","H27",null,"H31","H31","H31",null,null,null,null,null,2022,"Dpo 1840 / 1020","H14","H14","H14","H16","H16","H16","H19","H19","H21","H21","H23","H23","H23","H26","H26","H27","H27",null,"H31","H31","H31"]
[null,null,null,null,null,null,null,null,null,null,null,null,null,null,null,null,null,null,false,null,null,null,null,null,null,null,null,null,null,null,null,null,null,2022,"Dpo 1840 / 1030",1760,1990,1025,1030,30,"Oui",null,1840,1030,"PORTRAIT",40,33,0.5,160,null,null,null,null,null,"H16","H16","H16","H19","H19","H21","H21","H23","H23","H23","H26","H26","H27","H27",null,"H31","H31","H31",null,null,null,null,null,2022,"Dpo 1840 / 1030","H14","H14","H14","H16","H16","H16","H19","H19","H21","H21","H23","H23","H23","H26","H26","H27","H27",null,"H31","H31","H31"]
[null,null,null,null,null,null,null,null,null,{"$f":"VLOOKUP(\"CorPlakGSE\",BD!$A$1:$P$200,Listes!$AA$2+1,0)&\" :\"","v":"Plaque GSE correspondante :"},null,null,null,null,null,false,"VELUX :",null,null,null,null,null,null,null,null,null,null,null,null,null,null,null,null,2022,"Dpo 1840 / 1040",1760,1990,1035,1040,30,"Oui",null,1840,1040,"PORTRAIT",40,33,0.5,160,null,null,null,null,null,"H16","H16","H16","H19","H19","H21","H21","H23","H23","H23","H26","H26","H27","H27",null,"H31","H31","H31",null,null,null,null,null,2022,"Dpo 1840 / 1040","H14","H14","H14","H16","H16","H16","H19","H19","H21","H21","H23","H23","H23","H26","H26","H27","H27",null,"H31","H31","H31"]
[null,null,null,null,null,null,null,null,null,null,null,null,null,null,null,null,null,null,null,null,null,null,null,null,null,null,null,null,null,null,null,null,null,2022,"Dpo 1840 / 1045",1760,1990,1040,1045,30,"Oui",null,1840,1045,"PORTRAIT",40,33,0.5,160,null,null,null,null,null,"H16","H16","H16","H19","H19","H21","H21","H23","H23","H23","H26","H26","H27","H27",null,"H31","H31","H31",null,null,null,null,null,2022,"Dpo 1840 / 1045","H14","H14","H14","H16","H16","H16","H19","H19","H21","H21","H23","H23","H23","H26","H26","H27","H27",null,"H31","H31","H31"]
[null,null,null,null,null,null,null,null,null,null,null,null,null,null,null,null,"Choisir VELUX",null,null,null,null,null,null,null,null,null,null,null,null,null,null,null,null,2022,"Dpo 1840 / 1050",1760,1990,1045,1050,30,"Oui",null,1840,1050,"PORTRAIT",40,33,0.5,160,null,null,null,null,null,"H16","H16","H16","H19","H19","H21","H21","H23","H23","H23","H26","H26","H27","H27",null,"H31","H31","H31",null,null,null,null,null,2022,"Dpo 1840 / 1050","H14","H14","H14","H16","H16","H16","H19","H19","H21","H21","H23","H23","H23","H26","H26","H27","H27",null,"H31","H31","H31"]
[null,null,null,null,null,null,null,null,null,null,null,null,null,null,null,null,null,null,null,null,null,null,null,null,null,null,null,null,null,null,null,null,null,2022,"Dpo 1840 / 1070",1760,1990,1065,1070,30,"Oui",null,1840,1070,"PORTRAIT",40,33,0.5,160,null,null,null,null,null,"H16","H16","H16","H19","H19","H21","H21","H23","H23","H23","H26","H26","H27","H27",null,"H31","H31","H31",null,null,null,null,null,2022,"Dpo 1840 / 1070","H14","H14","H14","H16","H16","H16","H19","H19","H21","H21","H23","H23","H23","H26","H26","H27","H27",null,"H31","H31","H31"]
[null,null,null,null,null,null,null,null,null,null,null,null,null,null,null,null,null,null,null,null,null,null,null,null,null,null,null,null,null,null,null,null,null,2022,"Dpo 1840 / 1090",1760,1990,1085,1090,30,"Oui",null,1840,1090,"PORTRAIT",40,33,0.5,160,null,null,null,null,null,"H16","H16","H16","H19","H19","H21","H21","H23","H23","H23","H26","H26","H27","H27",null,"H31","H31","H31",null,null,null,null,null,2022,"Dpo 1840 / 1090","H14","H14","H14","H16","H16","H16","H19","H19","H21","H21","H23","H23","H23","H26","H26","H27","H27",null,"H31","H31","H31"]
[null,null,null,null,null,null,null,null,null,null,null,null,null,null,null,null,null,null,null,null,null,null,null,null,null,null,null,null,null,null,null,null,null,2022,"Dpo 1840 / 1100",1760,1990,1095,1100,30,"Oui",null,1840,1100,"PORTRAIT",40,33,0.5,160,null,null,null,null,null,"H16","H16","H16","H19","H19","H21","H21","H23","H23","H23","H26","H26","H27","H27",null,"H31","H31","H31",null,null,null,null,null,2022,"Dpo 1840 / 1100","H14","H14","H14","H16","H16","H16","H19","H19","H21","H21","H23","H23","H23","H26","H26","H27","H27",null,"H31","H31","H31"]
[null,null,null,null,null,null,null,null,null,null,null,null,null,null,null,null,null,null,null,null,null,null,null,null,null,null,null,null,null,null,null,null,null,2022,"Dpo 1840 / 1135",1760,1990,1130,1135,30,"Oui",null,1840,1135,"PORTRAIT",40,33,0.5,160,null,null,null,null,null,"H16","H16","H16","H19","H19","H21","H21","H23","H23","H23","H26","H26","H27","H27",null,"H31","H31","H31",null,null,null,null,null,2022,"Dpo 1840 / 1135","H14","H14","H14","H16","H16","H16","H19","H19","H21","H21","H23","H23","H23","H26","H26","H27","H27",null,"H31","H31","H31"]
[null,null,null,null,null,null,null,null,null,null,null,null,null,null,null,null,null,null,null,null,null,null,null,null,null,null,null,null,null,null,null,null,null,2022,"Dpo 2030 / 995",1950,2180,990,995,30,"Oui",null,2030,995,null,40,33,0.5,160,null,null,null,null,null,"H16","H16","H16","H19","H19","H21","H21","H23","H23","H23","H26","H26","H27","H27",null,"H31","H31","H31",null,null,null,null,null,2022,"Dpo 2030 / 995","H14","H14","H14","H16","H16","H16","H19","H19","H21","H21","H23","H23","H23","H26","H26","H27","H27",null,"H31","H31","H31"]
[null,null,null,null,null,null,null,null,null,null,null,null,null,null,null,null,null,null,null,null,null,null,null,null,null,null,null,null,null,null,null,null,null,2022,"Dpo 2030 / 1050",1950,2180,1045,1050,30,"Oui",null,2030,1050,null,40,33,0.5,160,null,null,null,null,null,"H16","H16","H16","H19","H19","H21","H21","H23","H23","H23","H26","H26","H27","H27",null,"H31","H31","H31",null,null,null,null,null,2022,"Dpo 2030 / 1050","H14","H14","H14","H16","H16","H16","H19","H19","H21","H21","H23","H23","H23","H26","H26","H27","H27",null,"H31","H31","H31"]
[null,null,null,null,null,null,null,null,null,null,null,null,null,null,null,null,null,null,null,null,null,null,null,null,null,null,null,null,null,null,null,null,null,2022,"Dpo 2030 / 1055",1950,2180,1050,1055,30,"Oui",null,2030,1055,null,40,33,0.5,160,null,null,null,null,null,"H16","H16","H16","H19","H19","H21","H21","H23","H23","H23","H26","H26","H27","H27",null,"H31","H31","H31",null,null,null,null,null,2022,"Dpo 2030 / 1055","H14","H14","H14","H16","H16","H16","H19","H19","H21","H21","H23","H23","H23","H26","H26","H27","H27",null,"H31","H31","H31"]
[null,null,null,null,null,null,null,null,null,null,null,null,null,null,null,null,null,null,null,null,null,null,null,null,null,null,null,null,null,null,null,null,null,2022,"Dpo 2030 / 1135",1950,2180,1130,1135,30,"Oui",null,2030,1135,null,40,33,0.5,160,null,null,null,null,null,"H16","H16","H16","H19","H19","H21","H21","H23","H23","H23","H26","H26","H27","H27",null,"H31","H31","H31",null,null,null,null,null,2022,"Dpo 2030 / 1135","H14","H14","H14","H16","H16","H16","H19","H19","H21","H21","H23","H23","H23","H26","H26","H27","H27",null,"H31","H31","H31"]
[null,null,null,null,null,null,null,null,null,null,null,null,null,null,null,null,null,null,null,null,null,null,null,null,null,null,null,null,null,null,null,null,null,2022,"Dpo 2030 / 1305",1950,2180,1300,1305,30,"Oui",null,2030,1305,null,40,33,0.5,160,null,null,null,null,null,"H16","H16","H16","H19","H19","H21","H21","H23","H23","H23","H26","H26","H27","H27",null,"H31","H31","H31",null,null,null,null,null,2022,"Dpo 2030 / 1305","H14","H14","H14","H16","H16","H16","H19","H19","H21","H21","H23","H23","H23","H26","H26","H27","H27",null,"H31","H31","H31"]
[null,null,null,null,null,null,null,null,null,null,null,null,null,null,null,null,null,null,null,null,null,null,null,null,null,null,null,null,null,null,null,null,null,2012,"Pa 1559 / 1046",1032,1182,1554,1559,35,null,null,1082,1559,"PAYSAGE",36.5,30,1,160,null,null,null,null,null,null,null,null,null,null,"H16","H16","H16","H19","H19","H21","H21","H23","H23","H23","H26","H26","H27","H27",null,"H31",null,null,2012,"Pa 1559 / 1046",null,null,null,null,null,"H14","H14","H14","H16","H16","H16","H19","H19","H21","H21","H23","H23","H23","H26","H26","H27"]
[null,null,null,null,null,null,null,null,null,null,null,null,null,null,null,null,null,null,null,null,null,null,null,null,null,null,null,null,null,null,null,null,null,2012,"Pa 1575 / 1082",1032,1182,1570,1575,35,null,null,1082,1575,"PAYSAGE",36.5,30,1,160,null,null,null,null,null,null,null,null,null,null,"H16","H16","H16","H19","H19","H21","H21","H23","H23","H23","H26","H26","H27","H27",null,"H31",null,null,2012,"Pa 1575 / 1082",null,null,null,null,null,"H14","H14","H14","H16","H16","H16","H19","H19","H21","H21","H23","H23","H23","H26","H26","H27"]
[null,null,null,null,null,null,null,null,null,null,null,null,null,null,null,null,null,null,null,null,null,null,null,null,null,null,null,null,null,null,null,null,null,2012,"Pa 1580 / 808",758,908,1575,1580,35,null,null,808,1580,"PAYSAGE",36.5,30,1,160,null,null,null,null,null,null,null,null,null,null,"H16","H16","H16","H19","H19","H21","H21","H23","H23","H23","H26","H26","H27","H27",null,"H31",null,null,2012,"Pa 1580 / 808",null,null,null,null,null,"H14","H14","H14","H16","H16","H16","H19","H19","H21","H21","H23","H23","H23","H26","H26","H27"]
[null,null,null,null,null,null,null,null,null,null,null,null,null,null,null,null,null,null,null,null,null,null,null,null,null,null,null,null,null,null,null,null,null,2012,"Pa 1640 / 992",942,1092,1635,1640,35,null,null,992,1640,"PAYSAGE",36.5,30,1,160,null,null,null,null,null,null,null,null,null,null,"H16","H16","H16","H19","H19","H21","H21","H23","H23","H23","H26","H26","H27","H27",null,"H31",null,null,2012,"Pa 1640 / 992",null,null,null,null,null,"H14","H14","H14","H16","H16","H16","H19","H19","H21","H21","H23","H23","H23","H26","H26","H27"]
[null,null,null,null,null,null,null,null,null,null,null,null,null,null,null,null,null,null,null,null,null,null,null,null,null,null,null,null,null,null,null,null,null,2012,"Pa 1650 / 992 ",942,1092,1645,1650,35,null,null,992,1650,"PAYSAGE",36.5,30,1,160,null,null,null,null,null,null,null,null,null,null,"H16","H16","H16","H19","H19","H21","H21","H23","H23","H23","H26","H26","H27","H27",null,"H31",null,null,2012,"Pa 1650 / 992 ",null,null,null,null,null,"H14","H14","H14","H16","H16","H16","H19","H19","H21","H21","H23","H23","H23","H26","H26","H27"]
[null,null,null,null,null,null,null,null,null,null,null,null,null,null,null,null,null,null,null,null,null,null,null,null,null,null,null,null,null,null,null,null,null,2012,"Pa 1660 / 992",942,1092,1655,1660,35,null,null,992,1660,"PAYSAGE",36.5,30,1,160,null,null,null,null,null,null,null,null,null,null,"H16","H16","H16","H19","H19","H21","H21","H23","H23","H23","H26","H26","H27","H27",null,"H31",null,null,2012,"Pa 1660 / 992",null,null,null,null,null,"H14","H14","H14","H16","H16","H16","H19","H19","H21","H21","H23","H23","H23","H26","H26","H27"]
[null,null,null,null,null,null,null,null,null,null,null,null,null,null,null,null,null,null,null,null,null,null,null,null,null,null,null,null,null,null,null,null,null,2012,"Pa 1670 / 992",942,1092,1665,1670,35,null,null,992,1670,"PAYSAGE",36.5,30,1,160,null,null,null,null,null,null,null,null,null,null,"H16","H16","H16","H19","H19","H21","H21","H23","H23","H23","H26","H26","H27","H27",null,"H31",null,null,2012,"Pa 1670 / 992",null,null,null,null,null,"H14","H14","H14","H16","H16","H16","H19","H19","H21","H21","H23","H23","H23","H26","H26","H27"]
[null,null,null,null,null,null,null,null,null,null,null,null,null,null,null,null,null,null,null,null,null,null,null,null,null,null,null,null,null,null,null,null,null,2012,"Pa 1675 / 992 P33",942,1092,1670,1675,35,null,null,992,1675,"PAYSAGE",36.5,30,1,160,null,null,null,null,null,null,null,"H16","H16","H16","H19","H19","H21","H21","H23","H23","H23","H26","H26","H27","H27",null,"H31","H31","H31",null,null,null,2012,"Pa 1675 / 992 P33",null,null,null,null,null,"H14","H14","H14","H16","H16","H16","H19","H19","H21","H21","H23","H23","H23","H26","H26","H27"]
[null,null,null,null,null,null,null,null,null,null,null,null,null,null,null,null,null,null,null,null,null,null,null,null,null,null,null,null,null,null,null,null,null,2012,"Pa 1680 / 992",942,1092,1675,1680,35,null,null,992,1680,"PAYSAGE",36.5,30,1,160,null,null,null,null,null,null,null,null,null,null,"H16","H16","H16","H19","H19","H21","H21","H23","H23","H23","H26","H26","H27","H27",null,"H31",null,null,2012,"Pa 1680 / 992",null,null,null,null,null,"H14","H14","H14","H16","H16","H16","H19","H19","H21","H21","H23","H23","H23","H26","H26","H27"]
[null,null,null,null,null,null,null,null,null,null,null,null,null,null,null,null,null,null,null,null,null,null,null,null,null,null,null,null,null,null,null,null,null,2012,"Pa 1686 / 992",942,1092,1681,1686,35,null,null,992,1686,"PAYSAGE",36.5,30,1,160,null,null,null,null,null,null,null,null,null,null,"H16","H16","H16","H19","H19","H21","H21","H23","H23","H23","H26","H26","H27","H27",null,"H31",null,null,2012,"Pa 1686 / 992",null,null,null,null,null,"H14","H14","H14","H16","H16","H16","H19","H19","H21","H21","H23","H23","H23","H26","H26","H27"]
[null,null,null,null,null,null,null,null,null,null,null,null,null,null,null,null,null,null,null,null,null,null,null,null,null,null,null,null,null,null,null,null,null,2012,"Pa 1700 / 992",942,1092,1695,1700,35,null,null,992,1700,"PAYSAGE",36.5,30,1,160,null,null,null,null,null,null,null,null,null,null,"H16","H16","H16","H19","H19","H21","H21","H23","H23","H23","H26","H26","H27","H27",null,"H31",null,null,2012,"Pa 1700 / 992",null,null,null,null,null,"H14","H14","H14","H16","H16","H16","H19","H19","H21","H21","H23","H23","H23","H26","H26","H27"]
[null,null,null,null,null,null,null,null,null,null,null,null,null,null,null,null,null,null,null,null,null,null,null,null,null,null,null,null,null,null,null,null,null,2020,"Pa 1665 / 1020",970,1120,1660,1665,30,"Oui",null,1020,1665,"PAYSAGE",36.5,30,1,160,null,null,null,null,null,"H16","H16","H16","H19","H19","H21","H21","H23","H23","H23","H26","H26","H27","H27",null,"H31","H31","H31",null,null,null,null,null,2020,"Pa 1665 / 1020","H14","H14","H14","H16","H16","H16","H19","H19","H21","H21","H23","H23","H23","H26","H26","H27","H27",null,"H31","H31","H31"]
[null,null,null,null,null,null,null,null,null,null,null,null,null,null,null,null,null,null,null,null,null,null,null,null,null,null,null,null,null,null,null,null,null,2020,"Pa 1675 / 1020",970,1120,1670,1675,30,"Oui",null,1020,1675,"PAYSAGE",36.5,30,1,160,null,null,null,null,null,"H16","H16","H16","H19","H19","H21","H21","H23","H23","H23","H26","H26","H27","H27",null,"H31","H31","H31",null,null,null,null,null,2020,"Pa 1675 / 1020","H14","H14","H14","H16","H16","H16","H19","H19","H21","H21","H23","H23","H23","H26","H26","H27","H27",null,"H31","H31","H31"]
[null,null,null,null,null,null,null,null,null,null,null,null,null,null,null,null,null,null,null,null,null,null,null,null,null,null,null,null,null,null,null,null,null,2020,"Pa 1680 / 1020",970,1120,1675,1680,30,"Oui",null,1020,1680,"PAYSAGE",36.5,30,1,160,null,null,null,null,null,"H16","H16","H16","H19","H19","H21","H21","H23","H23","H23","H26","H26","H27","H27",null,"H31","H31","H31",null,null,null,null,null,2020,"Pa 1680 / 1020","H14","H14","H14","H16","H16","H16","H19","H19","H21","H21","H23","H23","H23","H26","H26","H27","H27",null,"H31","H31","H31"]
[null,null,null,null,null,null,null,null,null,null,null,null,null,null,null,null,null,null,null,null,null,null,null,null,null,null,null,null,null,null,null,null,null,2020,"Pa 1685 / 1020",970,1120,1680,1685,30,"Oui",null,1020,1685,"PAYSAGE",36.5,30,1,160,null,null,null,null,null,"H16","H16","H16","H19","H19","H21","H21","H23","H23","H23","H26","H26","H27","H27",null,"H31","H31","H31",null,null,null,null,null,2020,"Pa 1685 / 1020","H14","H14","H14","H16","H16","H16","H19","H19","H21","H21","H23","H23","H23","H26","H26","H27","H27",null,"H31","H31","H31"]
[null,null,null,null,null,null,null,null,null,null,null,null,null,null,null,null,null,null,null,null,null,null,null,null,null,null,null,null,null,null,null,null,null,2020,"Pa 1690 / 1020",970,1120,1685,1690,30,"Oui",null,1020,1690,"PAYSAGE",36.5,30,1,160,null,null,null,null,null,"H16","H16","H16","H19","H19","H21","H21","H23","H23","H23","H26","H26","H27","H27",null,"H31","H31","H31",null,null,null,null,null,2020,"Pa 1690 / 1020","H14","H14","H14","H16","H16","H16","H19","H19","H21","H21","H23","H23","H23","H26","H26","H27","H27",null,"H31","H31","H31"]
[null,null,null,null,null,null,null,null,null,null,null,null,null,null,null,null,null,null,null,null,null,null,null,null,null,null,null,null,null,null,null,null,null,2020,"Pa 1695 / 1020",970,1120,1690,1695,30,"Oui",null,1020,1695,"PAYSAGE",36.5,30,1,160,null,null,null,null,null,"H16","H16","H16","H19","H19","H21","H21","H23","H23","H23","H26","H26","H27","H27",null,"H31","H31","H31",null,null,null,null,null,2020,"Pa 1695 / 1020","H14","H14","H14","H16","H16","H16","H19","H19","H21","H21","H23","H23","H23","H26","H26","H27","H27",null,"H31","H31","H31"]
[null,null,null,null,null,null,null,null,null,null,null,null,null,null,null,null,null,null,null,null,null,null,null,null,null,null,null,null,null,null,null,null,null,2020,"Pa 1700 / 1020",970,1120,1695,1700,30,"Oui",null,1020,1700,"PAYSAGE",36.5,30,1,160,null,null,null,null,null,"H16","H16","H16","H19","H19","H21","H21","H23","H23","H23","H26","H26","H27","H27",null,"H31","H31","H31",null,null,null,null,null,2020,"Pa 1700 / 1020","H14","H14","H14","H16","H16","H16","H19","H19","H21","H21","H23","H23","H23","H26","H26","H27","H27",null,"H31","H31","H31"]
[null,null,null,null,null,null,null,null,null,null,null,null,null,null,null,null,null,null,null,null,null,null,null,null,null,null,null,null,null,null,null,null,null,2020,"Pa 1705 / 1020",970,1120,1700,1705,30,"Oui",null,1020,1705,"PAYSAGE",36.5,30,1,160,null,null,null,null,null,"H16","H16","H16","H19","H19","H21","H21","H23","H23","H23","H26","H26","H27","H27",null,"H31","H31","H31",null,null,null,null,null,2020,"Pa 1705 / 1020","H14","H14","H14","H16","H16","H16","H19","H19","H21","H21","H23","H23","H23","H26","H26","H27","H27",null,"H31","H31","H31"]
[null,null,null,null,null,null,null,null,null,null,null,null,null,null,null,null,null,null,null,null,null,null,null,null,null,null,null,null,null,null,null,null,null,2020,"Pa 1720 / 1020",970,1120,1715,1720,30,"Oui",null,1020,1720,"PAYSAGE",36.5,30,1,160,null,null,null,null,null,"H16","H16","H16","H19","H19","H21","H21","H23","H23","H23","H26","H26","H27","H27",null,"H31","H31","H31",null,null,null,null,null,2020,"Pa 1720 / 1020","H14","H14","H14","H16","H16","H16","H19","H19","H21","H21","H23","H23","H23","H26","H26","H27","H27",null,"H31","H31","H31"]
[null,null,null,null,null,null,null,null,null,null,null,null,null,null,null,null,null,null,null,null,null,null,null,null,null,null,null,null,null,null,null,null,null,2020,"Pa 1740 / 1020",970,1120,1735,1740,30,"Oui",null,1020,1740,"PAYSAGE",36.5,30,1,160,null,null,null,null,null,"H16","H16","H16","H19","H19","H21","H21","H23","H23","H23","H26","H26","H27","H27",null,"H31","H31","H31",null,null,null,null,null,2020,"Pa 1740 / 1020","H14","H14","H14","H16","H16","H16","H19","H19","H21","H21","H23","H23","H23","H26","H26","H27","H27",null,"H31","H31","H31"]

{"sheet":"Calepinage","index":5,"n_rows":336,"n_cols":38,"rows_kept":336,"cut":false,"hidden":true,"merged":[[4,201,4,202],[4,203,4,204],[4,155,4,156],[4,157,4,158],[4,195,4,196],[4,205,4,206],[5,5,206,5],[4,185,4,186],[4,187,4,188],[4,189,4,190],[4,191,4,192],[4,161,4,162],[4,163,4,164],[4,165,4,166],[4,167,4,168],[4,169,4,170],[4,171,4,172],[4,159,4,160],[4,137,4,138],[4,197,4,198],[4,199,4,200],[4,135,4,136],[4,139,4,140],[4,141,4,142],[4,143,4,144],[4,193,4,194],[4,173,4,174],[4,175,4,176],[4,177,4,178],[4,179,4,180],[4,181,4,182],[4,183,4,184],[4,149,4,150],[4,151,4,152],[4,153,4,154],[4,125,4,126],[4,127,4,128],[4,129,4,130],[4,131,4,132],[4,113,4,114],[4,115,4,116],[4,117,4,118],[4,119,4,120],[4,121,4,122],[4,133,4,134],[4,145,4,146],[4,147,4,148],[4,111,4,112],[4,89,4,90],[4,91,4,92],[4,93,4,94],[4,95,4,96],[4,97,4,98],[4,99,4,100],[4,101,4,102],[4,103,4,104],[4,105,4,106],[4,107,4,108],[4,109,4,110],[4,123,4,124],[4,83,4,84],[4,85,4,86],[4,87,4,88],[4,65,4,66],[4,67,4,68],[4,69,4,70],[4,71,4,72],[4,73,4,74],[4,75,4,76],[4,79,4,80],[4,81,4,82],[4,63,4,64],[4,77,4,78],[3,16,3,17],[4,16,4,17],[4,55,4,56],[4,57,4,58],[4,59,4,60],[4,61,4,62],[0,37,4,54],[1,8,1,23],[4,29,4,30],[4,31,4,32],[4,33,4,34],[4,35,4,36],[4,19,4,20],[4,21,4,22],[4,23,4,24],[4,25,4,26],[4,27,4,28],[3,6,4,11],[4,12,4,15],[3,12,3,15]]}
[null,null,null,null,null,null,null,null,null,null,null,null,null,null,null,null,null,null,null,null,null,null,null,null,null,null,null,null,null,null,null,null,null,null,null,null,null,{"$f":"\": \"&VLOOKUP(\"legende4\",BD!$A$1:$P$200,Listes!$AA$2+1,0)&CHAR(10)&CHAR(10)&\": \"&VLOOKUP(\"legende5\",BD!$A$1:$P$200,Listes!$AA$2+1,0)&CHAR(10)&CHAR(10)&\": \"&VLOOKUP(\"legende1\",BD!$A$1:$P$200,Listes!$AA$2+1,0)&CHAR(10)&CHAR(10)&\": \"&VLOOKUP(\"legende2\",BD!$A$1:$P$200,Listes!$AA$2+1,0)&CHAR(10)&CHAR(10)&\": \"&VLOOKUP(\"legende3\",BD!$A$1:$P$200,Listes!$AA$2+1,0)","v":": Bande d’étanchéité Flexalu pour fenêtre de toit\n\n: Abergement Velux GSEi\n\n: Abergement de faîtage\n\n: Abergement latéral\n\n: Bande d'étanchéité FLEXALU"}]
[null,{"$f":"VLOOKUP(\"liste\",BD!$A$1:$P$200,Listes!$AA$2+1,0)","v":"Liste de matériel"},null,null,null,null,null,null,{"$f":"VLOOKUP(\"dessiner\",BD!$A$1:$P$200,Listes!$AA$2+1,0)","v":"Dessiner le champ PV"}]
[]
[null,null,null,null,null,null,{"$f":"VLOOKUP(\"inserer\",BD!$A$1:$P$200,Listes!$AA$2+1,0)","v":"Insérer un champ prédéfini"},null,null,null,null,null,{"$f":"VLOOKUP(\"ligne\",BD!$A$1:$P$200,Listes!$AA$2+1,0)&\" :\"","v":"Lignes :"},null,null,null,3]
[null,null,null,null,null,null,null,null,null,null,null,null,{"$f":"VLOOKUP(\"colonne\",BD!$A$1:$P$200,Listes!$AA$2+1,0)&\" :\"","v":"Colonnes :"},null,null,null,5]
[null,"KIT GSE INTEGRATION"]
[null,{"$f":"B302","v":"DEMI_Po 1650 / 1100"},{"$f":"C302","v":30}]
[null,{"$f":"IFERROR(INDEX($B$301:$Z$400,MATCH(ROW(A8)-6,$Z$301:$Z$400,0),1),\"\")","v":"Abergement Latéral Universel Noir 1290mm New Design 2022"},{"$f":"IFERROR(INDEX($B$301:$Z$400,MATCH(ROW(A8)-6,$Z$301:$Z$400,0),2),\"\")","v":10}]
[null,"Abergement Angle Haut Droit Universel Noir ",1]
[null,"Abergement Angle Haut Gauche Universel Noir ",1]
[null,"Abergement Haut Central Universel Noir L 1500mm",4]
[null,"Crochet de Fixation d'Abergement In Roof",35]
[null,"Abergement Haut Cornière Laquée Noire L1400mm (pour la fixation des abergements centraux)",4]
[null,"Rivets Pop 4x8 (pour la fixation des cornières)",16]
[null,"Abergement Haut Jonction Universel Noir L 375mm  ",3]
[null,"Vis GSE Integration 6.3mmx60mm Noir",126]
[null,"Etrier Double H16 - Acier Inox - Noir - In Roof ",24]
[null,"Etrier Simple H16 - Acier Inox - Noir - In Roof ",12]
[null,"Cale Gauche de Renfort pour Etriers Simple In Roof",6]
[null,"Cale Droite de Renfort pour Etriers Simple In Roof",6]
[null,"Cale EPDM Pour Vis In Roof (25x21 EP. 5mm)",36]
[null,"Joint pré-contraint - 20 x 40 mm (Rouleau de 5.5 m)  ",4]
[null,"Flexalu Rouge Terre Cuite 500mm L5m Butyle 20/100",2]
[null,"",""]
[null,"",""]
[null,"",""]
[null,"",""]
[null,"",""]
[null,"",""]
[null,"",""]
[null,"",""]
[null,"",""]
[null,"",""]
[null,"",""]
[null,"",""]
[null,{"$f":"IFERROR(INDEX($B$301:$Z$333,MATCH(ROW(A36)-6,$Z$301:$Z$333,0),1),\"\")","v":""},{"$f":"IFERROR(INDEX($B$301:$Z$333,MATCH(ROW(A36)-6,$Z$301:$Z$333,0),2),\"\")","v":""}]
[]
[]
[]
[]
[]
[]
[]
[]
[]
[]
[]
[]
[]
[]
[]
[]
[]
[]
[]
[]
[]
[]
[]
[]
[]
[]
[]
[]
[]
[]
[]
[]
[]
[]
[]
[]
[]
[]
[]
[]
[]
[]
[]
[]
[]
[]
[]
[]
[]
[]
[]
[]
[]
[]
[]
[]
[]
[]
[]
[]
[]
[]
[]
[]
[]
[]
[]
[]
[]
[]
[]
[]
[]
[]
[]
[]
[]
[]
[]
[]
[]
[]
[]
[]
[]
[]
[]
[]
[]
[]
[]
[]
[]
[]
[]
[]
[]
[]
[]
[]
[]
[]
[]
[]
[]
[]
[]
[]
[]
[]
[]
[]
[]
[]
[]
[]
[]
[]
[]
[]
[]
[]
[]
[]
[]
[]
[]
[]
[]
[]
[]
[]
[]
[]
[]
[]
[]
[]
[]
[]
[]
[]
[]
[]
[]
[]
[]
[]
[]
[]
[]
[]
[]
[]
[]
[]
[]
[]
[]
[]
[]
[]
[]
[]
[]
[]
[]
[]
[]
[]
[]
[]
[]
[]
[]
[]
[]
[]
[]
[]
[]
[]
[]
[]
[]
[]
[]
[]
[]
[]
[]
[]
[]
[]
[]
[]
[]
[]
[]
[]
[]
[]
[]
[]
[]
[]
[]
[]
[]
[]
[]
[]
[]
[]
[]
[]
[]
[]
[]
[]
[]
[]
[]
[]
[]
[]
[]
[]
[]
[]
[]
[]
[]
[]
[]
[]
[]
[]
[]
[]
[]
[]
[]
[]
[]
[]
[]
[]
[]
[]
[]
[]
[]
[]
[]
[]
[]
[]
[]
[]
[]
[]
[]
[]
[null,"KIT GSE INTEGRATION",null,1,2,3,4,5,6,7,8,9,10]
[{"$f":"SUM(C302:M302)","v":30},"DEMI_Po 1650 / 1100",30,null,null,null,null,null,null,null,null,null,null,null,"DPORT",null,null,null,null,null,null,null,null,null,null,1]
[{"$f":"SUM(C303:M303)","v":10},"Abergement Latéral Universel Noir 1290mm New Design 2022",10,null,null,null,null,null,null,null,null,null,null,null,"ART104644",null,null,null,null,null,null,null,null,null,null,{"$f":"IF(B303<>\"\",Z302+1,Z302)","v":2}]
[0,null,0,null,null,null,null,null,null,null,null,null,null,null,null,null,null,null,null,null,null,null,null,null,null,{"$f":"IF(B304<>\"\",Z303+1,Z303)","v":2}]
[0,null,0,null,null,null,null,null,null,null,null,null,null,null,null,null,null,null,null,null,null,null,null,null,null,2]
[0,null,0,null,null,null,null,null,null,null,null,null,null,null,null,null,null,null,null,null,null,null,null,null,null,2]
[1,"Abergement Angle Haut Droit Universel Noir ",1,null,null,null,null,null,null,null,null,null,null,null,"COINDNOIR2014_15",null,null,null,null,null,null,null,null,null,null,3]
[1,"Abergement Angle Haut Gauche Universel Noir ",1,null,null,null,null,null,null,null,null,null,null,null,"COINGNOIR2014_15",null,null,null,null,null,null,null,null,null,null,4]
[0,null,0,null,null,null,null,null,null,null,null,null,null,null,null,null,null,null,null,null,null,null,null,null,null,4]
[0,null,0,null,null,null,null,null,null,null,null,null,null,null,null,null,null,null,null,null,null,null,null,null,null,4]
[4,"Abergement Haut Central Universel Noir L 1500mm",4,null,null,null,null,null,null,null,null,null,null,null,"AFCUNL1500",null,null,null,null,null,null,null,null,null,null,5]
[35,"Crochet de Fixation d'Abergement In Roof",35,null,null,null,null,null,null,null,null,null,null,null,"CROCHET",null,null,null,null,null,null,null,null,null,null,6]
[0,null,0,null,null,null,null,null,null,null,null,null,null,null,null,null,null,null,null,null,null,null,null,null,null,6]
[4,"Abergement Haut Cornière Laquée Noire L1400mm (pour la fixation des abergements centraux)",4,null,null,null,null,null,null,null,null,null,null,null,"CORNIERELAQUEB",null,null,null,null,null,null,null,null,null,null,7]
[16,"Rivets Pop 4x8 (pour la fixation des cornières)",16,null,null,null,null,null,null,null,null,null,null,null,"RIVETPOP",null,null,null,null,null,null,null,null,null,null,8]
[3,"Abergement Haut Jonction Universel Noir L 375mm  ",3,null,null,null,null,null,null,null,null,null,null,null,"AFJUNL375",null,null,null,null,null,null,null,null,null,null,9]
[0,null,0,null,null,null,null,null,null,null,null,null,null,null,null,null,null,null,null,null,null,null,null,null,null,9]
[0,null,0,null,null,null,null,null,null,null,null,null,null,null,null,null,null,null,null,null,null,null,null,null,null,9]
[0,null,0,null,null,null,null,null,null,null,null,null,null,null,null,null,null,null,null,null,null,null,null,null,null,9]
[126,"Vis GSE Integration 6.3mmx60mm Noir",126,null,null,null,null,null,null,null,null,null,null,null,"VIS2014N",null,null,null,null,null,null,null,null,null,null,10]
[24,"Etrier Double H16 - Acier Inox - Noir - In Roof ",24,null,null,null,null,null,null,null,null,null,null,null,"EDH162014N (ASV09-35V)",null,null,null,null,null,null,null,null,null,null,11]
[12,"Etrier Simple H16 - Acier Inox - Noir - In Roof ",12,null,null,null,null,null,null,null,null,null,null,null,"ESH162014N (ASV08-35V)",null,null,null,null,null,null,null,null,null,null,12]
[6,"Cale Gauche de Renfort pour Etriers Simple In Roof",6,null,null,null,null,null,null,null,null,null,null,null,"CALE_GAUCHE",null,null,null,null,null,null,null,null,null,null,13]
[6,"Cale Droite de Renfort pour Etriers Simple In Roof",6,null,null,null,null,null,null,null,null,null,null,null,"CALE_DROIT",null,null,null,null,null,null,null,null,null,null,14]
[36,"Cale EPDM Pour Vis In Roof (25x21 EP. 5mm)",36,null,null,null,null,null,null,null,null,null,null,null,"CALE_EPDM_CELL",null,null,null,null,null,null,null,null,null,null,15]
[4,"Joint pré-contraint - 20 x 40 mm (Rouleau de 5.5 m)  ",4,null,null,null,null,null,null,null,null,null,null,null,"JOINT_PRE_CONTRAIN",null,null,null,null,null,null,null,null,null,null,16]
[2,"Flexalu Rouge Terre Cuite 500mm L5m Butyle 20/100",2,null,null,null,null,null,null,null,null,null,null,null,"BANDE_FLEXALU-500",null,null,null,null,null,null,null,null,null,null,17]
[0,null,0,null,null,null,null,null,null,null,null,null,null,null,null,null,null,null,null,null,null,null,null,null,null,17]
[0,null,0,null,null,null,null,null,null,null,null,null,null,null,null,null,null,null,null,null,null,null,null,null,null,17]
[0,null,0,null,null,null,null,null,null,null,null,null,null,null,null,null,null,null,null,null,null,null,null,null,null,17]
[0,null,0,null,null,null,null,null,null,null,null,null,null,null,null,null,null,null,null,null,null,null,null,null,null,17]
[0,null,0,null,null,null,null,null,null,null,null,null,null,null,null,null,null,null,null,null,null,null,null,null,null,17]
[0,null,null,null,null,null,null,null,null,null,null,null,null,null,null,null,null,null,null,null,null,null,null,null,null,17]
[0,null,null,null,null,null,null,null,null,null,null,null,null,null,null,null,null,null,null,null,null,null,null,null,null,17]
[]
[null,null,0]

{"sheet":"Dessin","index":6,"n_rows":109,"n_cols":211,"rows_kept":109,"cut":false,"hidden":true,"merged":[[6,4,6,5],[12,4,12,5],[5,4,5,5],[11,4,11,5],[108,201,108,202],[108,203,108,204],[108,205,108,206],[108,207,108,208],[108,209,108,210],[108,189,108,190],[108,191,108,192],[108,193,108,194],[108,195,108,196],[108,197,108,198],[108,199,108,200],[108,177,108,178],[108,179,108,180],[108,181,108,182],[108,183,108,184],[108,185,108,186],[108,187,108,188],[108,165,108,166],[108,167,108,168],[108,169,108,170],[108,171,108,172],[108,173,108,174],[108,175,108,176],[108,153,108,154],[108,155,108,156],[108,157,108,158],[108,159,108,160],[108,161,108,162],[108,163,108,164],[108,141,108,142],[108,143,108,144],[108,145,108,146],[108,147,108,148],[108,149,108,150],[108,151,108,152],[108,129,108,130],[108,131,108,132],[108,133,108,134],[108,135,108,136],[108,137,108,138],[108,139,108,140],[108,117,108,118],[108,119,108,120],[108,121,108,122],[108,123,108,124],[108,125,108,126],[108,127,108,128],[108,105,108,106],[108,107,108,108],[108,109,108,110],[108,111,108,112],[108,113,108,114],[108,115,108,116],[108,93,108,94],[108,95,108,96],[108,97,108,98],[108,99,108,100],[108,101,108,102],[108,103,108,104],[108,81,108,82],[108,83,108,84],[108,85,108,86],[108,87,108,88],[108,89,108,90],[108,91,108,92],[108,69,108,70],[108,71,108,72],[108,73,108,74],[108,75,108,76],[108,77,108,78],[108,79,108,80],[108,57,108,58],[108,59,108,60],[108,61,108,62],[108,63,108,64],[108,65,108,66],[108,67,108,68],[108,45,108,46],[108,47,108,48],[108,49,108,50],[108,51,108,52],[108,53,108,54],[108,55,108,56],[108,33,108,34],[108,35,108,36],[108,37,108,38],[108,39,108,40],[108,41,108,42],[108,43,108,44],[108,21,108,22],[108,23,108,24],[108,25,108,26],[108,27,108,28],[108,29,108,30],[108,31,108,32],[107,201,107,202],[107,203,107,204],[107,205,107,206],[107,207,107,208],[107,209,107,210],[108,11,108,12],[108,13,108,14],[108,15,108,16],[108,17,108,18],[108,19,108,20],[107,189,107,190],[107,191,107,192],[107,193,107,194],[107,195,107,196],[107,197,107,198],[107,199,107,200],[107,177,107,178],[107,179,107,180],[107,181,107,182],[107,183,107,184],[107,185,107,186],[107,187,107,188],[107,165,107,166],[107,167,107,168],[107,169,107,170],[107,171,107,172],[107,173,107,174],[107,175,107,176],[107,153,107,154],[107,155,107,156],[107,157,107,158],[107,159,107,160],[107,161,107,162],[107,163,107,164],[107,141,107,142],[107,143,107,144],[107,145,107,146],[107,147,107,148],[107,149,107,150],[107,151,107,152],[107,129,107,130],[107,131,107,132],[107,133,107,134],[107,135,107,136],[107,137,107,138],[107,139,107,140],[107,117,107,118],[107,119,107,120],[107,121,107,122],[107,123,107,124],[107,125,107,126],[107,127,107,128],[107,105,107,106],[107,107,107,108],[107,109,107,110],[107,111,107,112],[107,113,107,114],[107,115,107,116],[107,93,107,94],[107,95,107,96],[107,97,107,98],[107,99,107,100],[107,101,107,102],[107,103,107,104],[107,81,107,82],[107,83,107,84],[107,85,107,86],[107,87,107,88],[107,89,107,90],[107,91,107,92],[107,69,107,70],[107,71,107,72],[107,73,107,74],[107,75,107,76],[107,77,107,78],[107,79,107,80],[107,57,107,58],[107,59,107,60],[107,61,107,62],[107,63,107,64],[107,65,107,66],[107,67,107,68],[107,45,107,46],[107,47,107,48],[107,49,107,50],[107,51,107,52],[107,53,107,54],[107,55,107,56],[107,33,107,34],[107,35,107,36],[107,37,107,38],[107,39,107,40],[107,41,107,42],[107,43,107,44],[107,21,107,22],[107,23,107,24],[107,25,107,26],[107,27,107,28],[107,29,107,30],[107,31,107,32],[106,201,106,202],[106,203,106,204],[106,205,106,206],[106,207,106,208],[106,209,106,210],[107,11,107,12],[107,13,107,14],[107,15,107,16],[107,17,107,18],[107,19,107,20],[106,189,106,190],[106,191,106,192],[106,193,106,194],[106,195,106,196],[106,197,106,198],[106,199,106,200],[106,177,106,178],[106,179,106,180],[106,181,106,182],[106,183,106,184],[106,185,106,186],[106,187,106,188],[106,165,106,166],[106,167,106,168],[106,169,106,170],[106,171,106,172],[106,173,106,174],[106,175,106,176],[106,153,106,154],[106,155,106,156],[106,157,106,158],[106,159,106,160],[106,161,106,162],[106,163,106,164],[106,141,106,142],[106,143,106,144],[106,145,106,146],[106,147,106,148],[106,149,106,150],[106,151,106,152],[106,129,106,130],[106,131,106,132],[106,133,106,134],[106,135,106,136],[106,137,106,138],[106,139,106,140],[106,117,106,118],[106,119,106,120],[106,121,106,122],[106,123,106,124],[106,125,106,126],[106,127,106,128],[106,105,106,106],[106,107,106,108],[106,109,106,110],[106,111,106,112],[106,113,106,114],[106,115,106,116],[106,93,106,94],[106,95,106,96],[106,97,106,98],[106,99,106,100],[106,101,106,102],[106,103,106,104],[106,81,106,82],[106,83,106,84],[106,85,106,86],[106,87,106,88],[106,89,106,90],[106,91,106,92],[106,69,106,70],[106,71,106,72],[106,73,106,74],[106,75,106,76],[106,77,106,78],[106,79,106,80],[106,57,106,58],[106,59,106,60],[106,61,106,62],[106,63,106,64],[106,65,106,66],[106,67,106,68],[106,45,106,46],[106,47,106,48],[106,49,106,50],[106,51,106,52],[106,53,106,54],[106,55,106,56],[106,33,106,34],[106,35,106,36],[106,37,106,38],[106,39,106,40],[106,41,106,42],[106,43,106,44],[106,21,106,22],[106,23,106,24],[106,25,106,26],[106,27,106,28],[106,29,106,30],[106,31,106,32],[105,201,105,202],[105,203,105,204],[105,205,105,206],[105,207,105,208],[105,209,105,210],[106,11,106,12],[106,13,106,14],[106,15,106,16],[106,17,106,18],[106,19,106,20],[105,189,105,190],[105,191,105,192],[105,193,105,194],[105,195,105,196],[105,197,105,198],[105,199,105,200],[105,177,105,178],[105,179,105,180],[105,181,105,182],[105,183,105,184],[105,185,105,186],[105,187,105,188],[105,165,105,166],[105,167,105,168],[105,169,105,170],[105,171,105,172],[105,173,105,174],[105,175,105,176],[105,153,105,154],[105,155,105,156],[105,157,105,158],[105,159,105,160],[105,161,105,162],[105,163,105,164],[105,141,105,142],[105,143,105,144],[105,145,105,146],[105,147,105,148],[105,149,105,150],[105,151,105,152],[105,129,105,130],[105,131,105,132],[105,133,105,134],[105,135,105,136],[105,137,105,138],[105,139,105,140],[105,117,105,118],[105,119,105,120],[105,121,105,122],[105,123,105,124],[105,125,105,126],[105,127,105,128],[105,105,105,106],[105,107,105,108],[105,109,105,110],[105,111,105,112],[105,113,105,114],[105,115,105,116],[105,93,105,94],[105,95,105,96],[105,97,105,98],[105,99,105,100],[105,101,105,102],[105,103,105,104],[105,81,105,82],[105,83,105,84],[105,85,105,86],[105,87,105,88],[105,89,105,90],[105,91,105,92],[105,69,105,70],[105,71,105,72],[105,73,105,74],[105,75,105,76],[105,77,105,78],[105,79,105,80],[105,57,105,58],[105,59,105,60],[105,61,105,62],[105,63,105,64],[105,65,105,66],[105,67,105,68],[105,45,105,46],[105,47,105,48],[105,49,105,50],[105,51,105,52],[105,53,105,54],[105,55,105,56],[105,33,105,34],[105,35,105,36],[105,37,105,38],[105,39,105,40],[105,41,105,42],[105,43,105,44],[105,21,105,22],[105,23,105,24],[105,25,105,26],[105,27,105,28],[105,29,105,30],[105,31,105,32],[104,201,104,202],[104,203,104,204],[104,205,104,206],[104,207,104,208],[104,209,104,210],[105,11,105,12],[105,13,105,14],[105,15,105,16],[105,17,105,18],[105,19,105,20],[104,189,104,190],[104,191,104,192],[104,193,104,194],[104,195,104,196],[104,197,104,198],[104,199,104,200],[104,177,104,178],[104,179,104,180],[104,181,104,182],[104,183,104,184],[104,185,104,186],[104,187,104,188],[104,165,104,166],[104,167,104,168],[104,169,104,170],[104,171,104,172],[104,173,104,174],[104,175,104,176],[104,153,104,154],[104,155,104,156],[104,157,104,158],[104,159,104,160],[104,161,104,162],[104,163,104,164],[104,141,104,142],[104,143,104,144],[104,145,104,146],[104,147,104,148],[104,149,104,150],[104,151,104,152],[104,129,104,130],[104,131,104,132],[104,133,104,134],[104,135,104,136],[104,137,104,138],[104,139,104,140],[104,117,104,118],[104,119,104,120],[104,121,104,122],[104,123,104,124],[104,125,104,126],[104,127,104,128],[104,105,104,106],[104,107,104,108],[104,109,104,110],[104,111,104,112],[104,113,104,114],[104,115,104,116],[104,93,104,94],[104,95,104,96],[104,97,104,98],[104,99,104,100],[104,101,104,102],[104,103,104,104],[104,81,104,82],[104,83,104,84],[104,85,104,86],[104,87,104,88],[104,89,104,90],[104,91,104,92],[104,69,104,70],[104,71,104,72],[104,73,104,74],[104,75,104,76],[104,77,104,78],[104,79,104,80],[104,57,104,58],[104,59,104,60],[104,61,104,62],[104,63,104,64],[104,65,104,66],[104,67,104,68],[104,45,104,46],[104,47,104,48],[104,49,104,50],[104,51,104,52],[104,53,104,54],[104,55,104,56],[104,33,104,34],[104,35,104,36],[104,37,104,38],[104,39,104,40],[104,41,104,42],[104,43,104,44],[104,21,104,22],[104,23,104,24],[104,25,104,26],[104,27,104,28],[104,29,104,30],[104,31,104,32],[103,201,103,202],[103,203,103,204],[103,205,103,206],[103,207,103,208],[103,209,103,210],[104,11,104,12],[104,13,104,14],[104,15,104,16],[104,17,104,18],[104,19,104,20],[103,189,103,190],[103,191,103,192],[103,193,103,194],[103,195,103,196],[103,197,103,198],[103,199,103,200],[103,177,103,178],[103,179,103,180],[103,181,103,182],[103,183,103,184],[103,185,103,186],[103,187,103,188],[103,165,103,166],[103,167,103,168],[103,169,103,170],[103,171,103,172],[103,173,103,174],[103,175,103,176],[103,153,103,154],[103,155,103,156],[103,157,103,158],[103,159,103,160],[103,161,103,162],[103,163,103,164],[103,141,103,142],[103,143,103,144],[103,145,103,146],[103,147,103,148],[103,149,103,150],[103,151,103,152],[103,129,103,130],[103,131,103,132],[103,133,103,134],[103,135,103,136],[103,137,103,138],[103,139,103,140],[103,117,103,118],[103,119,103,120],[103,121,103,122],[103,123,103,124],[103,125,103,126],[103,127,103,128],[103,105,103,106],[103,107,103,108],[103,109,103,110],[103,111,103,112],[103,113,103,114],[103,115,103,116],[103,93,103,94],[103,95,103,96],[103,97,103,98],[103,99,103,100],[103,101,103,102],[103,103,103,104],[103,81,103,82],[103,83,103,84],[103,85,103,86],[103,87,103,88],[103,89,103,90],[103,91,103,92],[103,69,103,70],[103,71,103,72],[103,73,103,74],[103,75,103,76],[103,77,103,78],[103,79,103,80],[103,57,103,58],[103,59,103,60],[103,61,103,62],[103,63,103,64],[103,65,103,66],[103,67,103,68],[103,45,103,46],[103,47,103,48],[103,49,103,50],[103,51,103,52],[103,53,103,54],[103,55,103,56],[103,33,103,34],[103,35,103,36],[103,37,103,38],[103,39,103,40],[103,41,103,42],[103,43,103,44],[103,21,103,22],[103,23,103,24],[103,25,103,26],[103,27,103,28],[103,29,103,30],[103,31,103,32],[102,201,102,202],[102,203,102,204],[102,205,102,206],[102,207,102,208],[102,209,102,210],[103,11,103,12],[103,13,103,14],[103,15,103,16],[103,17,103,18],[103,19,103,20],[102,189,102,190],[102,191,102,192],[102,193,102,194],[102,195,102,196],[102,197,102,198],[102,199,102,200],[102,177,102,178],[102,179,102,180],[102,181,102,182],[102,183,102,184],[102,185,102,186],[102,187,102,188],[102,165,102,166],[102,167,102,168],[102,169,102,170],[102,171,102,172],[102,173,102,174],[102,175,102,176],[102,153,102,154],[102,155,102,156],[102,157,102,158],[102,159,102,160],[102,161,102,162],[102,163,102,164],[102,141,102,142],[102,143,102,144],[102,145,102,146],[102,147,102,148],[102,149,102,150],[102,151,102,152],[102,129,102,130],[102,131,102,132],[102,133,102,134],[102,135,102,136],[102,137,102,138],[102,139,102,140],[102,117,102,118],[102,119,102,120],[102,121,102,122],[102,123,102,124],[102,125,102,126],[102,127,102,128],[102,105,102,106],[102,107,102,108],[102,109,102,110],[102,111,102,112],[102,113,102,114],[102,115,102,116],[102,93,102,94],[102,95,102,96],[102,97,102,98],[102,99,102,100],[102,101,102,102],[102,103,102,104],[102,81,102,82],[102,83,102,84],[102,85,102,86],[102,87,102,88],[102,89,102,90],[102,91,102,92],[102,69,102,70],[102,71,102,72],[102,73,102,74],[102,75,102,76],[102,77,102,78],[102,79,102,80],[102,57,102,58],[102,59,102,60],[102,61,102,62],[102,63,102,64],[102,65,102,66],[102,67,102,68],[102,45,102,46],[102,47,102,48],[102,49,102,50],[102,51,102,52],[102,53,102,54],[102,55,102,56],[102,33,102,34],[102,35,102,36],[102,37,102,38],[102,39,102,40],[102,41,102,42],[102,43,102,44],[102,21,102,22],[102,23,102,24],[102,25,102,26],[102,27,102,28],[102,29,102,30],[102,31,102,32],[101,201,101,202],[101,203,101,204],[101,205,101,206],[101,207,101,208],[101,209,101,210],[102,11,102,12],[102,13,102,14],[102,15,102,16],[102,17,102,18],[102,19,102,20],[101,189,101,190],[101,191,101,192],[101,193,101,194],[101,195,101,196],[101,197,101,198],[101,199,101,200],[101,177,101,178],[101,179,101,180],[101,181,101,182],[101,183,101,184],[101,185,101,186],[101,187,101,188],[101,165,101,166],[101,167,101,168],[101,169,101,170],[101,171,101,172],[101,173,101,174],[101,175,101,176],[101,153,101,154],[101,155,101,156],[101,157,101,158],[101,159,101,160],[101,161,101,162],[101,163,101,164],[101,141,101,142],[101,143,101,144],[101,145,101,146],[101,147,101,148],[101,149,101,150],[101,151,101,152],[101,129,101,130],[101,131,101,132],[101,133,101,134],[101,135,101,136],[101,137,101,138],[101,139,101,140],[101,117,101,118],[101,119,101,120],[101,121,101,122],[101,123,101,124],[101,125,101,126],[101,127,101,128],[101,105,101,106],[101,107,101,108],[101,109,101,110],[101,111,101,112],[101,113,101,114],[101,115,101,116],[101,93,101,94],[101,95,101,96],[101,97,101,98],[101,99,101,100],[101,101,101,102],[101,103,101,104],[101,81,101,82],[101,83,101,84],[101,85,101,86],[101,87,101,88],[101,89,101,90],[101,91,101,92],[101,69,101,70],[101,71,101,72],[101,73,101,74],[101,75,101,76],[101,77,101,78],[101,79,101,80],[101,57,101,58],[101,59,101,60],[101,61,101,62],[101,63,101,64],[101,65,101,66],[101,67,101,68],[101,45,101,46],[101,47,101,48],[101,49,101,50],[101,51,101,52],[101,53,101,54],[101,55,101,56],[101,33,101,34],[101,35,101,36],[101,37,101,38],[101,39,101,40],[101,41,101,42],[101,43,101,44],[101,21,101,22],[101,23,101,24],[101,25,101,26],[101,27,101,28],[101,29,101,30],[101,31,101,32],[100,201,100,202],[100,203,100,204],[100,205,100,206],[100,207,100,208],[100,209,100,210],[101,11,101,12],[101,13,101,14],[101,15,101,16],[101,17,101,18],[101,19,101,20],[100,189,100,190],[100,191,100,192],[100,193,100,194],[100,195,100,196],[100,197,100,198],[100,199,100,200],[100,177,100,178],[100,179,100,180],[100,181,100,182],[100,183,100,184],[100,185,100,186],[100,187,100,188],[100,165,100,166],[100,167,100,168],[100,169,100,170],[100,171,100,172],[100,173,100,174],[100,175,100,176],[100,153,100,154],[100,155,100,156],[100,157,100,158],[100,159,100,160],[100,161,100,162],[100,163,100,164],[100,141,100,142],[100,143,100,144],[100,145,100,146],[100,147,100,148],[100,149,100,150],[100,151,100,152],[100,129,100,130],[100,131,100,132],[100,133,100,134],[100,135,100,136],[100,137,100,138],[100,139,100,140],[100,117,100,118],[100,119,100,120],[100,121,100,122],[100,123,100,124],[100,125,100,126],[100,127,100,128],[100,105,100,106],[100,107,100,108],[100,109,100,110],[100,111,100,112],[100,113,100,114],[100,115,100,116],[100,93,100,94],[100,95,100,96],[100,97,100,98],[100,99,100,100],[100,101,100,102],[100,103,100,104],[100,81,100,82],[100,83,100,84],[100,85,100,86],[100,87,100,88],[100,89,100,90],[100,91,100,92],[100,69,100,70],[100,71,100,72],[100,73,100,74],[100,75,100,76],[100,77,100,78],[100,79,100,80],[100,57,100,58],[100,59,100,60],[100,61,100,62],[100,63,100,64],[100,65,100,66],[100,67,100,68],[100,45,100,46],[100,47,100,48],[100,49,100,50],[100,51,100,52],[100,53,100,54],[100,55,100,56],[100,33,100,34],[100,35,100,36],[100,37,100,38],[100,39,100,40],[100,41,100,42],[100,43,100,44],[100,21,100,22],[100,23,100,24],[100,25,100,26],[100,27,100,28],[100,29,100,30],[100,31,100,32],[99,201,99,202],[99,203,99,204],[99,205,99,206],[99,207,99,208],[99,209,99,210],[100,11,100,12],[100,13,100,14],[100,15,100,16],[100,17,100,18],[100,19,100,20],[99,189,99,190],[99,191,99,192],[99,193,99,194],[99,195,99,196],[99,197,99,198],[99,199,99,200],[99,177,99,178],[99,179,99,180],[99,181,99,182],[99,183,99,184],[99,185,99,186],[99,187,99,188],[99,165,99,166],[99,167,99,168],[99,169,99,170],[99,171,99,172],[99,173,99,174],[99,175,99,176],[99,153,99,154],[99,155,99,156],[99,157,99,158],[99,159,99,160],[99,161,99,162],[99,163,99,164],[99,141,99,142],[99,143,99,144],[99,145,99,146],[99,147,99,148],[99,149,99,150],[99,151,99,152],[99,129,99,130],[99,131,99,132],[99,133,99,134],[99,135,99,136],[99,137,99,138],[99,139,99,140],[99,117,99,118],[99,119,99,120],[99,121,99,122],[99,123,99,124],[99,125,99,126],[99,127,99,128],[99,105,99,106],[99,107,99,108],[99,109,99,110],[99,111,99,112],[99,113,99,114],[99,115,99,116],[99,93,99,94],[99,95,99,96],[99,97,99,98],[99,99,99,100],[99,101,99,102],[99,103,99,104],[99,81,99,82],[99,83,99,84],[99,85,99,86],[99,87,99,88],[99,89,99,90],[99,91,99,92],[99,69,99,70],[99,71,99,72],[99,73,99,74],[99,75,99,76],[99,77,99,78],[99,79,99,80],[99,57,99,58],[99,59,99,60],[99,61,99,62],[99,63,99,64],[99,65,99,66],[99,67,99,68],[99,45,99,46],[99,47,99,48],[99,49,99,50],[99,51,99,52],[99,53,99,54],[99,55,99,56],[99,33,99,34],[99,35,99,36],[99,37,99,38],[99,39,99,40],[99,41,99,42],[99,43,99,44],[99,21,99,22],[99,23,99,24],[99,25,99,26],[99,27,99,28],[99,29,99,30],[99,31,99,32],[98,201,98,202]],"merged_total":10105,"flags":["merged_cut"]}
[]
[]
[]
[]
[]
[null,null,null,null,"A"]
[null,null,null,null,0]
[null,null,null,null,null,null,null,null,null,null,null,null,"1 m",null,"2 m",null,"3 m",null,"4 m",null,"5 m",null,"6 m",null,"7 m",null,"8 m",null,"9 m",null,"10 m",null,"11 m",null,"12 m",null,"13 m",null,"14 m",null,"15 m",null,"16 m",null,"17 m",null,"18 m",null,"19 m",null,"20 m",null,"21 m",null,"22 m",null,"23 m",null,"24 m",null,"25 m",null,"26 m",null,"27 m",null,"28 m",null,"29 m",null,"30 m",null,"31 m",null,"32 m",null,"33 m",null,"34 m",null,"35 m",null,"36 m",null,"37 m",null,"38 m",null,"39 m",null,"40 m",null,"41 m",null,"42 m",null,"43 m",null,"44 m",null,"45 m",null,"46 m",null,"47 m",null,"48 m",null,"49 m",null,"50 m",null,"51 m",null,"52 m",null,"53 m",null,"54 m",null,"55 m",null,"56 m",null,"57 m",null,"58 m",null,"59 m",null,"60 m",null,"61 m",null,"62 m",null,"63 m",null,"64 m",null,"65 m",null,"66 m",null,"67 m",null,"68 m",null,"69 m",null,"70 m",null,"71 m",null,"72 m",null,"73 m",null,"74 m",null,"75 m",null,"76 m",null,"77 m",null,"78 m",null,"79 m",null,"80 m",null,"81 m",null,"82 m",null,"83 m",null,"84 m",null,"85 m",null,"86 m",null,"87 m",null,"88 m",null,"89 m",null,"90 m",null,"91 m",null,"92 m",null,"93 m",null,"94 m",null,"95 m",null,"96 m",null,"97 m",null,"98 m",null,"99 m",null,"100 m"]
[null,null,"B",null,null,null,null,"D",null,null," 0\n\n1 m\n\n2 m\n\n3 m\n\n4 m\n\n5 m\n\n6 m\n\n7 m\n\n8 m\n\n9 m\n\n10 m\n\n11 m\n\n12 m\n\n13 m\n\n14 m\n\n15 m\n\n16 m\n\n17 m\n\n18 m\n\n19 m\n\n20 m\n\n21 m\n\n22 m\n\n23 m\n\n24 m\n\n25 m\n\n26 m\n\n27 m\n\n28 m\n\n29 m\n\n30 m\n\n31 m\n\n32 m\n\n33 m\n\n34 m\n\n35 m\n\n36 m\n\n37 m\n\n38 m\n\n39 m\n\n40 m\n\n41 m\n\n42 m\n\n43 m\n\n44 m\n\n45 m\n\n46 m\n\n47 m\n\n48 m\n\n49 m\n\n50 m\n\n51 m\n\n52 m\n\n53 m\n\n54 m\n\n55 m\n\n56 m\n\n57 m\n\n58 m\n\n59 m\n\n60 m\n\n61 m\n\n62 m\n\n63 m\n\n64 m\n\n65 m\n\n66 m\n\n67 m\n\n68 m\n\n69 m\n\n70 m\n\n71 m\n\n72 m\n\n73 m\n\n74 m\n\n75 m\n\n76 m\n\n77 m\n\n78 m\n\n79 m\n\n80 m\n\n81 m\n\n82 m\n\n83 m\n\n84 m\n\n85 m\n\n86 m\n\n87 m\n\n88 m\n\n89 m\n\n90 m\n\n91 m\n\n92 m\n\n93 m\n\n94 m\n\n95 m\n\n96 m\n\n97 m\n\n98 m\n\n 99 m\n\n100 m"]
[null,null,0,null,null,null,null,14300,null,null,1]
[null,null,null,null,null,null,null,null,null,null,2]
[null,null,null,null,"C",null,null,null,null,null,{"$f":"K11+1","v":3}]
[null,null,null,null,10000,null,null,null,null,null,{"$f":"K12+1","v":4}]
[null,{"$f":"VLOOKUP(\"Deplacement\",BD!$A$1:$P$200,Listes!$AA$2+1,0)","v":"Déplacement du champs PV"},null,null,null,null,null,null,null,null,5]
[null,null,null,null,null,null,null,null,null,null,6]
[null,null,null,null,null,null,null,null,null,null,7]
[null,null," ",null,null,null,null,null,null,null,8]
[null,null,null,null,null,null,null,null,null,null,9]
[null,null,null,null,null,null,null,null,null,null,10]
[null,null,null,null,null,null,null,null,null,null,11]
[null,null,null,null,null,null,null,null,null,null,12]
[null,null,null,null,null,null,null,null,null,null,13]
[null,null,null,null,null,null,null,null,null,null,14]
[null,null,null,null,null,null,null,null,null,null,15]
[null,null,null,null,null,null,null,null,null,null,16]
[null,null,null,null,null,null,null,null,null,null,17]
[null,null,null,null,null,null,null,null,null,null,18]
[null,null,null,null,null,null,null,null,null,null,19]
[null,null,null,null,null,null,null,null,null,null,20]
[null,null,null,null,null,null,null,null,null,null,21]
[null,null,null,null,null,null,null,null,null,null,22]
[null,null,null,null,null,null,null,null,null,null,23]
[null,null,null,null,null,null,null,null,null,null,24]
[null,null,null,null,null,null,null,null,null,null,25]
[null,null,null,null,null,null,null,null,null,null,26]
[null,null,null,null,null,null,null,null,null,null,27]
[null,null,null,null,null,null,null,null,null,null,28]
[null,null,null,null,null,null,null,null,null,null,29]
[null,null,null,null,null,null,null,null,null,null,30]
[null,null,null,null,null,null,null,null,null,null,31]
[null,null,null,null,null,null,null,null,null,null,32]
[null,null,null,null,null,null,null,null,null,null,33]
[null,null,null,null,null,null,null,null,null,null,34]
[null,null,null,null,null,null,null,null,null,null,35]
[null,null,null,null,null,null,null,null,null,null,36]
[null,null,null,null,null,null,null,null,null,null,37]
[null,null,null,null,null,null,null,null,null,null,38]
[null,null,null,null,null,null,null,null,null,null,39]
[null,null,null,null,null,null,null,null,null,null,40]
[null,null,null,null,null,null,null,null,null,null,41]
[null,null,null,null,null,null,null,null,null,null,42]
[null,null,null,null,null,null,null,null,null,null,43]
[null,null,null,null,null,null,null,null,null,null,44]
[null,null,null,null,null,null,null,null,null,null,45]
[null,null,null,null,null,null,null,null,null,null,46]
[null,null,null,null,null,null,null,null,null,null,47]
[null,null,null,null,null,null,null,null,null,null,48]
[null,null,null,null,null,null,null,null,null,null,49]
[null,null,null,null,null,null,null,null,null,null,50]
[null,null,null,null,null,null,null,null,null,null,51]
[null,null,null,null,null,null,null,null,null,null,52]
[null,null,null,null,null,null,null,null,null,null,53]
[null,null,null,null,null,null,null,null,null,null,54]
[null,null,null,null,null,null,null,null,null,null,55]
[null,null,null,null,null,null,null,null,null,null,56]
[null,null,null,null,null,null,null,null,null,null,57]
[null,null,null,null,null,null,null,null,null,null,58]
[null,null,null,null,null,null,null,null,null,null,59]
[null,null,null,null,null,null,null,null,null,null,60]
[null,null,null,null,null,null,null,null,null,null,61]
[null,null,null,null,null,null,null,null,null,null,62]
[null,null,null,null,null,null,null,null,null,null,63]
[null,null,null,null,null,null,null,null,null,null,64]
[null,null,null,null,null,null,null,null,null,null,65]
[null,null,null,null,null,null,null,null,null,null,66]
[null,null,null,null,null,null,null,null,null,null,67]
[null,null,null,null,null,null,null,null,null,null,{"$f":"K76+1","v":68}]
[null,null,null,null,null,null,null,null,null,null,69]
[null,null,null,null,null,null,null,null,null,null,70]
[null,null,null,null,null,null,null,null,null,null,71]
[null,null,null,null,null,null,null,null,null,null,72]
[null,null,null,null,null,null,null,null,null,null,73]
[null,null,null,null,null,null,null,null,null,null,74]
[null,null,null,null,null,null,null,null,null,null,75]
[null,null,null,null,null,null,null,null,null,null,76]
[null,null,null,null,null,null,null,null,null,null,77]
[null,null,null,null,null,null,null,null,null,null,78]
[null,null,null,null,null,null,null,null,null,null,79]
[null,null,null,null,null,null,null,null,null,null,80]
[null,null,null,null,null,null,null,null,null,null,81]
[null,null,null,null,null,null,null,null,null,null,82]
[null,null,null,null,null,null,null,null,null,null,83]
[null,null,null,null,null,null,null,null,null,null,84]
[null,null,null,null,null,null,null,null,null,null,85]
[null,null,null,null,null,null,null,null,null,null,86]
[null,null,null,null,null,null,null,null,null,null,87]
[null,null,null,null,null,null,null,null,null,null,88]
[null,null,null,null,null,null,null,null,null,null,89]
[null,null,null,null,null,null,null,null,null,null,90]
[null,null,null,null,null,null,null,null,null,null,91]
[null,null,null,null,null,null,null,null,null,null,92]
[null,null,null,null,null,null,null,null,null,null,93]
[null,null,null,null,null,null,null,null,null,null,94]
[null,null,null,null,null,null,null,null,null,null,95]
[null,null,null,null,null,null,null,null,null,null,96]
[null,null,null,null,null,null,null,null,null,null,97]
[null,null,null,null,null,null,null,null,null,null,98]
[null,null,null,null,null,null,null,null,null,null,99]
[null,null,null,null,null,null,null,null,null,null,100]

{"sheet":"Bon de commande","index":7,"n_rows":148,"n_cols":10,"rows_kept":148,"cut":false,"hidden":true,"merged":[[2,3,2,4],[5,3,5,4],[4,3,4,4],[3,3,3,4],[146,3,146,6],[142,3,142,4],[140,3,140,4],[144,2,144,7],[7,2,7,8],[9,2,9,4],[137,2,137,7],[139,2,139,4],[141,3,141,4]]}
[]
[]
[null,null,{"$f":"TODAY()","v":"2023-01-04"},{"$f":"UPPER(VLOOKUP(\"Adr\",BD!$A$1:$P$200,Listes!$AA$2+1,0))","v":"ADRESSE / CONTACT"},null,{"$f":"UPPER(VLOOKUP(\"DateExp\",BD!$A$1:$P$200,Listes!$AA$2+1,0))","v":"DATE DE LIVRAISON SOUHAITÉE"}]
[]
[null,null,null,null,null,{"$f":"UPPER(VLOOKUP(\"Comment\",BD!$A$1:$P$200,Listes!$AA$2+1,0))","v":"COMMENTAIRES"}]
[null,{"$f":"VLOOKUP(v_plaque,BD!$AN:$AP,2,0)","v":{"$error":"#N/A"}}]
[]
[null,null,{"$f":"IF(ref_projet<>\"\",ref_projet,\"\")","v":""},null,null,null,null,null,null,0]
[]
[null,null,{"$f":"UPPER(VLOOKUP(\"Ref\",BD!$A$1:$P$200,Listes!$AA$2+1,0))","v":"RÉFÉRENCES"},null,null,{"$f":"UPPER(VLOOKUP(\"NbrPiece\",BD!$A$1:$P$200,Listes!$AA$2+1,0))","v":"NOMBRE DE PIÈCES"},{"$f":"UPPER(VLOOKUP(\"PUHT\",BD!$A$1:$P$200,Listes!$AA$2+1,0))","v":"P.U. (HT)"},{"$f":"UPPER(VLOOKUP(\"PUREM\",BD!$A$1:$P$200,Listes!$AA$2+1,0))","v":"P.U. REMISÉ "},{"$f":"UPPER(VLOOKUP(\"Total\",BD!$A$1:$P$200,Listes!$AA$2+1,0))","v":"TOTAL"}]
[null,"PPAYS",{"$f":"IF(VLOOKUP(v_plaque,BD!$AN:$AP,2,0)=0,\"\",VLOOKUP(v_plaque,BD!$AN:$AP,2,0))","v":{"$error":"#N/A"}},null,{"$f":"IFERROR(INDEX(Calepinage!$B$301:$O$401,MATCH('Bon de commande'!B11,Calepinage!$O$301:$O$401,0),1),\"\")","v":""},{"$f":"IFERROR(INDEX(Calepinage!$A$301:$O$401,MATCH('Bon de commande'!B11,Calepinage!$O$301:$O$401,0),1),0)","v":0},{"$f":"IFERROR(VLOOKUP(C11,BD!$AO:$AP,2,0),0)","v":0},{"$f":"G11*(1-$J$8)","v":0},{"$f":"IFERROR(F11*H11,0)","v":0}]
[null,"PPORT",{"$f":"IF(VLOOKUP(v_plaque,BD!$AN:$AP,2,0)=0,\"\",VLOOKUP(v_plaque,BD!$AN:$AP,2,0))","v":{"$error":"#N/A"}},null,{"$f":"IFERROR(INDEX(Calepinage!$B$301:$O$401,MATCH('Bon de commande'!B12,Calepinage!$O$301:$O$401,0),1),\"\")","v":""},{"$f":"IFERROR(INDEX(Calepinage!$A$301:$O$401,MATCH('Bon de commande'!B12,Calepinage!$O$301:$O$401,0),1),0)","v":0},{"$f":"IFERROR(VLOOKUP(C12,BD!$AO:$AP,2,0),0)","v":0},{"$f":"G12*(1-$J$8)","v":0},{"$f":"IFERROR(F12*H12,0)","v":0}]
[null,"DPORT",{"$f":"IF(VLOOKUP(v_plaque,BD!$AN:$AP,2,0)=0,\"\",VLOOKUP(v_plaque,BD!$AN:$AP,2,0))","v":{"$error":"#N/A"}},null,{"$f":"IFERROR(INDEX(Calepinage!$B$301:$O$401,MATCH('Bon de commande'!B13,Calepinage!$O$301:$O$401,0),1),\"\")","v":"DEMI_Po 1650 / 1100"},{"$f":"IFERROR(INDEX(Calepinage!$A$301:$O$401,MATCH('Bon de commande'!B13,Calepinage!$O$301:$O$401,0),1),0)","v":30},{"$f":"IFERROR(VLOOKUP(C13,BD!$AO:$AP,2,0),0)","v":0},0,{"$f":"IFERROR(F13*H13,0)","v":0}]
[null,"COINDALUATEC ","ART101379",null,{"$f":"IFERROR(INDEX(Calepinage!$B$301:$O$401,MATCH('Bon de commande'!B14,Calepinage!$O$301:$O$401,0),1),\"\")","v":""},{"$f":"IFERROR(INDEX(Calepinage!$A$301:$O$401,MATCH('Bon de commande'!B14,Calepinage!$O$301:$O$401,0),1),0)","v":0},11.47,11.47,{"$f":"IFERROR(F14*H14,0)","v":0}]
[null,"COINDNOIRATEC ","ART101295",null,{"$f":"IFERROR(INDEX(Calepinage!$B$301:$O$401,MATCH('Bon de commande'!B15,Calepinage!$O$301:$O$401,0),1),\"\")","v":""},{"$f":"IFERROR(INDEX(Calepinage!$A$301:$O$401,MATCH('Bon de commande'!B15,Calepinage!$O$301:$O$401,0),1),0)","v":0},29.36,29.36,{"$f":"IFERROR(F15*H15,0)","v":0}]
[null,"ANGL_COIN_DROIT_AR ","ART100195",null,{"$f":"IFERROR(INDEX(Calepinage!$B$301:$O$401,MATCH('Bon de commande'!B16,Calepinage!$O$301:$O$401,0),1),\"\")","v":""},{"$f":"IFERROR(INDEX(Calepinage!$A$301:$O$401,MATCH('Bon de commande'!B16,Calepinage!$O$301:$O$401,0),1),0)","v":0},22.6,22.6,0]
[null,"COINGALUATEC ","ART100785",null,{"$f":"IFERROR(INDEX(Calepinage!$B$301:$O$401,MATCH('Bon de commande'!B17,Calepinage!$O$301:$O$401,0),1),\"\")","v":""},{"$f":"IFERROR(INDEX(Calepinage!$A$301:$O$401,MATCH('Bon de commande'!B17,Calepinage!$O$301:$O$401,0),1),0)","v":0},11.47,11.47,0]
[null,"COINGNOIRATEC ","ART100285",null,{"$f":"IFERROR(INDEX(Calepinage!$B$301:$O$401,MATCH('Bon de commande'!B18,Calepinage!$O$301:$O$401,0),1),\"\")","v":""},{"$f":"IFERROR(INDEX(Calepinage!$A$301:$O$401,MATCH('Bon de commande'!B18,Calepinage!$O$301:$O$401,0),1),0)","v":0},29.36,29.36,0]
[null,"ANGL_COIN_GAUCH_AR ","ART101291",null,{"$f":"IFERROR(INDEX(Calepinage!$B$301:$O$401,MATCH('Bon de commande'!B19,Calepinage!$O$301:$O$401,0),1),\"\")","v":""},{"$f":"IFERROR(INDEX(Calepinage!$A$301:$O$401,MATCH('Bon de commande'!B19,Calepinage!$O$301:$O$401,0),1),0)","v":0},22.6,22.6,0]
[null,"AFSA2013","ART100695",null,{"$f":"IFERROR(INDEX(Calepinage!$B$301:$O$401,MATCH('Bon de commande'!B20,Calepinage!$O$301:$O$401,0),1),\"\")","v":""},{"$f":"IFERROR(INDEX(Calepinage!$A$301:$O$401,MATCH('Bon de commande'!B20,Calepinage!$O$301:$O$401,0),1),0)","v":0},17,17,0]
[null,"AFCUNL1500","ART101041 ",null,{"$f":"IFERROR(INDEX(Calepinage!$B$301:$O$401,MATCH('Bon de commande'!B21,Calepinage!$O$301:$O$401,0),1),\"\")","v":"Abergement Haut Central Universel Noir L 1500mm"},{"$f":"IFERROR(INDEX(Calepinage!$A$301:$O$401,MATCH('Bon de commande'!B21,Calepinage!$O$301:$O$401,0),1),0)","v":4},33.92,33.92,135.68]
[null,"ART104007","ART104007",null,{"$f":"IFERROR(INDEX(Calepinage!$B$301:$O$401,MATCH('Bon de commande'!B22,Calepinage!$O$301:$O$401,0),1),\"\")","v":""},{"$f":"IFERROR(INDEX(Calepinage!$A$301:$O$401,MATCH('Bon de commande'!B22,Calepinage!$O$301:$O$401,0),1),0)","v":0},32.54,32.54,0]
[null,"ART104014","ART104014",null,{"$f":"IFERROR(INDEX(Calepinage!$B$301:$O$401,MATCH('Bon de commande'!B23,Calepinage!$O$301:$O$401,0),1),\"\")","v":""},{"$f":"IFERROR(INDEX(Calepinage!$A$301:$O$401,MATCH('Bon de commande'!B23,Calepinage!$O$301:$O$401,0),1),0)","v":0},32.54,32.54,{"$f":"IFERROR(F23*H23,0)","v":0}]
[null,"ART103986","ART103986",null,{"$f":"IFERROR(INDEX(Calepinage!$B$301:$O$401,MATCH('Bon de commande'!B24,Calepinage!$O$301:$O$401,0),1),\"\")","v":""},{"$f":"IFERROR(INDEX(Calepinage!$A$301:$O$401,MATCH('Bon de commande'!B24,Calepinage!$O$301:$O$401,0),1),0)","v":0},32.54,32.54,0]
[null,"ART104021","ART104021",null,{"$f":"IFERROR(INDEX(Calepinage!$B$301:$O$401,MATCH('Bon de commande'!B25,Calepinage!$O$301:$O$401,0),1),\"\")","v":""},{"$f":"IFERROR(INDEX(Calepinage!$A$301:$O$401,MATCH('Bon de commande'!B25,Calepinage!$O$301:$O$401,0),1),0)","v":0},32.54,32.54,0]
[null,"ART101622","ART101622",null,{"$f":"IFERROR(INDEX(Calepinage!$B$301:$O$401,MATCH('Bon de commande'!B26,Calepinage!$O$301:$O$401,0),1),\"\")","v":""},{"$f":"IFERROR(INDEX(Calepinage!$A$301:$O$401,MATCH('Bon de commande'!B26,Calepinage!$O$301:$O$401,0),1),0)","v":0},47.94,47.94,0]
[null,"ART104028","ART104028",null,{"$f":"IFERROR(INDEX(Calepinage!$B$301:$O$401,MATCH('Bon de commande'!B27,Calepinage!$O$301:$O$401,0),1),\"\")","v":""},{"$f":"IFERROR(INDEX(Calepinage!$A$301:$O$401,MATCH('Bon de commande'!B27,Calepinage!$O$301:$O$401,0),1),0)","v":0},47.94,47.94,0]
[null,"ART104035","ART104035",null,{"$f":"IFERROR(INDEX(Calepinage!$B$301:$O$401,MATCH('Bon de commande'!B28,Calepinage!$O$301:$O$401,0),1),\"\")","v":""},{"$f":"IFERROR(INDEX(Calepinage!$A$301:$O$401,MATCH('Bon de commande'!B28,Calepinage!$O$301:$O$401,0),1),0)","v":0},47.94,47.94,0]
[null,"ART104042","ART104042",null,{"$f":"IFERROR(INDEX(Calepinage!$B$301:$O$401,MATCH('Bon de commande'!B29,Calepinage!$O$301:$O$401,0),1),\"\")","v":""},{"$f":"IFERROR(INDEX(Calepinage!$A$301:$O$401,MATCH('Bon de commande'!B29,Calepinage!$O$301:$O$401,0),1),0)","v":0},47.94,47.94,0]
[null,"ART104049","ART104049",null,{"$f":"IFERROR(INDEX(Calepinage!$B$301:$O$401,MATCH('Bon de commande'!B30,Calepinage!$O$301:$O$401,0),1),\"\")","v":""},{"$f":"IFERROR(INDEX(Calepinage!$A$301:$O$401,MATCH('Bon de commande'!B30,Calepinage!$O$301:$O$401,0),1),0)","v":0},47.94,47.94,0]
[null,"ART104056","ART104056",null,{"$f":"IFERROR(INDEX(Calepinage!$B$301:$O$401,MATCH('Bon de commande'!B31,Calepinage!$O$301:$O$401,0),1),\"\")","v":""},{"$f":"IFERROR(INDEX(Calepinage!$A$301:$O$401,MATCH('Bon de commande'!B31,Calepinage!$O$301:$O$401,0),1),0)","v":0},47.94,47.94,0]
[null,"ART104063","ART104063",null,{"$f":"IFERROR(INDEX(Calepinage!$B$301:$O$401,MATCH('Bon de commande'!B32,Calepinage!$O$301:$O$401,0),1),\"\")","v":""},{"$f":"IFERROR(INDEX(Calepinage!$A$301:$O$401,MATCH('Bon de commande'!B32,Calepinage!$O$301:$O$401,0),1),0)","v":0},47.94,47.94,0]
[null,"ART104833","ART104833",null,{"$f":"IFERROR(INDEX(Calepinage!$B$301:$O$401,MATCH('Bon de commande'!B33,Calepinage!$O$301:$O$401,0),1),\"\")","v":""},{"$f":"IFERROR(INDEX(Calepinage!$A$301:$O$401,MATCH('Bon de commande'!B33,Calepinage!$O$301:$O$401,0),1),0)","v":0},47.94,{"$f":"G33*(1-$J$8)","v":47.94},0]
[null,"COINDALU2014_15","ART101340",null,{"$f":"IFERROR(INDEX(Calepinage!$B$301:$O$401,MATCH('Bon de commande'!B34,Calepinage!$O$301:$O$401,0),1),\"\")","v":""},{"$f":"IFERROR(INDEX(Calepinage!$A$301:$O$401,MATCH('Bon de commande'!B34,Calepinage!$O$301:$O$401,0),1),0)","v":0},13.5,13.5,0]
[null,"COINDNOIR2014_15","ART100574",null,{"$f":"IFERROR(INDEX(Calepinage!$B$301:$O$401,MATCH('Bon de commande'!B35,Calepinage!$O$301:$O$401,0),1),\"\")","v":"Abergement Angle Haut Droit Universel Noir "},{"$f":"IFERROR(INDEX(Calepinage!$A$301:$O$401,MATCH('Bon de commande'!B35,Calepinage!$O$301:$O$401,0),1),0)","v":1},25.66,25.66,25.66]
[null,"COINGALU2014_15","ART100862",null,{"$f":"IFERROR(INDEX(Calepinage!$B$301:$O$401,MATCH('Bon de commande'!B36,Calepinage!$O$301:$O$401,0),1),\"\")","v":""},{"$f":"IFERROR(INDEX(Calepinage!$A$301:$O$401,MATCH('Bon de commande'!B36,Calepinage!$O$301:$O$401,0),1),0)","v":0},13.5,13.5,0]
[null,"COINGNOIR2014_15","ART100945",null,{"$f":"IFERROR(INDEX(Calepinage!$B$301:$O$401,MATCH('Bon de commande'!B37,Calepinage!$O$301:$O$401,0),1),\"\")","v":"Abergement Angle Haut Gauche Universel Noir "},{"$f":"IFERROR(INDEX(Calepinage!$A$301:$O$401,MATCH('Bon de commande'!B37,Calepinage!$O$301:$O$401,0),1),0)","v":1},25.66,25.66,25.66]
[null,"ART104070","ART104070",null,{"$f":"IFERROR(INDEX(Calepinage!$B$301:$O$401,MATCH('Bon de commande'!B38,Calepinage!$O$301:$O$401,0),1),\"\")","v":""},{"$f":"IFERROR(INDEX(Calepinage!$A$301:$O$401,MATCH('Bon de commande'!B38,Calepinage!$O$301:$O$401,0),1),0)","v":0},47.71,47.71,{"$f":"IFERROR(F38*H38,0)","v":0}]
[null,"ART104077","ART104077",null,{"$f":"IFERROR(INDEX(Calepinage!$B$301:$O$401,MATCH('Bon de commande'!B39,Calepinage!$O$301:$O$401,0),1),\"\")","v":""},{"$f":"IFERROR(INDEX(Calepinage!$A$301:$O$401,MATCH('Bon de commande'!B39,Calepinage!$O$301:$O$401,0),1),0)","v":0},47.71,47.71,0]
[null,"ART101629","ART101629",null,{"$f":"IFERROR(INDEX(Calepinage!$B$301:$O$401,MATCH('Bon de commande'!B40,Calepinage!$O$301:$O$401,0),1),\"\")","v":""},{"$f":"IFERROR(INDEX(Calepinage!$A$301:$O$401,MATCH('Bon de commande'!B40,Calepinage!$O$301:$O$401,0),1),0)","v":0},25.32,25.32,0]
[null,"ART101618","ART101618",null,{"$f":"IFERROR(INDEX(Calepinage!$B$301:$O$401,MATCH('Bon de commande'!B41,Calepinage!$O$301:$O$401,0),1),\"\")","v":""},{"$f":"IFERROR(INDEX(Calepinage!$A$301:$O$401,MATCH('Bon de commande'!B41,Calepinage!$O$301:$O$401,0),1),0)","v":0},25.32,25.32,0]
[null,"ART101616","ART101616",null,{"$f":"IFERROR(INDEX(Calepinage!$B$301:$O$401,MATCH('Bon de commande'!B42,Calepinage!$O$301:$O$401,0),1),\"\")","v":""},{"$f":"IFERROR(INDEX(Calepinage!$A$301:$O$401,MATCH('Bon de commande'!B42,Calepinage!$O$301:$O$401,0),1),0)","v":0},12.41,12.41,0]
[null,"ART101608","ART101608",null,{"$f":"IFERROR(INDEX(Calepinage!$B$301:$O$401,MATCH('Bon de commande'!B43,Calepinage!$O$301:$O$401,0),1),\"\")","v":""},{"$f":"IFERROR(INDEX(Calepinage!$A$301:$O$401,MATCH('Bon de commande'!B43,Calepinage!$O$301:$O$401,0),1),0)","v":0},12.41,12.41,0]
[null,"AFJA2013","ART100558",null,{"$f":"IFERROR(INDEX(Calepinage!$B$301:$O$401,MATCH('Bon de commande'!B44,Calepinage!$O$301:$O$401,0),1),\"\")","v":""},{"$f":"IFERROR(INDEX(Calepinage!$A$301:$O$401,MATCH('Bon de commande'!B44,Calepinage!$O$301:$O$401,0),1),0)","v":0},4.5,4.5,0]
[null,"AFJUNL375","ART100039",null,{"$f":"IFERROR(INDEX(Calepinage!$B$301:$O$401,MATCH('Bon de commande'!B45,Calepinage!$O$301:$O$401,0),1),\"\")","v":"Abergement Haut Jonction Universel Noir L 375mm  "},{"$f":"IFERROR(INDEX(Calepinage!$A$301:$O$401,MATCH('Bon de commande'!B45,Calepinage!$O$301:$O$401,0),1),0)","v":3},8.44,8.44,25.32]
[null,"ABER_HAUT_ATEC_ALU ","ART100441",null,{"$f":"IFERROR(INDEX(Calepinage!$B$301:$O$401,MATCH('Bon de commande'!B46,Calepinage!$O$301:$O$401,0),1),\"\")","v":""},{"$f":"IFERROR(INDEX(Calepinage!$A$301:$O$401,MATCH('Bon de commande'!B46,Calepinage!$O$301:$O$401,0),1),0)","v":0},21.93,21.93,0]
[null,"ABER_HAUT_ATEC_NOI ","ART100557",null,{"$f":"IFERROR(INDEX(Calepinage!$B$301:$O$401,MATCH('Bon de commande'!B47,Calepinage!$O$301:$O$401,0),1),\"\")","v":""},{"$f":"IFERROR(INDEX(Calepinage!$A$301:$O$401,MATCH('Bon de commande'!B47,Calepinage!$O$301:$O$401,0),1),0)","v":0},53.02,53.02,0]
[null,"AB_HAUT_SPEC_ALU",null,null,{"$f":"IFERROR(INDEX(Calepinage!$B$301:$O$401,MATCH('Bon de commande'!B48,Calepinage!$O$301:$O$401,0),1),\"\")","v":""},{"$f":"IFERROR(INDEX(Calepinage!$A$301:$O$401,MATCH('Bon de commande'!B48,Calepinage!$O$301:$O$401,0),1),0)","v":0},null,0,0]
[null,"AB_HAUT_SPEC_NOIR",null,null,{"$f":"IFERROR(INDEX(Calepinage!$B$301:$O$401,MATCH('Bon de commande'!B49,Calepinage!$O$301:$O$401,0),1),\"\")","v":""},{"$f":"IFERROR(INDEX(Calepinage!$A$301:$O$401,MATCH('Bon de commande'!B49,Calepinage!$O$301:$O$401,0),1),0)","v":0},null,0,0]
[null,"ABER_HAUT_ATEC_ARD ",null,null,{"$f":"IFERROR(INDEX(Calepinage!$B$301:$O$401,MATCH('Bon de commande'!B50,Calepinage!$O$301:$O$401,0),1),\"\")","v":""},{"$f":"IFERROR(INDEX(Calepinage!$A$301:$O$401,MATCH('Bon de commande'!B50,Calepinage!$O$301:$O$401,0),1),0)","v":0},null,0,0]
[null,"AB_HAUT_1001_VA1 ","ART101014",null,{"$f":"IFERROR(INDEX(Calepinage!$B$301:$O$401,MATCH('Bon de commande'!B51,Calepinage!$O$301:$O$401,0),1),\"\")","v":""},{"$f":"IFERROR(INDEX(Calepinage!$A$301:$O$401,MATCH('Bon de commande'!B51,Calepinage!$O$301:$O$401,0),1),0)","v":0},32.54,32.54,{"$f":"IFERROR(F51*H51,0)","v":0}]
[null,"AB_HAUT_1046_VA1 ","ART101567",null,{"$f":"IFERROR(INDEX(Calepinage!$B$301:$O$401,MATCH('Bon de commande'!B52,Calepinage!$O$301:$O$401,0),1),\"\")","v":""},{"$f":"IFERROR(INDEX(Calepinage!$A$301:$O$401,MATCH('Bon de commande'!B52,Calepinage!$O$301:$O$401,0),1),0)","v":0},22.1,22.1,0]
[null,"AB_HAUT_992_VA1 ","ART100820",null,{"$f":"IFERROR(INDEX(Calepinage!$B$301:$O$401,MATCH('Bon de commande'!B53,Calepinage!$O$301:$O$401,0),1),\"\")","v":""},{"$f":"IFERROR(INDEX(Calepinage!$A$301:$O$401,MATCH('Bon de commande'!B53,Calepinage!$O$301:$O$401,0),1),0)","v":0},22.1,22.1,0]
[null,"RACC_ABER_HAUT_ARD ","ART100110",null,{"$f":"IFERROR(INDEX(Calepinage!$B$301:$O$401,MATCH('Bon de commande'!B54,Calepinage!$O$301:$O$401,0),1),\"\")","v":""},{"$f":"IFERROR(INDEX(Calepinage!$A$301:$O$401,MATCH('Bon de commande'!B54,Calepinage!$O$301:$O$401,0),1),0)","v":0},4.4000000000000004,4.4000000000000004,0]
[null,"ALAALUDROITATEC ","ART100079",null,{"$f":"IFERROR(INDEX(Calepinage!$B$301:$O$401,MATCH('Bon de commande'!B55,Calepinage!$O$301:$O$401,0),1),\"\")","v":""},{"$f":"IFERROR(INDEX(Calepinage!$A$301:$O$401,MATCH('Bon de commande'!B55,Calepinage!$O$301:$O$401,0),1),0)","v":0},14.79,14.79,0]
[null,"ALABLKDROITATEC ","ART100973",null,{"$f":"IFERROR(INDEX(Calepinage!$B$301:$O$401,MATCH('Bon de commande'!B56,Calepinage!$O$301:$O$401,0),1),\"\")","v":""},{"$f":"IFERROR(INDEX(Calepinage!$A$301:$O$401,MATCH('Bon de commande'!B56,Calepinage!$O$301:$O$401,0),1),0)","v":0},35.75,35.75,0]
[null,"ABER_LAT_DROIT_ARD ","ART100429",null,{"$f":"IFERROR(INDEX(Calepinage!$B$301:$O$401,MATCH('Bon de commande'!B57,Calepinage!$O$301:$O$401,0),1),\"\")","v":""},{"$f":"IFERROR(INDEX(Calepinage!$A$301:$O$401,MATCH('Bon de commande'!B57,Calepinage!$O$301:$O$401,0),1),0)","v":0},13.6,13.6,0]
[null,"ALAALUGAUCHEATEC ","ART100057",null,{"$f":"IFERROR(INDEX(Calepinage!$B$301:$O$401,MATCH('Bon de commande'!B58,Calepinage!$O$301:$O$401,0),1),\"\")","v":""},{"$f":"IFERROR(INDEX(Calepinage!$A$301:$O$401,MATCH('Bon de commande'!B58,Calepinage!$O$301:$O$401,0),1),0)","v":0},14.79,14.79,0]
[null,"ALABLKGAUCHEATEC ","ART101030",null,{"$f":"IFERROR(INDEX(Calepinage!$B$301:$O$401,MATCH('Bon de commande'!B59,Calepinage!$O$301:$O$401,0),1),\"\")","v":""},{"$f":"IFERROR(INDEX(Calepinage!$A$301:$O$401,MATCH('Bon de commande'!B59,Calepinage!$O$301:$O$401,0),1),0)","v":0},35.75,35.75,0]
[null,"ABER_LAT_GAUCH_AR ","ART100568",null,{"$f":"IFERROR(INDEX(Calepinage!$B$301:$O$401,MATCH('Bon de commande'!B60,Calepinage!$O$301:$O$401,0),1),\"\")","v":""},{"$f":"IFERROR(INDEX(Calepinage!$A$301:$O$401,MATCH('Bon de commande'!B60,Calepinage!$O$301:$O$401,0),1),0)","v":0},13.6,13.6,0]
[null,"ALUAP30TUILBRUTRE3","ART100703",null,{"$f":"IFERROR(INDEX(Calepinage!$B$301:$O$401,MATCH('Bon de commande'!B61,Calepinage!$O$301:$O$401,0),1),\"\")","v":""},{"$f":"IFERROR(INDEX(Calepinage!$A$301:$O$401,MATCH('Bon de commande'!B61,Calepinage!$O$301:$O$401,0),1),0)","v":0},10.9,10.9,0]
[null,"ALUNP30TUILNOIRRE3","ART100927",null,{"$f":"IFERROR(INDEX(Calepinage!$B$301:$O$401,MATCH('Bon de commande'!B62,Calepinage!$O$301:$O$401,0),1),\"\")","v":""},{"$f":"IFERROR(INDEX(Calepinage!$A$301:$O$401,MATCH('Bon de commande'!B62,Calepinage!$O$301:$O$401,0),1),0)","v":0},15.78,15.78,0]
[null,"ALUA","ART100673",null,{"$f":"IFERROR(INDEX(Calepinage!$B$301:$O$401,MATCH('Bon de commande'!B63,Calepinage!$O$301:$O$401,0),1),\"\")","v":""},{"$f":"IFERROR(INDEX(Calepinage!$A$301:$O$401,MATCH('Bon de commande'!B63,Calepinage!$O$301:$O$401,0),1),0)","v":0},9.4,9.4,0]
[null,"ALUN","ART100494",null,{"$f":"IFERROR(INDEX(Calepinage!$B$301:$O$401,MATCH('Bon de commande'!B64,Calepinage!$O$301:$O$401,0),1),\"\")","v":""},{"$f":"IFERROR(INDEX(Calepinage!$A$301:$O$401,MATCH('Bon de commande'!B64,Calepinage!$O$301:$O$401,0),1),0)","v":0},13.9,13.9,0]
[null,"ART101620","ART101620",null,{"$f":"IFERROR(INDEX(Calepinage!$B$301:$O$401,MATCH('Bon de commande'!B65,Calepinage!$O$301:$O$401,0),1),\"\")","v":""},{"$f":"IFERROR(INDEX(Calepinage!$A$301:$O$401,MATCH('Bon de commande'!B65,Calepinage!$O$301:$O$401,0),1),0)","v":0},27.9,27.9,0]
[null,"ART101609","ART101609",null,{"$f":"IFERROR(INDEX(Calepinage!$B$301:$O$401,MATCH('Bon de commande'!B66,Calepinage!$O$301:$O$401,0),1),\"\")","v":""},{"$f":"IFERROR(INDEX(Calepinage!$A$301:$O$401,MATCH('Bon de commande'!B66,Calepinage!$O$301:$O$401,0),1),0)","v":0},27.9,27.9,0]
[null,"ART104644","ART104644",null,{"$f":"IFERROR(INDEX(Calepinage!$B$301:$O$401,MATCH('Bon de commande'!B67,Calepinage!$O$301:$O$401,0),1),\"\")","v":"Abergement Latéral Universel Noir 1290mm New Design 2022"},{"$f":"IFERROR(INDEX(Calepinage!$A$301:$O$401,MATCH('Bon de commande'!B67,Calepinage!$O$301:$O$401,0),1),0)","v":10},18.899999999999999,18.899999999999999,189]
[null,"CORNIERELAQUEB","ART101409",null,{"$f":"IFERROR(INDEX(Calepinage!$B$301:$O$401,MATCH('Bon de commande'!B68,Calepinage!$O$301:$O$401,0),1),\"\")","v":"Abergement Haut Cornière Laquée Noire L1400mm (pour la fixation des abergements centraux)"},{"$f":"IFERROR(INDEX(Calepinage!$A$301:$O$401,MATCH('Bon de commande'!B68,Calepinage!$O$301:$O$401,0),1),0)","v":4},6.4,6.4,25.6]
[null,"CORNIERE","ART100867",null,{"$f":"IFERROR(INDEX(Calepinage!$B$301:$O$401,MATCH('Bon de commande'!B69,Calepinage!$O$301:$O$401,0),1),\"\")","v":""},{"$f":"IFERROR(INDEX(Calepinage!$A$301:$O$401,MATCH('Bon de commande'!B69,Calepinage!$O$301:$O$401,0),1),0)","v":0},3.5,3.5,0]
[null,"CROCHET","ART100633",null,{"$f":"IFERROR(INDEX(Calepinage!$B$301:$O$401,MATCH('Bon de commande'!B70,Calepinage!$O$301:$O$401,0),1),\"\")","v":"Crochet de Fixation d'Abergement In Roof"},{"$f":"IFERROR(INDEX(Calepinage!$A$301:$O$401,MATCH('Bon de commande'!B70,Calepinage!$O$301:$O$401,0),1),0)","v":35},0.98,0.98,34.299999999999997]
[null,"ART104105","ART104105",null,{"$f":"IFERROR(INDEX(Calepinage!$B$301:$O$401,MATCH('Bon de commande'!B71,Calepinage!$O$301:$O$401,0),1),\"\")","v":""},{"$f":"IFERROR(INDEX(Calepinage!$A$301:$O$401,MATCH('Bon de commande'!B71,Calepinage!$O$301:$O$401,0),1),0)","v":0},5.52,5.52,0]
[null,"ART101625","ART101625",null,{"$f":"IFERROR(INDEX(Calepinage!$B$301:$O$401,MATCH('Bon de commande'!B72,Calepinage!$O$301:$O$401,0),1),\"\")","v":""},{"$f":"IFERROR(INDEX(Calepinage!$A$301:$O$401,MATCH('Bon de commande'!B72,Calepinage!$O$301:$O$401,0),1),0)","v":0},24.19,24.19,0]
[null,"ART101617","ART101617",null,{"$f":"IFERROR(INDEX(Calepinage!$B$301:$O$401,MATCH('Bon de commande'!B73,Calepinage!$O$301:$O$401,0),1),\"\")","v":""},{"$f":"IFERROR(INDEX(Calepinage!$A$301:$O$401,MATCH('Bon de commande'!B73,Calepinage!$O$301:$O$401,0),1),0)","v":0},24.19,24.19,0]
[null,"EDH162014ALU (ASV09-35G)","ART100045",null,{"$f":"IFERROR(INDEX(Calepinage!$B$301:$O$401,MATCH('Bon de commande'!B74,Calepinage!$O$301:$O$401,0),1),\"\")","v":""},{"$f":"IFERROR(INDEX(Calepinage!$A$301:$O$401,MATCH('Bon de commande'!B74,Calepinage!$O$301:$O$401,0),1),0)","v":0},1.18,1.18,0]
[null,"EDH162014N (ASV09-35V)","ART100482",null,{"$f":"IFERROR(INDEX(Calepinage!$B$301:$O$401,MATCH('Bon de commande'!B75,Calepinage!$O$301:$O$401,0),1),\"\")","v":"Etrier Double H16 - Acier Inox - Noir - In Roof "},{"$f":"IFERROR(INDEX(Calepinage!$A$301:$O$401,MATCH('Bon de commande'!B75,Calepinage!$O$301:$O$401,0),1),0)","v":24},1.82,1.82,43.68]
[null,"ART104084","ART104084",null,{"$f":"IFERROR(INDEX(Calepinage!$B$301:$O$401,MATCH('Bon de commande'!B76,Calepinage!$O$301:$O$401,0),1),\"\")","v":""},{"$f":"IFERROR(INDEX(Calepinage!$A$301:$O$401,MATCH('Bon de commande'!B76,Calepinage!$O$301:$O$401,0),1),0)","v":0},6.95,{"$f":"G76*(1-$J$8)","v":6.95},0]
[null,"ART105575","ART105575",null,{"$f":"IFERROR(INDEX(Calepinage!$B$301:$O$401,MATCH('Bon de commande'!B77,Calepinage!$O$301:$O$401,0),1),\"\")","v":""},{"$f":"IFERROR(INDEX(Calepinage!$A$301:$O$401,MATCH('Bon de commande'!B77,Calepinage!$O$301:$O$401,0),1),0)","v":0},1.82,1.82,0]
[null,"EDH192014ALU (ASV-38G)","ART100171",null,{"$f":"IFERROR(INDEX(Calepinage!$B$301:$O$401,MATCH('Bon de commande'!B78,Calepinage!$O$301:$O$401,0),1),\"\")","v":""},{"$f":"IFERROR(INDEX(Calepinage!$A$301:$O$401,MATCH('Bon de commande'!B78,Calepinage!$O$301:$O$401,0),1),0)","v":0},1.18,1.18,0]
[null,"EDH192014N (ASV-38V)","ART100548",null,{"$f":"IFERROR(INDEX(Calepinage!$B$301:$O$401,MATCH('Bon de commande'!B79,Calepinage!$O$301:$O$401,0),1),\"\")","v":""},{"$f":"IFERROR(INDEX(Calepinage!$A$301:$O$401,MATCH('Bon de commande'!B79,Calepinage!$O$301:$O$401,0),1),0)","v":0},1.82,1.82,0]
[null,"EDH212014ALU (ASV09-40G)","ART100597",null,{"$f":"IFERROR(INDEX(Calepinage!$B$301:$O$401,MATCH('Bon de commande'!B80,Calepinage!$O$301:$O$401,0),1),\"\")","v":""},{"$f":"IFERROR(INDEX(Calepinage!$A$301:$O$401,MATCH('Bon de commande'!B80,Calepinage!$O$301:$O$401,0),1),0)","v":0},1.18,1.18,0]
[null,"EDH212014N (ASV09-40V)","ART100744",null,{"$f":"IFERROR(INDEX(Calepinage!$B$301:$O$401,MATCH('Bon de commande'!B81,Calepinage!$O$301:$O$401,0),1),\"\")","v":""},{"$f":"IFERROR(INDEX(Calepinage!$A$301:$O$401,MATCH('Bon de commande'!B81,Calepinage!$O$301:$O$401,0),1),0)","v":0},1.82,1.82,0]
[null,"EDH232014ALU (ASV09-42G)","ART101192",null,{"$f":"IFERROR(INDEX(Calepinage!$B$301:$O$401,MATCH('Bon de commande'!B82,Calepinage!$O$301:$O$401,0),1),\"\")","v":""},{"$f":"IFERROR(INDEX(Calepinage!$A$301:$O$401,MATCH('Bon de commande'!B82,Calepinage!$O$301:$O$401,0),1),0)","v":0},1.18,1.18,0]
[null,"EDH232014N (ASV9-42V)","ART100658",null,{"$f":"IFERROR(INDEX(Calepinage!$B$301:$O$401,MATCH('Bon de commande'!B83,Calepinage!$O$301:$O$401,0),1),\"\")","v":""},{"$f":"IFERROR(INDEX(Calepinage!$A$301:$O$401,MATCH('Bon de commande'!B83,Calepinage!$O$301:$O$401,0),1),0)","v":0},1.82,1.82,0]
[null,"EDH262014ALU (ASV09-46G)","ART102202",null,{"$f":"IFERROR(INDEX(Calepinage!$B$301:$O$401,MATCH('Bon de commande'!B84,Calepinage!$O$301:$O$401,0),1),\"\")","v":""},{"$f":"IFERROR(INDEX(Calepinage!$A$301:$O$401,MATCH('Bon de commande'!B84,Calepinage!$O$301:$O$401,0),1),0)","v":0},1.18,1.18,0]
[null,"EDH262014N (ASV09-46V)","ART102335",null,{"$f":"IFERROR(INDEX(Calepinage!$B$301:$O$401,MATCH('Bon de commande'!B85,Calepinage!$O$301:$O$401,0),1),\"\")","v":""},{"$f":"IFERROR(INDEX(Calepinage!$A$301:$O$401,MATCH('Bon de commande'!B85,Calepinage!$O$301:$O$401,0),1),0)","v":0},1.82,1.82,0]
[null,"EDH272014ALU (ASV09-46G)","ART100006",null,{"$f":"IFERROR(INDEX(Calepinage!$B$301:$O$401,MATCH('Bon de commande'!B86,Calepinage!$O$301:$O$401,0),1),\"\")","v":""},{"$f":"IFERROR(INDEX(Calepinage!$A$301:$O$401,MATCH('Bon de commande'!B86,Calepinage!$O$301:$O$401,0),1),0)","v":0},1.18,1.18,0]
[null,"EDH272014N (ASV09-46V)","ART100242",null,{"$f":"IFERROR(INDEX(Calepinage!$B$301:$O$401,MATCH('Bon de commande'!B87,Calepinage!$O$301:$O$401,0),1),\"\")","v":""},{"$f":"IFERROR(INDEX(Calepinage!$A$301:$O$401,MATCH('Bon de commande'!B87,Calepinage!$O$301:$O$401,0),1),0)","v":0},1.82,1.82,0]
[null,"EDH312014ALU (ASV09-50G)","ART101326",null,{"$f":"IFERROR(INDEX(Calepinage!$B$301:$O$401,MATCH('Bon de commande'!B88,Calepinage!$O$301:$O$401,0),1),\"\")","v":""},{"$f":"IFERROR(INDEX(Calepinage!$A$301:$O$401,MATCH('Bon de commande'!B88,Calepinage!$O$301:$O$401,0),1),0)","v":0},1.18,1.18,0]
[null,"EDH312014N (ASV09-50V)","ART101288",null,{"$f":"IFERROR(INDEX(Calepinage!$B$301:$O$401,MATCH('Bon de commande'!B89,Calepinage!$O$301:$O$401,0),1),\"\")","v":""},{"$f":"IFERROR(INDEX(Calepinage!$A$301:$O$401,MATCH('Bon de commande'!B89,Calepinage!$O$301:$O$401,0),1),0)","v":0},1.82,1.82,0]
[null,"ESH162014ALU (ASV08-35G)","ART100376",null,{"$f":"IFERROR(INDEX(Calepinage!$B$301:$O$401,MATCH('Bon de commande'!B90,Calepinage!$O$301:$O$401,0),1),\"\")","v":""},{"$f":"IFERROR(INDEX(Calepinage!$A$301:$O$401,MATCH('Bon de commande'!B90,Calepinage!$O$301:$O$401,0),1),0)","v":0},1.02,1.02,0]
[null,"ESH162014N (ASV08-35V)","ART100814",null,{"$f":"IFERROR(INDEX(Calepinage!$B$301:$O$401,MATCH('Bon de commande'!B91,Calepinage!$O$301:$O$401,0),1),\"\")","v":"Etrier Simple H16 - Acier Inox - Noir - In Roof "},{"$f":"IFERROR(INDEX(Calepinage!$A$301:$O$401,MATCH('Bon de commande'!B91,Calepinage!$O$301:$O$401,0),1),0)","v":12},1.57,1.57,18.84]
[null,"ESH162014ALU","ART100376",null,{"$f":"IFERROR(INDEX(Calepinage!$B$301:$O$401,MATCH('Bon de commande'!B92,Calepinage!$O$301:$O$401,0),1),\"\")","v":""},{"$f":"IFERROR(INDEX(Calepinage!$A$301:$O$401,MATCH('Bon de commande'!B92,Calepinage!$O$301:$O$401,0),1),0)","v":0},1.02,1.02,0]
[null,"ESH162014N","ART100814",null,{"$f":"IFERROR(INDEX(Calepinage!$B$301:$O$401,MATCH('Bon de commande'!B93,Calepinage!$O$301:$O$401,0),1),\"\")","v":""},{"$f":"IFERROR(INDEX(Calepinage!$A$301:$O$401,MATCH('Bon de commande'!B93,Calepinage!$O$301:$O$401,0),1),0)","v":0},1.57,1.57,0]
[null,"ESH192014ALU (ASV08-38G)","ART101152",null,{"$f":"IFERROR(INDEX(Calepinage!$B$301:$O$401,MATCH('Bon de commande'!B94,Calepinage!$O$301:$O$401,0),1),\"\")","v":""},{"$f":"IFERROR(INDEX(Calepinage!$A$301:$O$401,MATCH('Bon de commande'!B94,Calepinage!$O$301:$O$401,0),1),0)","v":0},1.02,1.02,0]
[null,"ESH192014N (ASV08-38V)","ART101299",null,{"$f":"IFERROR(INDEX(Calepinage!$B$301:$O$401,MATCH('Bon de commande'!B95,Calepinage!$O$301:$O$401,0),1),\"\")","v":""},{"$f":"IFERROR(INDEX(Calepinage!$A$301:$O$401,MATCH('Bon de commande'!B95,Calepinage!$O$301:$O$401,0),1),0)","v":0},1.57,1.57,0]
[null,"ESH212014ALU (ASV08-40G)","ART101279",null,{"$f":"IFERROR(INDEX(Calepinage!$B$301:$O$401,MATCH('Bon de commande'!B96,Calepinage!$O$301:$O$401,0),1),\"\")","v":""},{"$f":"IFERROR(INDEX(Calepinage!$A$301:$O$401,MATCH('Bon de commande'!B96,Calepinage!$O$301:$O$401,0),1),0)","v":0},1.02,1.02,0]
[null,"ESH212014N (ASV08-40V)","ART100495",null,{"$f":"IFERROR(INDEX(Calepinage!$B$301:$O$401,MATCH('Bon de commande'!B97,Calepinage!$O$301:$O$401,0),1),\"\")","v":""},{"$f":"IFERROR(INDEX(Calepinage!$A$301:$O$401,MATCH('Bon de commande'!B97,Calepinage!$O$301:$O$401,0),1),0)","v":0},1.57,1.57,0]
[null,"ESH232014ALU (ASV08-42G)","ART101215",null,{"$f":"IFERROR(INDEX(Calepinage!$B$301:$O$401,MATCH('Bon de commande'!B98,Calepinage!$O$301:$O$401,0),1),\"\")","v":""},{"$f":"IFERROR(INDEX(Calepinage!$A$301:$O$401,MATCH('Bon de commande'!B98,Calepinage!$O$301:$O$401,0),1),0)","v":0},1.02,1.02,0]
[null,"ESH232014N (ASV08-42V)","ART101230",null,{"$f":"IFERROR(INDEX(Calepinage!$B$301:$O$401,MATCH('Bon de commande'!B99,Calepinage!$O$301:$O$401,0),1),\"\")","v":""},{"$f":"IFERROR(INDEX(Calepinage!$A$301:$O$401,MATCH('Bon de commande'!B99,Calepinage!$O$301:$O$401,0),1),0)","v":0},1.57,1.57,0]
[null,"ESH262014ALU (ASV08-46G)","ART102321",null,{"$f":"IFERROR(INDEX(Calepinage!$B$301:$O$401,MATCH('Bon de commande'!B100,Calepinage!$O$301:$O$401,0),1),\"\")","v":""},{"$f":"IFERROR(INDEX(Calepinage!$A$301:$O$401,MATCH('Bon de commande'!B100,Calepinage!$O$301:$O$401,0),1),0)","v":0},1.02,1.02,0]
[null,"ESH262014N (ASV08-46V)","ART102328",null,{"$f":"IFERROR(INDEX(Calepinage!$B$301:$O$401,MATCH('Bon de commande'!B101,Calepinage!$O$301:$O$401,0),1),\"\")","v":""},{"$f":"IFERROR(INDEX(Calepinage!$A$301:$O$401,MATCH('Bon de commande'!B101,Calepinage!$O$301:$O$401,0),1),0)","v":0},1.57,1.57,0]
[null,"ESH272014ALU (ASV08-46G)","ART100063",null,{"$f":"IFERROR(INDEX(Calepinage!$B$301:$O$401,MATCH('Bon de commande'!B102,Calepinage!$O$301:$O$401,0),1),\"\")","v":""},{"$f":"IFERROR(INDEX(Calepinage!$A$301:$O$401,MATCH('Bon de commande'!B102,Calepinage!$O$301:$O$401,0),1),0)","v":0},1.02,1.02,0]
[null,"ESH272014N (ASV08-46V)","ART100260",null,{"$f":"IFERROR(INDEX(Calepinage!$B$301:$O$401,MATCH('Bon de commande'!B103,Calepinage!$O$301:$O$401,0),1),\"\")","v":""},{"$f":"IFERROR(INDEX(Calepinage!$A$301:$O$401,MATCH('Bon de commande'!B103,Calepinage!$O$301:$O$401,0),1),0)","v":0},1.57,1.57,0]
[null,"ESH312014ALU (ASV08-50G)","ART100172",null,{"$f":"IFERROR(INDEX(Calepinage!$B$301:$O$401,MATCH('Bon de commande'!B104,Calepinage!$O$301:$O$401,0),1),\"\")","v":""},{"$f":"IFERROR(INDEX(Calepinage!$A$301:$O$401,MATCH('Bon de commande'!B104,Calepinage!$O$301:$O$401,0),1),0)","v":0},1.02,1.02,{"$f":"IFERROR(F104*H104,0)","v":0}]
[null,"ESH312014N (ASV08-50V)","ART100381",null,{"$f":"IFERROR(INDEX(Calepinage!$B$301:$O$401,MATCH('Bon de commande'!B105,Calepinage!$O$301:$O$401,0),1),\"\")","v":""},{"$f":"IFERROR(INDEX(Calepinage!$A$301:$O$401,MATCH('Bon de commande'!B105,Calepinage!$O$301:$O$401,0),1),0)","v":0},1.57,1.57,0]
[null,"CALE_GAUCHE","ART100212",null,{"$f":"IFERROR(INDEX(Calepinage!$B$301:$O$401,MATCH('Bon de commande'!B106,Calepinage!$O$301:$O$401,0),1),\"\")","v":"Cale Gauche de Renfort pour Etriers Simple In Roof"},{"$f":"IFERROR(INDEX(Calepinage!$A$301:$O$401,MATCH('Bon de commande'!B106,Calepinage!$O$301:$O$401,0),1),0)","v":6},0.28999999999999998,0.28999999999999998,1.7399999999999998]
[null,"CALE_DROIT","ART101501",null,{"$f":"IFERROR(INDEX(Calepinage!$B$301:$O$401,MATCH('Bon de commande'!B107,Calepinage!$O$301:$O$401,0),1),\"\")","v":"Cale Droite de Renfort pour Etriers Simple In Roof"},{"$f":"IFERROR(INDEX(Calepinage!$A$301:$O$401,MATCH('Bon de commande'!B107,Calepinage!$O$301:$O$401,0),1),0)","v":6},0.28999999999999998,0.28999999999999998,1.7399999999999998]
[null,"JOINT_PRE_CONTRAIN","ART101088",null,{"$f":"IFERROR(INDEX(Calepinage!$B$301:$O$401,MATCH('Bon de commande'!B108,Calepinage!$O$301:$O$401,0),1),\"\")","v":"Joint pré-contraint - 20 x 40 mm (Rouleau de 5.5 m)  "},{"$f":"IFERROR(INDEX(Calepinage!$A$301:$O$401,MATCH('Bon de commande'!B108,Calepinage!$O$301:$O$401,0),1),0)","v":4},13.68,13.68,54.72]
[null,"CALE_EPDM_CELL","ART101138",null,{"$f":"IFERROR(INDEX(Calepinage!$B$301:$O$401,MATCH('Bon de commande'!B109,Calepinage!$O$301:$O$401,0),1),\"\")","v":"Cale EPDM Pour Vis In Roof (25x21 EP. 5mm)"},{"$f":"IFERROR(INDEX(Calepinage!$A$301:$O$401,MATCH('Bon de commande'!B109,Calepinage!$O$301:$O$401,0),1),0)","v":36},0.1,0.1,3.6]
[null,"JOINT_MOUSS_TRIAN ","ART101178",null,{"$f":"IFERROR(INDEX(Calepinage!$B$301:$O$401,MATCH('Bon de commande'!B110,Calepinage!$O$301:$O$401,0),1),\"\")","v":""},{"$f":"IFERROR(INDEX(Calepinage!$A$301:$O$401,MATCH('Bon de commande'!B110,Calepinage!$O$301:$O$401,0),1),0)","v":0},10.38,10.38,0]
[null,"ART101178","ART101178",null,{"$f":"IFERROR(INDEX(Calepinage!$B$301:$O$401,MATCH('Bon de commande'!B111,Calepinage!$O$301:$O$401,0),1),\"\")","v":""},{"$f":"IFERROR(INDEX(Calepinage!$A$301:$O$401,MATCH('Bon de commande'!B111,Calepinage!$O$301:$O$401,0),1),0)","v":0},10.38,10.38,0]
[null,"RIVETPOP","ART100389",null,{"$f":"IFERROR(INDEX(Calepinage!$B$301:$O$401,MATCH('Bon de commande'!B112,Calepinage!$O$301:$O$401,0),1),\"\")","v":"Rivets Pop 4x8 (pour la fixation des cornières)"},{"$f":"IFERROR(INDEX(Calepinage!$A$301:$O$401,MATCH('Bon de commande'!B112,Calepinage!$O$301:$O$401,0),1),0)","v":16},0.08,0.08,1.28]
[null,"ART104112","ART104112",null,{"$f":"IFERROR(INDEX(Calepinage!$B$301:$O$401,MATCH('Bon de commande'!B113,Calepinage!$O$301:$O$401,0),1),\"\")","v":""},{"$f":"IFERROR(INDEX(Calepinage!$A$301:$O$401,MATCH('Bon de commande'!B113,Calepinage!$O$301:$O$401,0),1),0)","v":0},4.49,4.49,0]
[null,"ART104119","ART104119",null,{"$f":"IFERROR(INDEX(Calepinage!$B$301:$O$401,MATCH('Bon de commande'!B114,Calepinage!$O$301:$O$401,0),1),\"\")","v":""},{"$f":"IFERROR(INDEX(Calepinage!$A$301:$O$401,MATCH('Bon de commande'!B114,Calepinage!$O$301:$O$401,0),1),0)","v":0},0.66,0.66,0]
[null,"VIS2014A","ART100931",null,{"$f":"IFERROR(INDEX(Calepinage!$B$301:$O$401,MATCH('Bon de commande'!B115,Calepinage!$O$301:$O$401,0),1),\"\")","v":""},{"$f":"IFERROR(INDEX(Calepinage!$A$301:$O$401,MATCH('Bon de commande'!B115,Calepinage!$O$301:$O$401,0),1),0)","v":0},0.26,0.26,0]
[null,"VIS2014N","ART101552",null,{"$f":"IFERROR(INDEX(Calepinage!$B$301:$O$401,MATCH('Bon de commande'!B116,Calepinage!$O$301:$O$401,0),1),\"\")","v":"Vis GSE Integration 6.3mmx60mm Noir"},{"$f":"IFERROR(INDEX(Calepinage!$A$301:$O$401,MATCH('Bon de commande'!B116,Calepinage!$O$301:$O$401,0),1),0)","v":126},0.36,0.36,45.36]
[null,"MK08","MK08",null,{"$f":"IFERROR(INDEX(Calepinage!$B$301:$O$401,MATCH('Bon de commande'!B117,Calepinage!$O$301:$O$401,0),1),\"\")","v":""},{"$f":"IFERROR(INDEX(Calepinage!$A$301:$O$401,MATCH('Bon de commande'!B117,Calepinage!$O$301:$O$401,0),1),0)","v":0},{"$f":"trad(\"Sansprix\")","v":"Se renseigner auprès d’un distributeur"},null,{"$f":"IFERROR(F117*H117,0)","v":0}]
[null,"PK08","PK08",null,{"$f":"IFERROR(INDEX(Calepinage!$B$301:$O$401,MATCH('Bon de commande'!B118,Calepinage!$O$301:$O$401,0),1),\"\")","v":""},{"$f":"IFERROR(INDEX(Calepinage!$A$301:$O$401,MATCH('Bon de commande'!B118,Calepinage!$O$301:$O$401,0),1),0)","v":0},"Se renseigner auprès d’un distributeur",null,0]
[null,"SK10","SK10",null,{"$f":"IFERROR(INDEX(Calepinage!$B$301:$O$401,MATCH('Bon de commande'!B119,Calepinage!$O$301:$O$401,0),1),\"\")","v":""},{"$f":"IFERROR(INDEX(Calepinage!$A$301:$O$401,MATCH('Bon de commande'!B119,Calepinage!$O$301:$O$401,0),1),0)","v":0},"Se renseigner auprès d’un distributeur",null,0]
[null,"MK06","MK06",null,{"$f":"IFERROR(INDEX(Calepinage!$B$301:$O$401,MATCH('Bon de commande'!B120,Calepinage!$O$301:$O$401,0),1),\"\")","v":""},{"$f":"IFERROR(INDEX(Calepinage!$A$301:$O$401,MATCH('Bon de commande'!B120,Calepinage!$O$301:$O$401,0),1),0)","v":0},"Se renseigner auprès d’un distributeur",null,0]
[null,"PK10","PK10",null,{"$f":"IFERROR(INDEX(Calepinage!$B$301:$O$401,MATCH('Bon de commande'!B121,Calepinage!$O$301:$O$401,0),1),\"\")","v":""},{"$f":"IFERROR(INDEX(Calepinage!$A$301:$O$401,MATCH('Bon de commande'!B121,Calepinage!$O$301:$O$401,0),1),0)","v":0},"Se renseigner auprès d’un distributeur",null,0]
[null,"MK10","MK10",null,{"$f":"IFERROR(INDEX(Calepinage!$B$301:$O$401,MATCH('Bon de commande'!B122,Calepinage!$O$301:$O$401,0),1),\"\")","v":""},{"$f":"IFERROR(INDEX(Calepinage!$A$301:$O$401,MATCH('Bon de commande'!B122,Calepinage!$O$301:$O$401,0),1),0)","v":0},"Se renseigner auprès d’un distributeur",null,{"$f":"IFERROR(F122*H122,0)","v":0}]
[null,"ART101589","ART101589",null,{"$f":"IFERROR(INDEX(Calepinage!$B$301:$O$401,MATCH('Bon de commande'!B123,Calepinage!$O$301:$O$401,0),1),\"\")","v":""},{"$f":"IFERROR(INDEX(Calepinage!$A$301:$O$401,MATCH('Bon de commande'!B123,Calepinage!$O$301:$O$401,0),1),0)","v":0},244.83,{"$f":"G123*(1-$J$8)","v":244.83},0]
[null,"ART101590","ART101590",null,{"$f":"IFERROR(INDEX(Calepinage!$B$301:$O$401,MATCH('Bon de commande'!B124,Calepinage!$O$301:$O$401,0),1),\"\")","v":""},{"$f":"IFERROR(INDEX(Calepinage!$A$301:$O$401,MATCH('Bon de commande'!B124,Calepinage!$O$301:$O$401,0),1),0)","v":0},222.56,{"$f":"G124*(1-$J$8)","v":222.56},0]
[null,"ART104616","ART104616",null,{"$f":"IFERROR(INDEX(Calepinage!$B$301:$O$401,MATCH('Bon de commande'!B125,Calepinage!$O$301:$O$401,0),1),\"\")","v":""},{"$f":"IFERROR(INDEX(Calepinage!$A$301:$O$401,MATCH('Bon de commande'!B125,Calepinage!$O$301:$O$401,0),1),0)","v":0},245.09,{"$f":"G125*(1-$J$8)","v":245.09},0]
[null,"RMK10","RMK10",null,{"$f":"IFERROR(INDEX(Calepinage!$B$301:$O$401,MATCH('Bon de commande'!B126,Calepinage!$O$301:$O$401,0),1),\"\")","v":""},{"$f":"IFERROR(INDEX(Calepinage!$A$301:$O$401,MATCH('Bon de commande'!B126,Calepinage!$O$301:$O$401,0),1),0)","v":0},"Se renseigner auprès d’un distributeur",null,0]
[null,"RPK10","RPK10",null,{"$f":"IFERROR(INDEX(Calepinage!$B$301:$O$401,MATCH('Bon de commande'!B127,Calepinage!$O$301:$O$401,0),1),\"\")","v":""},{"$f":"IFERROR(INDEX(Calepinage!$A$301:$O$401,MATCH('Bon de commande'!B127,Calepinage!$O$301:$O$401,0),1),0)","v":0},"Se renseigner auprès d’un distributeur"]
[null,"ART104623","ART104623",null,{"$f":"IFERROR(INDEX(Calepinage!$B$301:$O$401,MATCH('Bon de commande'!B128,Calepinage!$O$301:$O$401,0),1),\"\")","v":""},{"$f":"IFERROR(INDEX(Calepinage!$A$301:$O$401,MATCH('Bon de commande'!B128,Calepinage!$O$301:$O$401,0),1),0)","v":0},274.64999999999998,{"$f":"G128*(1-$J$8)","v":274.64999999999998},{"$f":"IFERROR(F128*H128,0)","v":0}]
[null,"ART103622","ART103622",null,{"$f":"IFERROR(INDEX(Calepinage!$B$301:$O$401,MATCH('Bon de commande'!B129,Calepinage!$O$301:$O$401,0),1),\"\")","v":""},{"$f":"IFERROR(INDEX(Calepinage!$A$301:$O$401,MATCH('Bon de commande'!B129,Calepinage!$O$301:$O$401,0),1),0)","v":0},37.24,37.24,0]
[null,"ART103629","ART103629",null,{"$f":"IFERROR(INDEX(Calepinage!$B$301:$O$401,MATCH('Bon de commande'!B130,Calepinage!$O$301:$O$401,0),1),\"\")","v":""},{"$f":"IFERROR(INDEX(Calepinage!$A$301:$O$401,MATCH('Bon de commande'!B130,Calepinage!$O$301:$O$401,0),1),0)","v":0},37.24,37.24,0]
[null,"ART105512","ART105512",null,{"$f":"IFERROR(INDEX(Calepinage!$B$301:$O$401,MATCH('Bon de commande'!B131,Calepinage!$O$301:$O$401,0),1),\"\")","v":""},{"$f":"IFERROR(INDEX(Calepinage!$A$301:$O$401,MATCH('Bon de commande'!B131,Calepinage!$O$301:$O$401,0),1),0)","v":0},50,50,{"$f":"IFERROR(F131*H131,0)","v":0}]
[null,"ART105498","ART105498",null,{"$f":"IFERROR(INDEX(Calepinage!$B$301:$O$401,MATCH('Bon de commande'!B132,Calepinage!$O$301:$O$401,0),1),\"\")","v":""},{"$f":"IFERROR(INDEX(Calepinage!$A$301:$O$401,MATCH('Bon de commande'!B132,Calepinage!$O$301:$O$401,0),1),0)","v":0},50,50,{"$f":"IFERROR(F132*H132,0)","v":0}]
[null,"ART105519","ART105519",null,{"$f":"IFERROR(INDEX(Calepinage!$B$301:$O$401,MATCH('Bon de commande'!B133,Calepinage!$O$301:$O$401,0),1),\"\")","v":""},{"$f":"IFERROR(INDEX(Calepinage!$A$301:$O$401,MATCH('Bon de commande'!B133,Calepinage!$O$301:$O$401,0),1),0)","v":0},36.159999999999997,36.159999999999997,{"$f":"IFERROR(F133*H133,0)","v":0}]
[null,"ART105505","ART105505",null,{"$f":"IFERROR(INDEX(Calepinage!$B$301:$O$401,MATCH('Bon de commande'!B134,Calepinage!$O$301:$O$401,0),1),\"\")","v":""},{"$f":"IFERROR(INDEX(Calepinage!$A$301:$O$401,MATCH('Bon de commande'!B134,Calepinage!$O$301:$O$401,0),1),0)","v":0},36.159999999999997,36.159999999999997,{"$f":"IFERROR(F134*H134,0)","v":0}]
[null,"ART105351","ART105351",null,{"$f":"IFERROR(INDEX(Calepinage!$B$301:$O$401,MATCH('Bon de commande'!B135,Calepinage!$O$301:$O$401,0),1),\"\")","v":""},{"$f":"IFERROR(INDEX(Calepinage!$A$301:$O$401,MATCH('Bon de commande'!B135,Calepinage!$O$301:$O$401,0),1),0)","v":0},14.25,{"$f":"G135*(1-$J$8)","v":14.25},{"$f":"IFERROR(F135*H135,0)","v":0}]
[null,"ART105554","ART105554",null,{"$f":"IFERROR(INDEX(Calepinage!$B$301:$O$401,MATCH('Bon de commande'!B136,Calepinage!$O$301:$O$401,0),1),\"\")","v":""},{"$f":"IFERROR(INDEX(Calepinage!$A$301:$O$401,MATCH('Bon de commande'!B136,Calepinage!$O$301:$O$401,0),1),0)","v":0},12.03,12.03,0]
[]
[null,null,{"$f":"UPPER(VLOOKUP(\"Total\",BD!$A$1:$P$200,Listes!$AA$2+1,0))","v":"TOTAL"},null,null,null,null,null,{"$f":" SUM(I11:I116)","v":632.18000000000006}]
[]
[null,"TOTAL",{"$f":"UPPER(VLOOKUP(\"Option\",BD!$A$1:$P$200,Listes!$AA$2+1,0))","v":"OPTIONS"},null,null,{"$f":"UPPER(VLOOKUP(\"NbrPiece\",BD!$A$1:$P$200,Listes!$AA$2+1,0))","v":"NOMBRE DE PIÈCES"},{"$f":"UPPER(VLOOKUP(\"PUHT\",BD!$A$1:$P$200,Listes!$AA$2+1,0))","v":"P.U. (HT)"},{"$f":"UPPER(VLOOKUP(\"PUREM\",BD!$A$1:$P$200,Listes!$AA$2+1,0))","v":"P.U. REMISÉ "},{"$f":"UPPER(VLOOKUP(\"Total\",BD!$A$1:$P$200,Listes!$AA$2+1,0))","v":"TOTAL"}]
[null,null,{"$f":"IF(flex_largeur=1,\"ART100385\",IF(flex_couleur=1,\"ART101405\",\"ART101272\"))","v":"ART101405"},{"$f":"Calepinage!B327","v":"Flexalu Rouge Terre Cuite 500mm L5m Butyle 20/100"},null,{"$f":"Calepinage!A327","v":2},{"$f":"IF(flex_largeur=1,74.95,114.47)","v":114.47},114.47,{"$f":"F141*H141","v":228.94}]
[null,null,{"$f":"IF(flex_velux=330,\"ART100385\",IF(flex_velux=500,\"ART101405\",\"\"))","v":"ART100385"},{"$f":"Calepinage!B333","v":0},null,{"$f":"Calepinage!A333","v":0},{"$f":"IF(flex_velux=330,74.95,IF(flex_velux=500,114.47,0))","v":74.95},74.95,{"$f":"F142*H142","v":0}]
[null,"OPTIONS","ART101292",{"$f":"IF(Calepinage!B328<>\"\",Calepinage!B328,\"\")","v":""},null,{"$f":"IF(Calepinage!A328>0,Calepinage!A328,0)","v":0},193.93,{"$f":"G143*(1-$J$8)","v":193.93},{"$f":"Calepinage!A328*H143","v":0}]
[]
[null,null,{"$f":"UPPER(VLOOKUP(\"Total\",BD!$A$1:$P$200,Listes!$AA$2+1,0))","v":"TOTAL"},null,null,null,null,null,{"$f":"I138+I141+I143","v":861.12000000000012}]
[]
[null,null,null,{"$f":"UPPER(VLOOKUP(\"NotePriceOpt\",BD!$A$1:$P$200,Listes!$AA$2+1,0))","v":"NB : PRIX DISPONIBLE AUPRÈS DE VOTRE INTERLOCUTEUR HABITUEL."}]
[null,null,null,{"$f":"UPPER(VLOOKUP(\"WebLink1\",BD!$A$1:$P$200,Listes!$AA$2+1,0))","v":"POUR PLUS D’INFORMATION SUR LE PRODUIT : WWW.GSEINTEGRATION.COM"}]